Workbook

Sheet COPYING

Sheet EUR.OIS.Example
C2: DF cell starts at: | D2: =GetCellAddress(U9) -> U9 | H2: trade date | J2: 2009-11-25 | L2: interp. mode | N2: SplineLogDisc
C3: PV cell starts at: | D3: =GetCellAddress(V9) -> V9 | H3: holiday list | J3: =Holidays!E4 -> 16E4 | L3: proj. curve | N3: =N4 -> 2N4
C4: # of products: | D4: =MAX(B:B) -> 41 | H4: stub period | J4: Front | L4: disc. curve | N4: =CreateCurve(T$9:T$50, U$9:U$50, N$2) -> 2N4
C5: current calib. | D5: 0 | H5: fixing schedule | J5: 1
C7: Product | E7: Spot | F7: Pay | G7: Forward | I7: Receiving Leg1: Floating | M7: Paying Leg2: Fixed | Q7: Market | R7: Effective Date | S7: Maturity Date | T7: Last Payment | U7: Discount | V7: Present | X7: Comparison to outputs in reference
B8: No. | C8: Ticker | D8: Type | E8: Lag | F8: Lag | G8: Start | H8: Tenor | I8: Period | J8: Date Rolling | K8: Day Count | L8: Leg ID | M8: Period | N8: Date Rolling | O8: Day Count | P8: Leg ID | Q8: Rate | R8: Start of Accrual | S8: End of Accrual | T8: Date | U8: Factor | V8: Value | X8: Derived | Z8: Date | AA8: Reference | AB8: diff.(bps)
T9: =J2 -> 2009-11-25 | U9: 1 | X9: D. Factor | Z9: =T9 -> 2009-11-25 | AA9: D. Factor
B10: =B9+1 -> 1 | C10: EUR_YCONRH_OND | D10: Cash | E10: 0D | F10: 0D | G10: 0D | H10: 1D | I10: 12M | J10: Following | K10: Act/360 | L10: =CreateLeg($J$2:$J$5, $D10:$H10, I10:K10) -> 2L10 | M10: 12M | N10: Following | O10: Act/360 | P10: =CreateLeg($J$2:$J$5, $D10:$H10, M10:O10) -> 2P10 | Q10: 0.0033 | R10: =GetEffectiveDate($P10) -> 2009-11-25 | S10: =GetLastPaymentDate($P10) -> 2009-11-26 | T10: =GetLastPaymentDate($P10) -> 2009-11-26 | U10: 0.9999908334 | V10: =IF(OR($D$5=0,$D$5=B10), GetLegPV(L10,$N$3,$N$4,0) - GetLegPV(P10,Q10,$N$4,0)) -> -5.096936057e-17 | X10: =GetCurveDiscountFactor($N$4,Z10) -> 0.9999908334 | Y10: =T10=Z10 -> TRUE | Z10: 2009-11-26 | AA10: 0.999990833 | AB10: =(X10-AA10)*10000 -> 4.173602575e-06
B11: 2 | C11: EUR_YCONRH_TND | D11: Cash | E11: 1D | F11: 0D | G11: 0D | H11: 1D | I11: 12M | J11: Following | K11: Act/360 | L11: =CreateLeg($J$2:$J$5, $D11:$H11, I11:K11) -> 2L11 | M11: 12M | N11: Following | O11: Act/360 | P11: =CreateLeg($J$2:$J$5, $D11:$H11, M11:O11) -> 2P11 | Q11: 0.0033 | R11: =GetEffectiveDate($P11) -> 2009-11-26 | S11: =GetLastPaymentDate($P11) -> 2009-11-27 | T11: =GetLastPaymentDate($P11) -> 2009-11-27 | U11: 0.9999816669 | V11: 1.238330151e-14 | X11: =GetCurveDiscountFactor($N$4,Z11) -> 0.9999816669 | Y11: TRUE | Z11: 2009-11-27 | AA11: 0.999981667 | AB11: =(X11-AA11)*10000 -> -8.126554984e-07
B12: 3 | C12: EUR_YCONRH_EONSW | D12: Cash | E12: 2D | F12: 0D | G12: 0D | H12: 1W | I12: 12M | J12: Following | K12: Act/360 | L12: =CreateLeg($J$2:$J$5, $D12:$H12, I12:K12) -> 2L12 | M12: 12M | N12: Following | O12: Act/360 | P12: 2P12 | Q12: 0.00361 | R12: 2009-11-27 | S12: 2009-12-04 | T12: 2009-12-04 | U12: 0.9999114787 | V12: 1.965387488e-14 | X12: 0.9999114787 | Y12: TRUE | Z12: 2009-12-04 | AA12: 0.999911479 | AB12: -3.120254055e-06
B13: 4 | C13: EUR_YCONRH_EON2W | D13: Cash | E13: 2D | F13: 0D | G13: 0D | H13: 2W | I13: 12M | J13: Following | K13: Act/360 | L13: =CreateLeg($J$2:$J$5, $D13:$H13, I13:K13) -> 2L13 | M13: 12M | N13: Following | O13: Act/360 | P13: 2P13 | Q13: 0.00383 | R13: 2009-11-27 | S13: 2009-12-11 | T13: 2009-12-11 | U13: 0.9998317475 | V13: 9.999999999e-07 | X13: 0.9998317475 | Y13: TRUE | Z13: 2009-12-11 | AA13: 0.999832747 | AB13: -0.0099946544
B14: 5 | C14: EUR_YCONRH_EON3W | D14: Cash | E14: 2D | F14: 0D | G14: 0D | H14: 3W | I14: 12M | J14: Following | K14: Act/360 | L14: =CreateLeg($J$2:$J$5, $D14:$H14, I14:K14) -> 2L14 | M14: 12M | N14: Following | O14: Act/360 | P14: 2P14 | Q14: 0.0042 | R14: 2009-11-27 | S14: 2009-12-18 | T14: 2009-12-18 | U14: 0.9997357317 | V14: 9.999999999e-07 | X14: 0.9997357317 | Y14: TRUE | Z14: 2009-12-18 | AA14: 0.999736731 | AB14: -0.009993355233
B15: 6 | C15: EUR_YCONRH_EON1M | D15: Cash | E15: 2D | F15: 0D | G15: 0D | H15: 1M | I15: 12M | J15: Following | K15: Act/360 | L15: =CreateLeg($J$2:$J$5, $D15:$H15, I15:K15) -> 2L15 | M15: 12M | N15: Following | O15: Act/360 | P15: 2P15 | Q15: 0.00417 | R15: 2009-11-27 | S15: 2009-12-28 | T15: 2009-12-28 | U15: 0.9996217194 | V15: 9.999999999e-07 | X15: 0.9996217194 | Y15: TRUE | Z15: 2009-12-28 | AA15: 0.999622719 | AB15: -0.009995803472
B16: 7 | C16: EUR_YCONRH_ECBOISDEC09 | D16: FRA | E16: 2D | F16: 0D | G16: 7D | H16: 29D | I16: 12M | J16: Following | K16: Act/360 | L16: 2L16 | M16: 12M | N16: Following | O16: Act/360 | P16: 2P16 | Q16: 0.00441 | R16: =GetEffectiveDate($P16) -> 2009-12-08 | S16: 2010-01-20 | T16: 2010-01-20 | U16: 0.9993410817 | V16: 3.585684267e-14 | X16: 0.9993410817 | Y16: TRUE | Z16: 2010-01-20 | AA16: 0.999342242 | AB16: -0.01160327946
B17: 8 | C17: EUR_YCONRH_EON2M | D17: Swap | E17: 2D | F17: 0D | G17: 0D | H17: 2M | I17: 12M | J17: Following | K17: Act/360 | L17: 2L17 | M17: 12M | N17: Following | O17: Act/360 | P17: 2P17 | Q17: 0.0043 | R17: 2009-11-27 | S17: 2010-01-27 | T17: 2010-01-27 | U17: 0.9992535996 | V17: -3.994634484e-15 | X17: 0.9992535996 | Y17: TRUE | Z17: 2010-01-27 | AA17: 0.9992536 | AB17: -3.567792728e-06
B18: 9 | C18: EUR_YCONRH_ECBOISJAN10 | D18: FRA | E18: 2D | F18: 0D | G18: 36D | H18: 3W | I18: 12M | J18: Following | K18: Act/360 | L18: 2L18 | M18: 12M | N18: Following | O18: Act/360 | P18: 2P18 | Q18: 0.00439 | R18: 2010-01-20 | S18: 2010-02-10 | T18: 2010-02-10 | U18: 0.9990842329 | V18: 1e-06 | X18: 0.9990842329 | Y18: TRUE | Z18: 2010-02-10 | AA18: 0.999086392 | AB18: -0.02159148576
B19: 10 | C19: EUR_YCONRH_EON3M | D19: Swap | E19: 2D | F19: 0D | G19: 0D | H19: 3M | I19: 12M | J19: Following | K19: Act/360 | L19: 2L19 | M19: 12M | N19: Following | O19: Act/360 | P19: 2P19 | Q19: 0.00443 | R19: 2009-11-27 | S19: 2010-03-01 | T19: 2010-03-01 | U19: 0.9988253035 | V19: 1e-06 | X19: 0.9988253035 | Y19: TRUE | Z19: 2010-03-01 | AA19: 0.998826302 | AB19: -0.009985059349
B20: 11 | C20: EUR_YCONRH_ECBOISFEB10 | D20: FRA | E20: 2D | F20: 0D | G20: 51D | H20: 4W | I20: 12M | J20: Following | K20: Act/360 | L20: 2L20 | M20: 12M | N20: Following | O20: Act/360 | P20: 2P20 | Q20: 0.00496 | R20: 2010-02-10 | S20: 2010-03-10 | T20: 2010-03-10 | U20: 0.998698957 | V20: -1.659132901e-14 | X20: 0.998698957 | Y20: TRUE | Z20: 2010-03-10 | AA20: 0.998701115 | AB20: -0.02158012855
B21: 12 | C21: EUR_YCONRH_EON4M | D21: Swap | E21: 2D | F21: 0D | G21: 0D | H21: 4M | I21: 12M | J21: Following | K21: Act/360 | L21: 2L21 | M21: 12M | N21: Following | O21: Act/360 | P21: 2P21 | Q21: 0.00468 | R21: 2009-11-27 | S21: 2010-03-29 | T21: 2010-03-29 | U21: 0.9983972089 | V21: 1e-06 | X21: 0.9983972089 | Y21: TRUE | Z21: 2010-03-29 | AA21: 0.998398207 | AB21: -0.009980546529
B22: 13 | C22: EUR_YCONRH_ECBOISMAR10 | D22: FRA | E22: 2D | F22: 0D | G22: 71D | H22: 5W | I22: 12M | J22: Following | K22: Act/360 | L22: 2L22 | M22: 12M | N22: Following | O22: Act/360 | P22: 2P22 | Q22: 0.00572 | R22: 2010-03-10 | S22: 2010-04-14 | T22: 2010-04-14 | U22: 0.9981438781 | V22: 9.031404097e-17 | X22: 0.9981438781 | Y22: TRUE | Z22: 2010-04-14 | AA22: 0.998146035 | AB22: -0.02156913946
B23: 14 | C23: EUR_YCONRH_EON5M | D23: Swap | E23: 2D | F23: 0D | G23: 0D | H23: 5M | I23: 12M | J23: Following | K23: Act/360 | L23: 2L23 | M23: 12M | N23: Following | O23: Act/360 | P23: 2P23 | Q23: 0.00494 | R23: 2009-11-27 | S23: 2010-04-27 | T23: 2010-04-27 | U23: 0.9979139338 | V23: 4.011374566e-14 | X23: 0.9979139338 | Y23: TRUE | Z23: 2010-04-27 | AA23: 0.997913934 | AB23: -1.918191161e-06
B24: 15 | C24: EUR_YCONRH_ECBOISAPR10 | D24: FRA | E24: 2D | F24: 0D | G24: 94D | H24: 4W | I24: 12M | J24: Following | K24: Act/360 | L24: 2L24 | M24: 12M | N24: Following | O24: Act/360 | P24: 2P24 | Q24: 0.00636 | R24: 2010-04-14 | S24: 2010-05-12 | T24: 2010-05-12 | U24: 0.9976493742 | V24: 9.999999999e-07 | X24: 0.9976493742 | Y24: TRUE | Z24: 2010-05-12 | AA24: 0.99765253 | AB24: -0.03155804381
B25: 16 | C25: EUR_YCONRH_EON6M | D25: Swap | E25: 2D | F25: 0D | G25: 0D | H25: 6M | I25: 12M | J25: Following | K25: Act/360 | L25: 2L25 | M25: 12M | N25: Following | O25: Act/360 | P25: 2P25 | Q25: 0.00523 | R25: 2009-11-27 | S25: 2010-05-27 | T25: 2010-05-27 | U25: 0.9973580861 | V25: 1e-06 | X25: 0.9973580861 | Y25: TRUE | Z25: 2010-05-27 | AA25: 0.997359084 | AB25: -0.009978731274
B26: 17 | C26: EUR_YCONRH_ECBOISMAY10 | D26: FRA | E26: 2D | F26: 0D | G26: 114D | H26: 5W | I26: 12M | J26: Following | K26: Act/360 | L26: 2L26 | M26: 12M | N26: Following | O26: Act/360 | P26: 2P26 | Q26: 0.00703 | R26: 2010-05-12 | S26: 2010-06-16 | T26: 2010-06-16 | U26: 0.9969679743 | V26: -4.539999019e-14 | X26: 0.9969679743 | Y26: TRUE | Z26: 2010-06-16 | AA26: 0.996971128 | AB26: -0.031537212
B27: 18 | C27: EUR_YCONRH_EON7M | D27: Swap | E27: 2D | F27: 0D | G27: 0D | H27: 7M | I27: 12M | J27: Following | K27: Act/360 | L27: 2L27 | M27: 12M | N27: Following | O27: Act/360 | P27: 2P27 | Q27: 0.00554 | R27: 2009-11-27 | S27: 2010-06-28 | T27: 2010-06-28 | U27: 0.9967136058 | V27: 9.999999999e-07 | X27: 0.9967136058 | Y27: TRUE | Z27: 2010-06-28 | AA27: 0.996714603 | AB27: -0.009971622673
B28: 19 | C28: EUR_YCONRH_EON8M | D28: Swap | E28: 2D | F28: 0D | G28: 0D | H28: 8M | I28: 12M | J28: Following | K28: Act/360 | L28: 2L28 | M28: 12M | N28: Following | O28: Act/360 | P28: 2P28 | Q28: 0.006 | R28: 2009-11-27 | S28: 2010-07-27 | T28: 2010-07-27 | U28: 0.9959636137 | V28: 1e-06 | X28: 0.9959636137 | Y28: TRUE | Z28: 2010-07-27 | AA28: 0.99596461 | AB28: -0.009963230957
B29: 20 | C29: EUR_YCONRH_EON9M | D29: Swap | E29: 2D | F29: 0D | G29: 0D | H29: 9M | I29: 12M | J29: Following | K29: Act/360 | L29: 2L29 | M29: 12M | N29: Following | O29: Act/360 | P29: 2P29 | Q29: 0.00644 | R29: 2009-11-27 | S29: 2010-08-27 | T29: 2010-08-27 | U29: 0.9951218236 | V29: -1.960150792e-14 | X29: 0.9951218236 | Y29: TRUE | Z29: 2010-08-27 | AA29: 0.995121824 | AB29: -3.606260846e-06
B30: 21 | C30: EUR_YCONRH_EON10M | D30: Swap | E30: 2D | F30: 0D | G30: 0D | H30: 10M | I30: 12M | J30: Following | K30: Act/360 | L30: 2L30 | M30: 12M | N30: Following | O30: Act/360 | P30: 2P30 | Q30: 0.00687 | R30: 2009-11-27 | S30: 2010-09-27 | T30: 2010-09-27 | U30: 0.9942129064 | V30: 9.999999999e-07 | X30: 0.9942129064 | Y30: TRUE | Z30: 2010-09-27 | AA30: 0.994213901 | AB30: -0.009945558501
B31: 22 | C31: EUR_YCONRH_EON11M | D31: Swap | E31: 2D | F31: 0D | G31: 0D | H31: 11M | I31: 12M | J31: Following | K31: Act/360 | L31: 2L31 | M31: 12M | N31: Following | O31: Act/360 | P31: 2P31 | Q31: 0.00727 | R31: 2009-11-27 | S31: 2010-10-27 | T31: 2010-10-27 | U31: 0.9932820348 | V31: 3.601632881e-14 | X31: 0.9932820348 | Y31: TRUE | Z31: 2010-10-27 | AA31: 0.993282035 | AB31: -2.23533636e-06
B32: 23 | C32: EUR_YCONRH_EON1Y | D32: Swap | E32: 2D | F32: 0D | G32: 0D | H32: 12M | I32: 12M | J32: ModFol+EoM | K32: Act/360 | L32: 2L32 | M32: 12M | N32: ModFol+EoM | O32: Act/360 | P32: 2P32 | Q32: 0.00771 | R32: 2009-11-27 | S32: 2010-11-29 | T32: 2010-11-29 | U32: 0.9921831897 | V32: 2.838701496e-14 | X32: 0.9921831897 | Y32: TRUE | Z32: 2010-11-29 | AA32: 0.99218319 | AB32: -2.706341817e-06
B33: 24 | C33: EUR_YCONRH_EON15M | D33: Swap | E33: 2D | F33: 0D | G33: 0D | H33: 15M | I33: 12M | J33: ModFol+EoM | K33: Act/360 | L33: 2L33 | M33: 12M | N33: ModFol+EoM | O33: Act/360 | P33: 2P33 | Q33: 0.00902 | R33: 2009-11-27 | S33: 2011-02-28 | T33: 2011-02-28 | U33: 0.9886125181 | V33: 9.999999999e-07 | X33: 0.9886125181 | Y33: TRUE | Z33: 2011-02-28 | AA33: 0.988690125 | AB33: -0.7760691486
B34: 25 | C34: EUR_YCONRH_EON18M | D34: Swap | E34: 2D | F34: 0D | G34: 0D | H34: 18M | I34: 12M | J34: ModFol+EoM | K34: Act/360 | L34: 2L34 | M34: 12M | N34: ModFol+EoM | O34: Act/360 | P34: 2P34 | Q34: 0.01026 | R34: 2009-11-27 | S34: 2011-05-27 | T34: 2011-05-27 | U34: 0.9845935607 | V34: 1e-06 | X34: 0.9845935607 | Y34: TRUE | Z34: 2011-05-27 | AA34: 0.984671516 | AB34: -0.779552839
B35: 26 | C35: EUR_YCONRH_EON21M | D35: Swap | E35: 2D | F35: 0D | G35: 0D | H35: 21M | I35: 12M | J35: ModFol+EoM | K35: Act/360 | L35: 2L35 | M35: 12M | N35: ModFol+EoM | O35: Act/360 | P35: 2P35 | Q35: 0.01156 | R35: 2009-11-27 | S35: 2011-08-29 | T35: 2011-08-29 | U35: 0.979711416 | V35: 9.999999999e-07 | X35: 0.979711416 | Y35: TRUE | Z35: 2011-08-29 | AA35: 0.979788993 | AB35: -0.7757701826
B36: 27 | C36: EUR_YCONRH_EON2Y | D36: Swap | E36: 2D | F36: 0D | G36: 0D | H36: 2Y | I36: 12M | J36: ModFol+EoM | K36: Act/360 | L36: 2L36 | M36: 12M | N36: ModFol+EoM | O36: Act/360 | P36: 2P36 | Q36: 0.01274 | R36: 2009-11-27 | S36: 2011-11-28 | T36: 2011-11-28 | U36: 0.974540865 | V36: 9.999999999e-07 | X36: 0.974540865 | Y36: TRUE | Z36: 2011-11-28 | AA36: 0.974618037 | AB36: -0.7717203622
B37: 28 | C37: EUR_YCONRH_EON3Y | D37: Swap | E37: 2D | F37: 0D | G37: 0D | H37: 3Y | I37: 12M | J37: ModFol+EoM | K37: Act/360 | L37: 2L37 | M37: 12M | N37: ModFol+EoM | O37: Act/360 | P37: 2P37 | Q37: 0.0168 | R37: 2009-11-27 | S37: 2012-11-27 | T37: 2012-11-27 | U37: 0.950247788 | V37: 1e-06 | X37: 0.950247788 | Y37: TRUE | Z37: 2012-11-27 | AA37: 0.950323041 | AB37: -0.7525299261
B38: 29 | C38: EUR_YCONRH_EON4Y | D38: Swap | E38: 2D | F38: 0D | G38: 0D | H38: 4Y | I38: 12M | J38: ModFol+EoM | K38: Act/360 | L38: 2L38 | M38: 12M | N38: ModFol+EoM | O38: Act/360 | P38: 2P38 | Q38: 0.02004 | R38: 2009-11-27 | S38: 2013-11-27 | T38: 2013-11-27 | U38: 0.9219244782 | V38: 9.999999999e-07 | X38: 0.9219244782 | Y38: TRUE | Z38: 2013-11-27 | AA38: 0.921997491 | AB38: -0.730127821
B39: 30 | C39: EUR_YCONRH_EON5Y | D39: Swap | E39: 2D | F39: 0D | G39: 0D | H39: 5Y | I39: 12M | J39: ModFol+EoM | K39: Act/360 | L39: 2L39 | M39: 12M | N39: ModFol+EoM | O39: Act/360 | P39: 2P39 | Q39: 0.02263 | R39: 2009-11-27 | S39: 2014-11-27 | T39: 2014-11-27 | U39: 0.8913841868 | V39: 9.999999999e-07 | X39: 0.8913841868 | Y39: TRUE | Z39: 2014-11-27 | AA39: 0.891454784 | AB39: -0.7059716844
B40: 31 | C40: EUR_YCONRH_EON6Y | D40: Swap | E40: 2D | F40: 0D | G40: 0D | H40: 6Y | I40: 12M | J40: ModFol+EoM | K40: Act/360 | L40: 2L40 | M40: 12M | N40: ModFol+EoM | O40: Act/360 | P40: 2P40 | Q40: 0.02481 | R40: 2009-11-27 | S40: 2015-11-27 | T40: 2015-11-27 | U40: 0.8593082958 | V40: 7.077671782e-15 | X40: 0.8593082958 | Y40: TRUE | Z40: 2015-11-27 | AA40: 0.859375379 | AB40: -0.6708324644
B41: 32 | C41: EUR_YCONRH_EON7Y | D41: Swap | E41: 2D | F41: 0D | G41: 0D | H41: 7Y | I41: 12M | J41: ModFol+EoM | K41: Act/360 | L41: 2L41 | M41: 12M | N41: ModFol+EoM | O41: Act/360 | P41: 2P41 | Q41: 0.02664 | R41: 2009-11-27 | S41: 2016-11-28 | T41: 2016-11-28 | U41: 0.8264854543 | V41: 9.999999999e-07 | X41: 0.8264854543 | Y41: TRUE | Z41: 2016-11-28 | AA41: 0.826550941 | AB41: -0.6548671932
B42: 33 | C42: EUR_YCONRH_EON8Y | D42: Swap | E42: 2D | F42: 0D | G42: 0D | H42: 8Y | I42: 12M | J42: ModFol+EoM | K42: Act/360 | L42: 2L42 | M42: 12M | N42: ModFol+EoM | O42: Act/360 | P42: 2P42 | Q42: 0.02811 | R42: 2009-11-27 | S42: 2017-11-27 | T42: 2017-11-27 | U42: 0.7943351002 | V42: 9.999999998e-07 | X42: 0.7943351002 | Y42: TRUE | Z42: 2017-11-27 | AA42: 0.794398043 | AB42: -0.6294280908
B43: 34 | C43: EUR_YCONRH_EON9Y | D43: Swap | E43: 2D | F43: 0D | G43: 0D | H43: 9Y | I43: 12M | J43: ModFol+EoM | K43: Act/360 | L43: 2L43 | M43: 12M | N43: ModFol+EoM | O43: Act/360 | P43: 2P43 | Q43: 0.02936 | R43: 2009-11-27 | S43: 2018-11-27 | T43: 2018-11-27 | U43: 0.7624927066 | V43: 1e-06 | X43: 0.7624927066 | Y43: TRUE | Z43: 2018-11-27 | AA43: 0.762553129 | AB43: -0.6042238519
B44: 35 | C44: EUR_YCONRH_EON10Y | D44: Swap | E44: 2D | F44: 0D | G44: 0D | H44: 10Y | I44: 12M | J44: ModFol+EoM | K44: Act/360 | L44: 2L44 | M44: 12M | N44: ModFol+EoM | O44: Act/360 | P44: 2P44 | Q44: 0.03047 | R44: 2009-11-27 | S44: 2019-11-27 | T44: 2019-11-27 | U44: 0.7309332458 | V44: 9.999999999e-07 | X44: 0.7309332458 | Y44: TRUE | Z44: 2019-11-27 | AA44: 0.730991169 | AB44: -0.5792322703
B45: 36 | C45: EUR_YCONRH_EON11Y | D45: Swap | E45: 2D | F45: 0D | G45: 0D | H45: 11Y | I45: 12M | J45: ModFol+EoM | K45: Act/360 | L45: 2L45 | M45: 12M | N45: ModFol+EoM | O45: Act/360 | P45: 2P45 | Q45: 0.0315 | R45: 2009-11-27 | S45: 2020-11-27 | T45: 2020-11-27 | U45: 0.6994389054 | V45: 1e-06 | X45: 0.6994389054 | Y45: TRUE | Z45: 2020-11-27 | AA45: 0.699494335 | AB45: -0.5542961663
B46: 37 | C46: EUR_YCONRH_EON12Y | D46: Swap | E46: 2D | F46: 0D | G46: 0D | H46: 12Y | I46: 12M | J46: ModFol+EoM | K46: Act/360 | L46: 2L46 | M46: 12M | N46: ModFol+EoM | O46: Act/360 | P46: 2P46 | Q46: 0.03245 | R46: 2009-11-27 | S46: 2021-11-29 | T46: 2021-11-29 | U46: 0.6682679926 | V46: 9.999999999e-07 | X46: 0.6682679926 | Y46: TRUE | Z46: 2021-11-29 | AA46: 0.668320955 | AB46: -0.5296240427
B47: 38 | C47: EUR_YCONRH_EON15Y | D47: Swap | E47: 2D | F47: 0D | G47: 0D | H47: 15Y | I47: 12M | J47: ModFol+EoM | K47: Act/360 | L47: 2L47 | M47: 12M | N47: ModFol+EoM | O47: Act/360 | P47: 2P47 | Q47: 0.03459 | R47: 2009-11-27 | S47: 2024-11-27 | T47: 2024-11-27 | U47: 0.5822858722 | V47: 9.693739834e-07 | X47: 0.5822858722 | Y47: TRUE | Z47: 2024-11-27 | AA47: 0.582319099 | AB47: -0.332268362
B48: 39 | C48: EUR_YCONRH_EON20Y | D48: Swap | E48: 2D | F48: 0D | G48: 0D | H48: 20Y | I48: 12M | J48: ModFol+EoM | K48: Act/360 | L48: 2L48 | M48: 12M | N48: ModFol+EoM | O48: Act/360 | P48: 2P48 | Q48: 0.036 | R48: 2009-11-27 | S48: 2029-11-27 | T48: 2029-11-27 | U48: 0.4716406229 | V48: -2.028377466e-13 | X48: 0.4716406229 | Y48: TRUE | Z48: 2029-11-27 | AA48: 0.471690237 | AB48: -0.4961406018
B49: 40 | C49: EUR_YCONRH_EON25Y | D49: Swap | E49: 2D | F49: 0D | G49: 0D | H49: 25Y | I49: 12M | J49: ModFol+EoM | K49: Act/360 | L49: 2L49 | M49: 12M | N49: ModFol+EoM | O49: Act/360 | P49: 2P49 | Q49: 0.03579 | R49: 2009-11-27 | S49: 2034-11-27 | T49: 2034-11-27 | U49: 0.3975643818 | V49: -1.728704978e-07 | X49: 0.3975643818 | Y49: TRUE | Z49: 2034-11-27 | AA49: 0.397634242 | AB49: -0.6986018757
B50: 41 | C50: EUR_YCONRH_EON30Y | D50: Swap | E50: 2D | F50: 0D | G50: 0D | H50: 30Y | I50: 12M | J50: ModFol+EoM | K50: Act/360 | L50: 2L50 | M50: 12M | N50: ModFol+EoM | O50: Act/360 | P50: 2P50 | Q50: 0.03508 | R50: 2009-11-27 | S50: 2039-11-28 | T50: 2039-11-28 | U50: 0.3446380568 | V50: 5.774237312e-07 | X50: 0.3446380568 | Y50: TRUE | Z50: 2039-11-28 | AA50: 0.34464239 | AB50: -0.04333153883

Sheet EUR.OIS
C2: DF cell starts at: | D2: =GetCellAddress(U9) -> U9 | H2: trade date | J2: 2009-07-06 | L2: interp. mode | N2: LinearLogDisc
C3: PV cell starts at: | D3: =GetCellAddress(V9) -> V9 | H3: holiday list | J3: =Holidays!E4 -> 16E4 | L3: proj. curve | N3: =CreateCurve(S$9:S$41, U$9:U$41, N$2) -> 3N3
C4: # of products: | D4: =MAX(B:B) -> 32 | H4: stub period | J4: Rear | L4: disc. curve | N4: =CreateCurve(T$9:T$41, U$9:U$41, N$2) -> 3N4
C5: current calib. | D5: 0 | H5: fixing schedule | J5: 1
C7: Product | E7: Spot | F7: Pay | G7: Forward | I7: Receiving Leg1: Floating | M7: Paying Leg2: Fixed | Q7: Market | R7: Effective Date | S7: Maturity Date | T7: Last Payment | U7: Discount | V7: Present | X7: Comparison to outputs in Bloomberg Terminal
B8: No. | C8: Ticker | D8: Type | E8: Lag | F8: Lag | G8: Start | H8: Tenor | I8: Period | J8: Date Rolling | K8: Day Count | L8: Leg ID | M8: Period | N8: Date Rolling | O8: Day Count | P8: Leg ID | Q8: Rate | R8: Start of Accrual | S8: End of Accrual | T8: Date | U8: Factor | V8: Value | X8: Derived | Z8: Date | AA8: Reference | AB8: diff.(bps)
S9: =R10 -> 2009-07-08 | T9: =R10 -> 2009-07-08 | U9: 1 | X9: D. Factor | Z9: =T9 -> 2009-07-08 | AA9: D. Factor
B10: =B9+1 -> 1 | C10: EONIA Index | D10: Cash | E10: 2D | F10: 0D | G10: 0D | H10: 1D | I10: 12M | J10: Following | K10: Act/360 | L10: =CreateLeg($J$2:$J$5, $D10:$H10, I10:K10) -> 3L10 | M10: 12M | N10: Following | O10: Act/360 | P10: =CreateLeg($J$2:$J$5, $D10:$H10, M10:O10) -> 3P10 | Q10: 0.00332 | R10: =GetEffectiveDate($P10) -> 2009-07-08 | S10: =GetMaturityDate($P10) -> 2009-07-09 | T10: =GetLastPaymentDate($P10) -> 2009-07-09 | U10: 0.9999907779 | V10: =IF(OR($D$5=0,$D$5=B10), GetLegPV(L10,$N$3,$N$4,0) - GetLegPV(P10,Q10,$N$4,0)) -> 1.048237154e-16 | X10: =GetCurveDiscountFactor($N$4,Z10) -> 0.9999907779 | Y10: =T10=Z10 -> TRUE | Z10: 2009-07-09 | AA10: 0.999991 | AB10: =(X10-AA10)*10000 -> -0.002221371737
B11: 2 | C11: EUSWE1Z BGN Curncy | D11: FRA | E11: 2D | F11: 1D | G11: 0D | H11: 1W | I11: 12M | J11: Following | K11: Act/360 | L11: =CreateLeg($J$2:$J$5, $D11:$H11, I11:K11) -> 3L11 | M11: 12M | N11: Following | O11: Act/360 | P11: =CreateLeg($J$2:$J$5, $D11:$H11, M11:O11) -> 3P11 | Q11: 0.00452 | R11: =GetEffectiveDate($P11) -> 2009-07-08 | S11: =GetMaturityDate($P11) -> 2009-07-15 | T11: =GetLastPaymentDate($P11) -> 2009-07-16 | U11: 0.9999121188 | V11: -1.531435569e-18 | X11: =GetCurveDiscountFactor($N$4,Z11) -> 0.9999121188 | Y11: =T11=Z11 -> TRUE | Z11: 2009-07-16 | AA11: 0.999912 | AB11: =(X11-AA11)*10000 -> 0.001188348892
B12: 3 | C12: EUSWE2Z BGN Curncy | D12: FRA | E12: 2D | F12: 1D | G12: 0D | H12: 2W | I12: 12M | J12: Following | K12: Act/360 | L12: 3L12 | M12: 12M | N12: Following | O12: Act/360 | P12: 3P12 | Q12: 0.00444 | R12: 2009-07-08 | S12: 2009-07-22 | T12: =GetLastPaymentDate($P12) -> 2009-07-23 | U12: 0.9998273631 | V12: -6.7871056e-17 | X12: 0.9998273631 | Y12: TRUE | Z12: 2009-07-23 | AA12: 0.999827 | AB12: 0.003631419642
B13: 4 | C13: EUSWEA BGN Curncy | D13: Swap | E13: 2D | F13: 1D | G13: 0D | H13: 1M | I13: 12M | J13: ModFol+EoM | K13: Act/360 | L13: 3L13 | M13: 12M | N13: ModFol+EoM | O13: Act/360 | P13: 3P13 | Q13: 0.004685 | R13: 2009-07-08 | S13: 2009-08-10 | T13: 2009-08-11 | U13: 0.999570726 | V13: -3.415236843e-17 | X13: 0.999570726 | Y13: TRUE | Z13: 2009-08-11 | AA13: 0.999571 | AB13: -0.002739780461
B14: 5 | C14: EUSWEB BGN Curncy | D14: Swap | E14: 2D | F14: 1D | G14: 0D | H14: 2M | I14: 12M | J14: ModFol+EoM | K14: Act/360 | L14: 3L14 | M14: 12M | N14: ModFol+EoM | O14: Act/360 | P14: 3P14 | Q14: 0.00513 | R14: 2009-07-08 | S14: 2009-09-08 | T14: 2009-09-09 | U14: 0.9991172799 | V14: 3.70797143e-17 | X14: 0.9991172799 | Y14: TRUE | Z14: 2009-09-09 | AA14: 0.999117 | AB14: 0.00279883223
B15: 6 | C15: EUSWEC BGN Curncy | D15: Swap | E15: 2D | F15: 1D | G15: 0D | H15: 3M | I15: 12M | J15: ModFol+EoM | K15: Act/360 | L15: 3L15 | M15: 12M | N15: ModFol+EoM | O15: Act/360 | P15: 3P15 | Q15: 0.00542 | R15: 2009-07-08 | S15: 2009-10-08 | T15: 2009-10-09 | U15: 0.9986168048 | V15: 5.919743862e-17 | X15: 0.9986168048 | Y15: TRUE | Z15: 2009-10-09 | AA15: 0.998617 | AB15: -0.001952320264
B16: 7 | C16: EUSWED BGN Curncy | D16: Swap | E16: 2D | F16: 1D | G16: 0D | H16: 4M | I16: 12M | J16: ModFol+EoM | K16: Act/360 | L16: 3L16 | M16: 12M | N16: ModFol+EoM | O16: Act/360 | P16: 3P16 | Q16: 0.00563 | R16: 2009-07-08 | S16: 2009-11-09 | T16: 2009-11-10 | U16: 0.9980645311 | V16: 9.194034423e-17 | X16: 0.9980645311 | Y16: TRUE | Z16: 2009-11-10 | AA16: 0.998065 | AB16: -0.004689178863
B17: 8 | C17: EUSWEE BGN Curncy | D17: Swap | E17: 2D | F17: 1D | G17: 0D | H17: 5M | I17: 12M | J17: ModFol+EoM | K17: Act/360 | L17: 3L17 | M17: 12M | N17: ModFol+EoM | O17: Act/360 | P17: 3P17 | Q17: 0.00577 | R17: 2009-07-08 | S17: 2009-12-08 | T17: 2009-12-09 | U17: 0.9975537488 | V17: -6.635317296e-17 | X17: 0.9975537488 | Y17: TRUE | Z17: 2009-12-09 | AA17: 0.997554 | AB17: -0.002511805425
B18: 9 | C18: EUSWEF BGN Curncy | D18: Swap | E18: 2D | F18: 1D | G18: 0D | H18: 6M | I18: 12M | J18: ModFol+EoM | K18: Act/360 | L18: 3L18 | M18: 12M | N18: ModFol+EoM | O18: Act/360 | P18: 3P18 | Q18: 0.00592 | R18: 2009-07-08 | S18: 2010-01-08 | T18: 2010-01-11 | U18: 0.9969833499 | V18: 1.647987302e-17 | X18: 0.9969833499 | Y18: TRUE | Z18: 2010-01-11 | AA18: 0.996983 | AB18: 0.003499349525
B19: 10 | C19: EUSWEG BGN Curncy | D19: Swap | E19: 2D | F19: 1D | G19: 0D | H19: 7M | I19: 12M | J19: ModFol+EoM | K19: Act/360 | L19: 3L19 | M19: 12M | N19: ModFol+EoM | O19: Act/360 | P19: 3P19 | Q19: 0.00603 | R19: 2009-07-08 | S19: 2010-02-08 | T19: 2010-02-09 | U19: 0.9964116725 | V19: 4.33680869e-19 | X19: 0.9964116725 | Y19: TRUE | Z19: 2010-02-09 | AA19: 0.996412 | AB19: -0.003275354629
B20: 11 | C20: EUSWEH BGN Curncy | D20: Swap | E20: 2D | F20: 1D | G20: 0D | H20: 8M | I20: 12M | J20: ModFol+EoM | K20: Act/360 | L20: 3L20 | M20: 12M | N20: ModFol+EoM | O20: Act/360 | P20: 3P20 | Q20: 0.00618 | R20: 2009-07-08 | S20: 2010-03-08 | T20: 2010-03-09 | U20: 0.9958458291 | V20: -5.204170428e-18 | X20: 0.9958458291 | Y20: TRUE | Z20: 2010-03-09 | AA20: 0.995846 | AB20: -0.0017087619
B21: 12 | C21: EUSWEI BGN Curncy | D21: Swap | E21: 2D | F21: 1D | G21: 0D | H21: 9M | I21: 12M | J21: ModFol+EoM | K21: Act/360 | L21: 3L21 | M21: 12M | N21: ModFol+EoM | O21: Act/360 | P21: 3P21 | Q21: 0.00644 | R21: 2009-07-08 | S21: 2010-04-08 | T21: 2010-04-09 | U21: 0.9951223525 | V21: 4.770489559e-17 | X21: 0.9951223525 | Y21: TRUE | Z21: 2010-04-09 | AA21: 0.995122 | AB21: 0.003525046234
B22: 13 | C22: EUSWEJ BGN Curncy | D22: Swap | E22: 2D | F22: 1D | G22: 0D | H22: 10M | I22: 12M | J22: ModFol+EoM | K22: Act/360 | L22: 3L22 | M22: 12M | N22: ModFol+EoM | O22: Act/360 | P22: 3P22 | Q22: 0.00666 | R22: 2009-07-08 | S22: 2010-05-10 | T22: 2010-05-11 | U22: 0.9943708665 | V22: -8.413408858e-17 | X22: 0.9943708665 | Y22: TRUE | Z22: 2010-05-11 | AA22: 0.994371 | AB22: -0.001334753956
B23: 14 | C23: EUSWEK BGN Curncy | D23: Swap | E23: 2D | F23: 1D | G23: 0D | H23: 11M | I23: 12M | J23: ModFol+EoM | K23: Act/360 | L23: 3L23 | M23: 12M | N23: ModFol+EoM | O23: Act/360 | P23: 3P23 | Q23: 0.00683 | R23: 2009-07-08 | S23: 2010-06-08 | T23: 2010-06-09 | U23: 0.9936844453 | V23: 5.811323645e-17 | X23: 0.9936844453 | Y23: TRUE | Z23: 2010-06-09 | AA23: 0.993684 | AB23: 0.004452915296
B24: 15 | C24: EUSWE1 BGN Curncy | D24: Swap | E24: 2D | F24: 1D | G24: 0D | H24: 12M | I24: 12M | J24: ModFol+EoM | K24: Act/360 | L24: 3L24 | M24: 12M | N24: ModFol+EoM | O24: Act/360 | P24: 3P24 | Q24: 0.00718 | R24: 2009-07-08 | S24: 2010-07-08 | T24: 2010-07-09 | U24: 0.9927728891 | V24: 6.245004514e-17 | X24: 0.9927728891 | Y24: TRUE | Z24: 2010-07-09 | AA24: 0.992773 | AB24: -0.001108626729
B25: 16 | C25: EUSWE1F BGN Curncy | D25: Swap | E25: 2D | F25: 1D | G25: 0D | H25: 18M | I25: 12M | J25: ModFol+EoM | K25: Act/360 | L25: 3L25 | M25: 12M | N25: ModFol+EoM | O25: Act/360 | P25: 3P25 | Q25: 0.00937 | R25: 2009-07-08 | S25: 2011-01-10 | T25: 2011-01-11 | U25: 0.9857961164 | V25: -2.602085214e-17 | X25: 0.9857961164 | Y25: TRUE | Z25: 2011-01-11 | AA25: 0.985796 | AB25: 0.00116369375
B26: 17 | C26: EUSWE2 BGN Curncy | D26: Swap | E26: 2D | F26: 1D | G26: 0D | H26: 2Y | I26: 12M | J26: ModFol+EoM | K26: Act/360 | L26: 3L26 | M26: 12M | N26: ModFol+EoM | O26: Act/360 | P26: 3P26 | Q26: 0.01195 | R26: 2009-07-08 | S26: 2011-07-08 | T26: 2011-07-11 | U26: 0.9761446498 | V26: 6.938893904e-18 | X26: 0.9761446498 | Y26: TRUE | Z26: 2011-07-11 | AA26: 0.976145 | AB26: -0.003502094958
B27: 18 | C27: EUSWE2F BGN Curncy | D27: Swap | E27: 2D | F27: 1D | G27: 0D | H27: 30M | I27: 12M | J27: ModFol+EoM | K27: Act/360 | L27: 3L27 | M27: 12M | N27: ModFol+EoM | O27: Act/360 | P27: 3P27 | Q27: 0.01451 | R27: 2009-07-08 | S27: 2012-01-09 | T27: 2012-01-10 | U27: 0.9638472611 | V27: 1.387778781e-17 | X27: 0.9638472611 | Y27: TRUE | Z27: 2012-01-10 | AA27: 0.963847 | AB27: 0.00261058293
B28: 19 | C28: EUSWE3 BGN Curncy | D28: Swap | E28: 2D | F28: 1D | G28: 0D | H28: 3Y | I28: 12M | J28: ModFol+EoM | K28: Act/360 | L28: 3L28 | M28: 12M | N28: ModFol+EoM | O28: Act/360 | P28: 3P28 | Q28: 0.017 | R28: 2009-07-08 | S28: 2012-07-09 | T28: 2012-07-10 | U28: 0.9496063136 | V28: 9.020562075e-17 | X28: 0.9496063136 | Y28: TRUE | Z28: 2012-07-10 | AA28: 0.949606 | AB28: 0.003135574114
B29: 20 | C29: EUSWE4 BGN Curncy | D29: Swap | E29: 2D | F29: 1D | G29: 0D | H29: 4Y | I29: 12M | J29: ModFol+EoM | K29: Act/360 | L29: 3L29 | M29: 12M | N29: ModFol+EoM | O29: Act/360 | P29: 3P29 | Q29: 0.02104 | R29: 2009-07-08 | S29: 2013-07-08 | T29: 2013-07-09 | U29: 0.9180989688 | V29: 8.326672685e-17 | X29: 0.9180989688 | Y29: TRUE | Z29: 2013-07-09 | AA29: 0.918099 | AB29: -0.0003124817816
B30: 21 | C30: EUSWE5 BGN Curncy | D30: Swap | E30: 2D | F30: 1D | G30: 0D | H30: 5Y | I30: 12M | J30: ModFol+EoM | K30: Act/360 | L30: 3L30 | M30: 12M | N30: ModFol+EoM | O30: Act/360 | P30: 3P30 | Q30: 0.02413 | R30: 2009-07-08 | S30: 2014-07-08 | T30: 2014-07-09 | U30: 0.8844329529 | V30: 0 | X30: 0.8844329529 | Y30: TRUE | Z30: 2014-07-09 | AA30: 0.884433 | AB30: -0.0004708508639
B31: 22 | C31: EUSWE6 BGN Curncy | D31: Swap | E31: 2D | F31: 1D | G31: 0D | H31: 6Y | I31: 12M | J31: ModFol+EoM | K31: Act/360 | L31: 3L31 | M31: 12M | N31: ModFol+EoM | O31: Act/360 | P31: 3P31 | Q31: 0.02656 | R31: 2009-07-08 | S31: 2015-07-08 | T31: 2015-07-09 | U31: 0.8499077577 | V31: -2.775557562e-17 | X31: 0.8499077577 | Y31: TRUE | Z31: 2015-07-09 | AA31: 0.849908 | AB31: -0.00242337739
B32: 23 | C32: EUSWE7 BGN Curncy | D32: Swap | E32: 2D | F32: 1D | G32: 0D | H32: 7Y | I32: 12M | J32: ModFol+EoM | K32: Act/360 | L32: 3L32 | M32: 12M | N32: ModFol+EoM | O32: Act/360 | P32: 3P32 | Q32: 0.02851 | R32: 2009-07-08 | S32: 2016-07-08 | T32: 2016-07-11 | U32: 0.8152578009 | V32: 2.775557562e-17 | X32: 0.8152578009 | Y32: TRUE | Z32: 2016-07-11 | AA32: 0.815258 | AB32: -0.001990884672
B33: 24 | C33: EUSWE8 BGN Curncy | D33: Swap | E33: 2D | F33: 1D | G33: 0D | H33: 8Y | I33: 12M | J33: ModFol+EoM | K33: Act/360 | L33: 3L33 | M33: 12M | N33: ModFol+EoM | O33: Act/360 | P33: 3P33 | Q33: 0.03007 | R33: 2009-07-08 | S33: 2017-07-10 | T33: 2017-07-11 | U33: 0.7812016455 | V33: 2.775557562e-17 | X33: 0.7812016455 | Y33: TRUE | Z33: 2017-07-11 | AA33: 0.781202 | AB33: -0.003545145715
B34: 25 | C34: EUSWE9 BGN Curncy | D34: Swap | E34: 2D | F34: 1D | G34: 0D | H34: 9Y | I34: 12M | J34: ModFol+EoM | K34: Act/360 | L34: 3L34 | M34: 12M | N34: ModFol+EoM | O34: Act/360 | P34: 3P34 | Q34: 0.03138 | R34: 2009-07-08 | S34: 2018-07-09 | T34: 2018-07-10 | U34: 0.7479385975 | V34: 0 | X34: 0.7479385975 | Y34: TRUE | Z34: 2018-07-10 | AA34: 0.747939 | AB34: -0.004025489913
B35: 26 | C35: EUSWE10 BGN Curncy | D35: Swap | E35: 2D | F35: 1D | G35: 0D | H35: 10Y | I35: 12M | J35: ModFol+EoM | K35: Act/360 | L35: 3L35 | M35: 12M | N35: ModFol+EoM | O35: Act/360 | P35: 3P35 | Q35: 0.03252 | R35: 2009-07-08 | S35: 2019-07-08 | T35: 2019-07-09 | U35: 0.7152626998 | V35: -5.551115123e-17 | X35: 0.7152626998 | Y35: TRUE | Z35: 2019-07-09 | AA35: 0.715263 | AB35: -0.003002042294
B36: 27 | C36: EUSWE11 BGN Curncy | D36: Swap | E36: 2D | F36: 1D | G36: 0D | H36: 11Y | I36: 12M | J36: ModFol+EoM | K36: Act/360 | L36: 3L36 | M36: 12M | N36: ModFol+EoM | O36: Act/360 | P36: 3P36 | Q36: 0.03356 | R36: 2009-07-08 | S36: 2020-07-08 | T36: 2020-07-09 | U36: 0.6828580485 | V36: -5.551115123e-17 | X36: 0.6828580485 | Y36: TRUE | Z36: 2020-07-09 | AA36: 0.682858 | AB36: 0.0004849924506
B37: 28 | C37: EUSWE12 BGN Curncy | D37: Swap | E37: 2D | F37: 1D | G37: 0D | H37: 12Y | I37: 12M | J37: ModFol+EoM | K37: Act/360 | L37: 3L37 | M37: 12M | N37: ModFol+EoM | O37: Act/360 | P37: 3P37 | Q37: 0.03451 | R37: 2009-07-08 | S37: 2021-07-08 | T37: 2021-07-09 | U37: 0.6510990464 | V37: 5.551115123e-17 | X37: 0.6510990464 | Y37: TRUE | Z37: 2021-07-09 | AA37: 0.651099 | AB37: 0.0004639103113
B38: 29 | C38: EUSWE15 BGN Curncy | D38: Swap | E38: 2D | F38: 1D | G38: 0D | H38: 15Y | I38: 12M | J38: ModFol+EoM | K38: Act/360 | L38: 3L38 | M38: 12M | N38: ModFol+EoM | O38: Act/360 | P38: 3P38 | Q38: 0.03664 | R38: 2009-07-08 | S38: 2024-07-08 | T38: 2024-07-09 | U38: 0.5635486337 | V38: 0 | X38: 0.5635486337 | Y38: TRUE | Z38: 2024-07-09 | AA38: 0.56355 | AB38: -0.01366295858
B39: 30 | C39: EUSWE20 BGN Curncy | D39: Swap | E39: 2D | F39: 1D | G39: 0D | H39: 20Y | I39: 12M | J39: ModFol+EoM | K39: Act/360 | L39: 3L39 | M39: 12M | N39: ModFol+EoM | O39: Act/360 | P39: 3P39 | Q39: 0.03819 | R39: 2009-07-08 | S39: 2029-07-09 | T39: 2029-07-10 | U39: 0.4495211968 | V39: 0 | X39: 0.4495211968 | Y39: TRUE | Z39: 2029-07-10 | AA39: 0.449522 | AB39: -0.00803228236
B40: 31 | C40: EUSWE25 BGN Curncy | D40: Swap | E40: 2D | F40: 1D | G40: 0D | H40: 25Y | I40: 12M | J40: ModFol+EoM | K40: Act/360 | L40: 3L40 | M40: 12M | N40: ModFol+EoM | O40: Act/360 | P40: 3P40 | Q40: 0.03801 | R40: 2009-07-08 | S40: 2034-07-10 | T40: 2034-07-11 | U40: 0.3743189603 | V40: 0 | X40: 0.3743189603 | Y40: TRUE | Z40: 2034-07-11 | AA40: 0.37432 | AB40: -0.01039717504
B41: 32 | C41: EUSWE30 BGN Curncy | D41: Swap | E41: 2D | F41: 1D | G41: 0D | H41: 30Y | I41: 12M | J41: ModFol+EoM | K41: Act/360 | L41: 3L41 | M41: 12M | N41: ModFol+EoM | O41: Act/360 | P41: 3P41 | Q41: 0.03747 | R41: 2009-07-08 | S41: 2039-07-08 | T41: 2039-07-11 | U41: 0.3186237386 | V41: 0 | X41: 0.3186237386 | Y41: TRUE | Z41: 2039-07-11 | AA41: 0.318625 | AB41: -0.01261407356

Sheet EUR.1M
C2: DF cell starts at: | D2: =GetCellAddress(U9) -> U9 | H2: trade date | J2: =EUR.OIS!$J$2 -> 2009-07-06 | L2: interp. mode | N2: LinearLogDisc
C3: PV cell starts at: | D3: =GetCellAddress(V9) -> V9 | H3: holiday list | J3: =Holidays!E4 -> 16E4 | L3: proj. curve | N3: =CreateCurve(T$9:T$38, U$9:U$38, N$2) -> 4N3
C4: # of products: | D4: =MAX(B:B) -> 29 | H4: stub period | J4: Rear | L4: disc. curve | N4: =EUR.OIS!N4 -> 3N4
C5: current calib. | D5: 0 | H5: fixing schedule | J5: 1
C7: Product | E7: Spot | F7: Pay | G7: Forward | I7: Receiving Leg1: Floating | M7: Paying Leg2: Fixed | Q7: Market | R7: Effective Date | S7: Maturity Date | T7: Last Payment | U7: Discount | V7: Present | X7: Comparison to outputs in Bloomberg Terminal
B8: No. | C8: Ticker | D8: Type | E8: Lag | F8: Lag | G8: Start | H8: Tenor | I8: Period | J8: Date Rolling | K8: Day Count | L8: Leg ID | M8: Period | N8: Date Rolling | O8: Day Count | P8: Leg ID | Q8: Rate | R8: Start of Accrual | S8: End of Accrual | T8: Date | U8: Factor | V8: Value | X8: Derived | Z8: Date | AA8: Reference | AB8: diff.(bps)
T9: =R10 -> 2009-07-08 | U9: 1 | X9: D. Factor | Z9: =T9 -> 2009-07-08 | AA9: D. Factor
B10: =B9+1 -> 1 | C10: EUR001M Index | D10: Swap | E10: 2D | F10: 0D | G10: 0D | H10: 1M | I10: 1M | J10: ModFol+EoM | K10: Act/360 | L10: =CreateLeg($J$2:$J$5, $D10:$H10, I10:K10) -> 4L10 | M10: 12M | N10: ModFol+EoM | O10: Act/360 | P10: =CreateLeg($J$2:$J$5, $D10:$H10, M10:O10) -> 4P10 | Q10: 0.00684 | R10: =GetEffectiveDate($P10) -> 2009-07-08 | S10: =GetMaturityDate($P10) -> 2009-08-10 | T10: =GetLastPaymentDate($P10) -> 2009-08-10 | U10: 0.9993733929 | V10: =IF(OR($D$5=0,$D$5=B10), GetLegPV(L10,$N$3,$N$4,0) - GetLegPV(P10,Q10,$N$4,0)) -> -6.689527404e-17 | X10: =GetCurveDiscountFactor($N$3,Z10) -> 0.9993733929 | Y10: =S10=Z10 -> TRUE | Z10: 2009-08-10 | AA10: 0.99937 | AB10: =(X10-AA10)*10000 -> 0.03392882663
B11: 2 | C11: EUSWBV1 CMPN Curncy | D11: Swap | E11: 2D | F11: 0D | G11: 0D | H11: 2M | I11: 1M | J11: ModFol+EoM | K11: Act/360 | L11: =CreateLeg($J$2:$J$5, $D11:$H11, I11:K11) -> 4L11 | M11: 12M | N11: ModFol+EoM | O11: Act/360 | P11: =CreateLeg($J$2:$J$5, $D11:$H11, M11:O11) -> 4P11 | Q11: 0.00665 | R11: =GetEffectiveDate($P11) -> 2009-07-08 | S11: =GetMaturityDate($P11) -> 2009-09-08 | T11: =GetLastPaymentDate($P11) -> 2009-09-08 | U11: 0.9988559909 | V11: 1.047339299e-16 | X11: =GetCurveDiscountFactor($N$3,Z11) -> 0.9988559909 | Y11: TRUE | Z11: 2009-09-08 | AA11: 0.99886 | AB11: =(X11-AA11)*10000 -> -0.04009082008
B12: 3 | C12: EUSWCV1 CMPN Curncy | D12: Swap | E12: 2D | F12: 0D | G12: 0D | H12: 3M | I12: 1M | J12: ModFol+EoM | K12: Act/360 | L12: 4L12 | M12: 12M | N12: ModFol+EoM | O12: Act/360 | P12: 4P12 | Q12: 0.00672 | R12: 2009-07-08 | S12: 2009-10-08 | T12: 2009-10-08 | U12: 0.9982854879 | V12: 6.245004514e-17 | X12: 0.9982854879 | Y12: TRUE | Z12: 2009-10-08 | AA12: 0.99829 | AB12: -0.04512055458
B13: 4 | C13: EUSWDV1 CMPN Curncy | D13: Swap | E13: 2D | F13: 0D | G13: 0D | H13: 4M | I13: 1M | J13: ModFol+EoM | K13: Act/360 | L13: 4L13 | M13: 12M | N13: ModFol+EoM | O13: Act/360 | P13: 4P13 | Q13: 0.00677 | R13: 2009-07-08 | S13: 2009-11-09 | T13: 2009-11-09 | U13: 0.9976733093 | V13: -7.285838599e-17 | X13: 0.9976733093 | Y13: TRUE | Z13: 2009-11-09 | AA13: 0.99767 | AB13: 0.03309331654
B14: 5 | C14: EUSWEV1 CMPN Curncy | D14: Swap | E14: 2D | F14: 0D | G14: 0D | H14: 5M | I14: 1M | J14: ModFol+EoM | K14: Act/360 | L14: 4L14 | M14: 12M | N14: ModFol+EoM | O14: Act/360 | P14: 4P14 | Q14: 0.00694 | R14: 2009-07-08 | S14: 2009-12-08 | T14: 2009-12-08 | U14: 0.9970587044 | V14: -8.716985467e-17 | X14: 0.9970587044 | Y14: TRUE | Z14: 2009-12-08 | AA14: 0.99706 | AB14: -0.01295554424
B15: 6 | C15: EUSWFV1 CMPN Curncy | D15: Swap | E15: 2D | F15: 0D | G15: 0D | H15: 6M | I15: 1M | J15: ModFol+EoM | K15: Act/360 | L15: 4L15 | M15: 12M | N15: ModFol+EoM | O15: Act/360 | P15: 4P15 | Q15: 0.00728 | R15: 2009-07-08 | S15: 2010-01-08 | T15: 2010-01-08 | U15: 0.9962917563 | V15: -1.691355389e-17 | X15: 0.9962917563 | Y15: TRUE | Z15: 2010-01-08 | AA15: 0.99629 | AB15: 0.01756299323
B16: 7 | C16: EUSWGV1 CMPN Curncy | D16: Swap | E16: 2D | F16: 0D | G16: 0D | H16: 7M | I16: 1M | J16: ModFol+EoM | K16: Act/360 | L16: 4L16 | M16: 12M | N16: ModFol+EoM | O16: Act/360 | P16: 4P16 | Q16: 0.00772 | R16: 2009-07-08 | S16: 2010-02-08 | T16: 2010-02-08 | U16: 0.995408419 | V16: -9.974659987e-17 | X16: 0.995408419 | Y16: TRUE | Z16: 2010-02-08 | AA16: 0.99541 | AB16: -0.01580984146
B17: 8 | C17: EUSWHV1 CMPN Curncy | D17: Swap | E17: 2D | F17: 0D | G17: 0D | H17: 8M | I17: 1M | J17: ModFol+EoM | K17: Act/360 | L17: 4L17 | M17: 12M | N17: ModFol+EoM | O17: Act/360 | P17: 4P17 | Q17: 0.00746 | R17: 2009-07-08 | S17: 2010-03-08 | T17: 2010-03-08 | U17: 0.9949882086 | V17: 5.204170428e-18 | X17: 0.9949882086 | Y17: TRUE | Z17: 2010-03-08 | AA17: 0.99499 | AB17: -0.01791426098
B18: 9 | C18: EUSWIV1 CMPN Curncy | D18: Swap | E18: 2D | F18: 0D | G18: 0D | H18: 9M | I18: 1M | J18: ModFol+EoM | K18: Act/360 | L18: 4L18 | M18: 12M | N18: ModFol+EoM | O18: Act/360 | P18: 4P18 | Q18: 0.00769 | R18: 2009-07-08 | S18: 2010-04-08 | T18: 2010-04-08 | U18: 0.9941791462 | V18: -7.719519468e-17 | X18: 0.9941791462 | Y18: TRUE | Z18: 2010-04-08 | AA18: 0.99418 | AB18: -0.008538463862
B19: 10 | C19: EUSWJV1 CMPN Curncy | D19: Swap | E19: 2D | F19: 0D | G19: 0D | H19: 10M | I19: 1M | J19: ModFol+EoM | K19: Act/360 | L19: 4L19 | M19: 12M | N19: ModFol+EoM | O19: Act/360 | P19: 4P19 | Q19: 0.00788 | R19: 2009-07-08 | S19: 2010-05-10 | T19: 2010-05-10 | U19: 0.9933441081 | V19: 2.341876693e-17 | X19: 0.9933441081 | Y19: TRUE | Z19: 2010-05-10 | AA19: 0.99334 | AB19: 0.04108105518
B20: 11 | C20: EUSWKV1 CMPN Curncy | D20: Swap | E20: 2D | F20: 0D | G20: 0D | H20: 11M | I20: 1M | J20: ModFol+EoM | K20: Act/360 | L20: 4L20 | M20: 12M | N20: ModFol+EoM | O20: Act/360 | P20: 4P20 | Q20: 0.00802 | R20: 2009-07-08 | S20: 2010-06-08 | T20: 2010-06-08 | U20: 0.9925893134 | V20: -4.33680869e-17 | X20: 0.9925893134 | Y20: TRUE | Z20: 2010-06-08 | AA20: 0.99259 | AB20: -0.006866375517
B21: 12 | C21: EUSW1V1 CMPN Curncy | D21: Swap | E21: 2D | F21: 0D | G21: 0D | H21: 12M | I21: 1M | J21: ModFol+EoM | K21: Act/360 | L21: 4L21 | M21: 12M | N21: ModFol+EoM | O21: 30E/360 | P21: 4P21 | Q21: 0.00835 | R21: 2009-07-08 | S21: 2010-07-08 | T21: 2010-07-08 | U21: 0.9917164615 | V21: -8.67361738e-18 | X21: 0.9917164615 | Y21: TRUE | Z21: 2010-07-08 | AA21: 0.99172 | AB21: -0.03538518084
B22: 13 | C22: EUSW1CV1 CMPN Curncy | D22: Swap | E22: 2D | F22: 0D | G22: 0D | H22: 15M | I22: 1M | J22: ModFol+EoM | K22: Act/360 | L22: 4L22 | M22: 12M | N22: ModFol+EoM | O22: 30E/360 | P22: 4P22 | Q22: 0.00931 | R22: 2009-07-08 | S22: 2010-10-08 | T22: 2010-10-08 | U22: 0.988463798 | V22: 2.602085214e-17 | X22: 0.988463798 | Y22: TRUE | Z22: 2010-10-08 | AA22: 0.98846 | AB22: 0.03798046765
B23: 14 | C23: EUSW1FV1 CMPN Curncy | D23: Swap | E23: 2D | F23: 0D | G23: 0D | H23: 18M | I23: 1M | J23: ModFol+EoM | K23: Act/360 | L23: 4L23 | M23: 12M | N23: ModFol+EoM | O23: 30E/360 | P23: 4P23 | Q23: 0.01063 | R23: 2009-07-08 | S23: 2011-01-10 | T23: 2011-01-10 | U23: 0.9841642448 | V23: 7.285838599e-17 | X23: 0.9841642448 | Y23: TRUE | Z23: 2011-01-10 | AA23: 0.98416 | AB23: 0.04244815043
B24: 15 | C24: EUSW1IV1 CMPN Curncy | D24: Swap | E24: 2D | F24: 0D | G24: 0D | H24: 21M | I24: 1M | J24: ModFol+EoM | K24: Act/360 | L24: 4L24 | M24: 12M | N24: ModFol+EoM | O24: 30E/360 | P24: 4P24 | Q24: 0.01186 | R24: 2009-07-08 | S24: 2011-04-08 | T24: 2011-04-08 | U24: 0.9795215154 | V24: 2.775557562e-17 | X24: 0.9795215154 | Y24: TRUE | Z24: 2011-04-08 | AA24: 0.97952 | AB24: 0.01515421634
B25: 16 | C25: EUSW2V1 CMPN Curncy | D25: Swap | E25: 2D | F25: 0D | G25: 0D | H25: 2Y | I25: 1M | J25: ModFol+EoM | K25: Act/360 | L25: 4L25 | M25: 12M | N25: ModFol+EoM | O25: 30E/360 | P25: 4P25 | Q25: 0.01338 | R25: 2009-07-08 | S25: 2011-07-08 | T25: 2011-07-08 | U25: 0.973690448 | V25: 7.632783294e-17 | X25: 0.973690448 | Y25: TRUE | Z25: 2011-07-08 | AA25: 0.97369 | AB25: 0.004479827449
B26: 17 | C26: EUSW3V1 CMPN Curncy | D26: Swap | E26: 2D | F26: 0D | G26: 0D | H26: 3Y | I26: 1M | J26: ModFol+EoM | K26: Act/360 | L26: 4L26 | M26: 12M | N26: ModFol+EoM | O26: 30E/360 | P26: 4P26 | Q26: 0.01863 | R26: 2009-07-08 | S26: 2012-07-09 | T26: 2012-07-09 | U26: 0.9457252922 | V26: 3.469446952e-17 | X26: 0.9457252922 | Y26: TRUE | Z26: 2012-07-09 | AA26: 0.94573 | AB26: -0.04707750963
B27: 18 | C27: EUSW4V1 CMPN Curncy | D27: Swap | E27: 2D | F27: 0D | G27: 0D | H27: 4Y | I27: 1M | J27: ModFol+EoM | K27: Act/360 | L27: 4L27 | M27: 12M | N27: ModFol+EoM | O27: 30E/360 | P27: 4P27 | Q27: 0.02278 | R27: 2009-07-08 | S27: 2013-07-08 | T27: 2013-07-08 | U27: 0.912908916 | V27: 8.326672685e-17 | X27: 0.912908916 | Y27: TRUE | Z27: 2013-07-08 | AA27: 0.91291 | AB27: -0.01084033799
B28: 19 | C28: EUSW5V1 CMPN Curncy | D28: Swap | E28: 2D | F28: 0D | G28: 0D | H28: 5Y | I28: 1M | J28: ModFol+EoM | K28: Act/360 | L28: 4L28 | M28: 12M | N28: ModFol+EoM | O28: 30E/360 | P28: 4P28 | Q28: 0.02596 | R28: 2009-07-08 | S28: 2014-07-08 | T28: 2014-07-08 | U28: 0.8779783535 | V28: -8.326672685e-17 | X28: 0.8779783535 | Y28: TRUE | Z28: 2014-07-08 | AA28: 0.87798 | AB28: -0.01646535849
B29: 20 | C29: EUSW6V1 CMPN Curncy | D29: Swap | E29: 2D | F29: 0D | G29: 0D | H29: 6Y | I29: 1M | J29: ModFol+EoM | K29: Act/360 | L29: 4L29 | M29: 12M | N29: ModFol+EoM | O29: 30E/360 | P29: 4P29 | Q29: 0.02848 | R29: 2009-07-08 | S29: 2015-07-08 | T29: 2015-07-08 | U29: 0.8421743798 | V29: 8.326672685e-17 | X29: 0.8421743798 | Y29: TRUE | Z29: 2015-07-08 | AA29: 0.84217 | AB29: 0.04379836355
B30: 21 | C30: EUSW7V1 CMPN Curncy | D30: Swap | E30: 2D | F30: 0D | G30: 0D | H30: 7Y | I30: 1M | J30: ModFol+EoM | K30: Act/360 | L30: 4L30 | M30: 12M | N30: ModFol+EoM | O30: 30E/360 | P30: 4P30 | Q30: 0.03051 | R30: 2009-07-08 | S30: 2016-07-08 | T30: 2016-07-08 | U30: 0.8063553145 | V30: 2.775557562e-17 | X30: 0.8063553145 | Y30: TRUE | Z30: 2016-07-08 | AA30: 0.80636 | AB30: -0.04685480485
B31: 22 | C31: EUSW8V1 CMPN Curncy | D31: Swap | E31: 2D | F31: 0D | G31: 0D | H31: 8Y | I31: 1M | J31: ModFol+EoM | K31: Act/360 | L31: 4L31 | M31: 12M | N31: ModFol+EoM | O31: 30E/360 | P31: 4P31 | Q31: 0.03212 | R31: 2009-07-08 | S31: 2017-07-10 | T31: 2017-07-10 | U31: 0.7712675961 | V31: 8.326672685e-17 | X31: 0.7712675961 | Y31: TRUE | Z31: 2017-07-10 | AA31: 0.77127 | AB31: -0.02403949736
B32: 23 | C32: EUSW9V1 CMPN Curncy | D32: Swap | E32: 2D | F32: 0D | G32: 0D | H32: 9Y | I32: 1M | J32: ModFol+EoM | K32: Act/360 | L32: 4L32 | M32: 12M | N32: ModFol+EoM | O32: 30E/360 | P32: 4P32 | Q32: 0.03346 | R32: 2009-07-08 | S32: 2018-07-09 | T32: 2018-07-09 | U32: 0.737171554 | V32: 0 | X32: 0.737171554 | Y32: TRUE | Z32: 2018-07-09 | AA32: 0.73717 | AB32: 0.01554026353
B33: 24 | C33: EUSW10V1 CMPN Curncy | D33: Swap | E33: 2D | F33: 0D | G33: 0D | H33: 10Y | I33: 1M | J33: ModFol+EoM | K33: Act/360 | L33: 4L33 | M33: 12M | N33: ModFol+EoM | O33: 30E/360 | P33: 4P33 | Q33: 0.03463 | R33: 2009-07-08 | S33: 2019-07-08 | T33: 2019-07-08 | U33: 0.7037276559 | V33: -5.551115123e-17 | X33: 0.7037276559 | Y33: TRUE | Z33: 2019-07-08 | AA33: 0.70373 | AB33: -0.02344065898
B34: 25 | C34: EUSW12V1 CMPN Curncy | D34: Swap | E34: 2D | F34: 0D | G34: 0D | H34: 12Y | I34: 1M | J34: ModFol+EoM | K34: Act/360 | L34: 4L34 | M34: 12M | N34: ModFol+EoM | O34: 30E/360 | P34: 4P34 | Q34: 0.03667 | R34: 2009-07-08 | S34: 2021-07-08 | T34: 2021-07-08 | U34: 0.6384144401 | V34: 0 | X34: 0.6384144401 | Y34: TRUE | Z34: 2021-07-08 | AA34: 0.63841 | AB34: 0.04440116034
B35: 26 | C35: EUSW15V1 CMPN Curncy | D35: Swap | E35: 2D | F35: 0D | G35: 0D | H35: 15Y | I35: 1M | J35: ModFol+EoM | K35: Act/360 | L35: 4L35 | M35: 12M | N35: ModFol+EoM | O35: 30E/360 | P35: 4P35 | Q35: 0.03883 | R35: 2009-07-08 | S35: 2024-07-08 | T35: 2024-07-08 | U35: 0.549924692 | V35: -2.775557562e-16 | X35: 0.549924692 | Y35: TRUE | Z35: 2024-07-08 | AA35: 0.54993 | AB35: -0.05308039212
B36: 27 | C36: EUSW20V1 CMPN Curncy | D36: Swap | E36: 2D | F36: 0D | G36: 0D | H36: 20Y | I36: 1M | J36: ModFol+EoM | K36: Act/360 | L36: 4L36 | M36: 12M | N36: ModFol+EoM | O36: 30E/360 | P36: 4P36 | Q36: 0.04041 | R36: 2009-07-08 | S36: 2029-07-09 | T36: 2029-07-09 | U36: 0.4350187681 | V36: -2.220446049e-16 | X36: 0.4350187681 | Y36: TRUE | Z36: 2029-07-09 | AA36: 0.43502 | AB36: -0.01231905577
B37: 28 | C37: EUSW25V1 CMPN Curncy | D37: Swap | E37: 2D | F37: 0D | G37: 0D | H37: 25Y | I37: 1M | J37: ModFol+EoM | K37: Act/360 | L37: 4L37 | M37: 12M | N37: ModFol+EoM | O37: 30E/360 | P37: 4P37 | Q37: 0.04025 | R37: 2009-07-08 | S37: 2034-07-10 | T37: 2034-07-10 | U37: 0.3589702951 | V37: 1.110223025e-16 | X37: 0.3589702951 | Y37: TRUE | Z37: 2034-07-10 | AA37: 0.35897 | AB37: 0.002951191027
B38: 29 | C38: EUSW30V1 CMPN Curncy | D38: Swap | E38: 2D | F38: 0D | G38: 0D | H38: 30Y | I38: 1M | J38: ModFol+EoM | K38: Act/360 | L38: 4L38 | M38: 12M | N38: ModFol+EoM | O38: 30E/360 | P38: 4P38 | Q38: 0.03973 | R38: 2009-07-08 | S38: 2039-07-08 | T38: 2039-07-08 | U38: 0.3025983356 | V38: 1.110223025e-16 | X38: 0.3025983356 | Y38: TRUE | Z38: 2039-07-08 | AA38: 0.3026 | AB38: -0.01664410199

Sheet EUR.3M
C2: DF cell starts at: | D2: =GetCellAddress(U9) -> U9 | H2: trade date | J2: =EUR.OIS!$J$2 -> 2009-07-06 | L2: interp. mode | N2: LinearLogDisc
C3: PV cell starts at: | D3: =GetCellAddress(V9) -> V9 | H3: holiday list | J3: =Holidays!E4 -> 16E4 | L3: proj. curve | N3: =CreateCurve(T$9:T$36, U$9:U$36, N$2) -> 5N3
C4: # of products: | D4: =MAX(B:B) -> 27 | H4: stub period | J4: Rear | L4: disc. curve | N4: =EUR.OIS!N4 -> 3N4
C5: current calib. | D5: 0 | H5: fixing schedule | J5: 0
C7: Product | E7: Spot | F7: Pay | G7: Forward | I7: Receiving Leg1: Floating | M7: Paying Leg2: Fixed | Q7: Market | R7: Effective Date | S7: Maturity Date | T7: Last Payment | U7: Discount | V7: Present | X7: Comparison to outputs in Bloomberg Terminal
B8: No. | C8: Ticker | D8: Type | E8: Lag | F8: Lag | G8: Start | H8: Tenor | I8: Period | J8: Date Rolling | K8: Day Count | L8: Leg ID | M8: Period | N8: Date Rolling | O8: Day Count | P8: Leg ID | Q8: Rate | R8: Start of Accrual | S8: End of Accrual | T8: Date | U8: Factor | V8: Value | X8: Derived | Z8: Date | AA8: Reference | AB8: diff.(bps)
T9: =R10 -> 2009-07-08 | U9: 1 | X9: D. Factor | Z9: =T9 -> 2009-07-08 | AA9: D. Factor
B10: =B9+1 -> 1 | C10: EUR003M Index | D10: Cash | E10: 2D | F10: 0D | G10: 0D | H10: 3M | I10: 3M | J10: ModFol+EoM | K10: Act/360 | L10: =CreateLeg($J$2:$J$5, $D10:$H10, I10:K10) -> 5L10 | M10: 12M | N10: ModFol+EoM | O10: Act/360 | P10: =CreateLeg($J$2:$J$5, $D10:$H10, M10:O10) -> 5P10 | Q10: 0.01048 | R10: =GetEffectiveDate($L10) -> 2009-07-08 | S10: =GetMaturityDate($L10) -> 2009-10-08 | T10: =GetLastPaymentDate($L10) -> 2009-10-08 | U10: 0.9973289315 | V10: =IF(OR($D$5=0,$D$5=B10), GetLegPV(L10,$N$3,$N$4,0) - GetLegPV(P10,Q10,$N$4,0)) -> -8.456776945e-17 | X10: =GetCurveDiscountFactor($N$3,Z10) -> 0.9973289315 | Y10: =S10=Z10 -> TRUE | Z10: 2009-10-08 | AA10: 0.99733 | AB10: =(X10-AA10)*10000 -> -0.01068507189
B11: 2 | C11: ERN09 Comdty | D11: FRA | E11: 2D | F11: 0D | G11: 1serial | H11: 3M | I11: 3M | J11: ModFol+EoM | K11: Act/360 | L11: =CreateLeg($J$2:$J$5, $D11:$H11, I11:K11) -> 5L11 | M11: 12M | N11: ModFol+EoM | O11: Act/360 | P11: =CreateLeg($J$2:$J$5, $D11:$H11, M11:O11) -> 5P11 | Q11: 0.0101 | R11: =GetEffectiveDate($L11) -> 2009-07-15 | S11: =GetMaturityDate($L11) -> 2009-10-15 | T11: 2009-10-15 | U11: 0.9972225731 | V11: 3.382710778e-17 | X11: 0.9970660677 | Y11: FALSE | Z11: 2009-10-21 | AA11: 0.99706 | AB11: =(X11-AA11)*10000 -> 0.06067669631
B12: 3 | C12: ERQ09 Comdty | D12: FRA | E12: 2D | F12: 0D | G12: 2serial | H12: 3M | I12: 3M | J12: ModFol+EoM | K12: Act/360 | L12: 5L12 | M12: 12M | N12: ModFol+EoM | O12: Act/360 | P12: 5P12 | Q12: 0.0097 | R12: 2009-08-19 | S12: 2009-11-19 | T12: 2009-11-19 | U12: 0.9963099711 | V12: 3.035766083e-17 | X12: 0.9963360339 | Y12: FALSE | Z12: 2009-11-18 | AA12: 0.99634 | AB12: -0.03966111502
B13: 4 | C13: ERU09 Comdty | D13: FRA | E13: 2D | F13: 0D | G13: 1imm | H13: 3M | I13: 3M | J13: ModFol+EoM | K13: Act/360 | L13: 5L13 | M13: 12M | N13: ModFol+EoM | O13: Act/360 | P13: 5P13 | Q13: 0.0095 | R13: 2009-09-16 | S13: 2009-12-16 | T13: 2009-12-16 | U13: 0.9955762497 | V13: 7.806255642e-17 | X13: 0.9955762497 | Y13: TRUE | Z13: 2009-12-16 | AA13: 0.99558 | AB13: -0.03750255486
B14: 5 | C14: ERV09 Comdty | D14: FRA | E14: 2D | F14: 0D | G14: 3serial | H14: 3M | I14: 3M | J14: ModFol+EoM | K14: Act/360 | L14: 5L14 | M14: 12M | N14: ModFol+EoM | O14: Act/360 | P14: 5P14 | Q14: 0.0102 | R14: 2009-10-21 | S14: 2010-01-21 | T14: 2010-01-21 | U14: 0.9944738059 | V14: -2.081668171e-17 | X14: 0.9945044129 | Y14: FALSE | Z14: 2010-01-20 | AA14: 0.99449 | AB14: 0.1441289697
B15: 6 | C15: ERX09 Comdty | D15: FRA | E15: 2D | F15: 0D | G15: 4serial | H15: 3M | I15: 3M | J15: ModFol+EoM | K15: Act/360 | L15: 5L15 | M15: 12M | N15: ModFol+EoM | O15: Act/360 | P15: 5P15 | Q15: 0.01054 | R15: 2009-11-18 | S15: 2010-02-18 | T15: 2010-02-18 | U15: 0.9936595567 | V15: 6.028164079e-17 | X15: 0.9936886255 | Y15: FALSE | Z15: 2010-02-17 | AA15: 0.99369 | AB15: -0.01374482462
B16: 7 | C16: ERZ09 Comdty | D16: FRA | E16: 2D | F16: 0D | G16: 2imm | H16: 3M | I16: 3M | J16: ModFol+EoM | K16: Act/360 | L16: 5L16 | M16: 12M | N16: ModFol+EoM | O16: Act/360 | P16: 5P16 | Q16: 0.01064 | R16: 2009-12-16 | S16: 2010-03-16 | T16: 2010-03-16 | U16: 0.9929350425 | V16: 1.062518129e-16 | X16: 0.9929030133 | Y16: FALSE | Z16: 2010-03-17 | AA16: 0.99291 | AB16: -0.06986695766
B17: 8 | C17: ERH10 Comdty | D17: FRA | E17: 2D | F17: 0D | G17: 3imm | H17: 3M | I17: 3M | J17: ModFol+EoM | K17: Act/360 | L17: 5L17 | M17: 12M | N17: ModFol+EoM | O17: Act/360 | P17: 5P17 | Q17: 0.01163 | R17: 2010-03-17 | S17: 2010-06-17 | T17: 2010-06-17 | U17: 0.98996074 | V17: 6.461844948e-17 | X17: 0.9899926743 | Y17: FALSE | Z17: 2010-06-16 | AA17: 0.99 | AB17: -0.07325695837
B18: 9 | C18: ERM10 Comdty | D18: FRA | E18: 2D | F18: 0D | G18: 4imm | H18: 3M | I18: 3M | J18: ModFol+EoM | K18: Act/360 | L18: 5L18 | M18: 12M | N18: ModFol+EoM | O18: Act/360 | P18: 5P18 | Q18: 0.01401 | R18: 2010-06-16 | S18: 2010-09-16 | T18: 2010-09-16 | U18: 0.9864608158 | V18: -3.599551213e-17 | X18: 0.9864992091 | Y18: FALSE | Z18: 2010-09-15 | AA18: 0.9865 | AB18: -0.007908512245
B19: 10 | C19: ERU10 Comdty | D19: FRA | E19: 2D | F19: 0D | G19: 5imm | H19: 3M | I19: 3M | J19: ModFol+EoM | K19: Act/360 | L19: 5L19 | M19: 12M | N19: ModFol+EoM | O19: Act/360 | P19: 5P19 | Q19: 0.01679 | R19: 2010-09-15 | S19: 2010-12-15 | T19: 2010-12-15 | U19: 0.9823300639 | V19: 8.153200337e-17 | X19: 0.9823300639 | Y19: TRUE | Z19: 2010-12-15 | AA19: 0.98233 | AB19: 0.000639227562
B20: 11 | C20: ERZ10 Comdty | D20: FRA | E20: 2D | F20: 0D | G20: 6imm | H20: 3M | I20: 3M | J20: ModFol+EoM | K20: Act/360 | L20: 5L20 | M20: 12M | N20: ModFol+EoM | O20: Act/360 | P20: 5P20 | Q20: 0.02017 | R20: 2010-12-15 | S20: 2011-03-15 | T20: 2011-03-15 | U20: 0.9774015168 | V20: 5.984795992e-17 | X20: 0.9773393914 | Y20: FALSE | Z20: 2011-03-16 | AA20: 0.97735 | AB20: -0.1060858695
B21: 12 | C21: ERH11 Comdty | D21: FRA | E21: 2D | F21: 0D | G21: 7imm | H21: 3M | I21: 3M | J21: ModFol+EoM | K21: Act/360 | L21: 5L21 | M21: 12M | N21: ModFol+EoM | O21: Act/360 | P21: 5P21 | Q21: 0.02295 | R21: 2011-03-16 | S21: 2011-06-16 | T21: 2011-06-16 | U21: 0.9716407186 | V21: 9.540979118e-18 | X21: 0.9717024817 | Y21: FALSE | Z21: 2011-06-15 | AA21: 0.97171 | AB21: -0.07518280862
B22: 13 | C22: ERM11 Comdty | D22: FRA | E22: 2D | F22: 0D | G22: 8imm | H22: 3M | I22: 3M | J22: ModFol+EoM | K22: Act/360 | L22: 5L22 | M22: 12M | N22: ModFol+EoM | O22: Act/360 | P22: 5P22 | Q22: 0.02582 | R22: 2011-06-15 | S22: 2011-09-15 | T22: 2011-09-15 | U22: 0.965332787 | V22: 1.82145965e-17 | X22: 0.9648463641 | Y22: FALSE | Z22: 2011-09-21 | AA22: 0.96493 | AB22: -0.8363593078
B23: 14 | C23: EUSW3V3 BGN Curncy | D23: Swap | E23: 2D | F23: 0D | G23: 0D | H23: 3Y | I23: 3M | J23: ModFol+EoM | K23: Act/360 | L23: 5L23 | M23: 12M | N23: ModFol+EoM | O23: 30E/360 | P23: 5P23 | Q23: 0.02017 | R23: 2009-07-08 | S23: 2012-07-09 | T23: 2012-07-09 | U23: 0.9414676481 | V23: -2.91433544e-16 | X23: 0.9414676481 | Y23: TRUE | Z23: 2012-07-09 | AA23: 0.94144 | AB23: 0.2764808883
B24: 15 | C24: EUSW4V3 BGN Curncy | D24: Swap | E24: 2D | F24: 0D | G24: 0D | H24: 4Y | I24: 3M | J24: ModFol+EoM | K24: Act/360 | L24: 5L24 | M24: 12M | N24: ModFol+EoM | O24: 30E/360 | P24: 5P24 | Q24: 0.02403 | R24: 2009-07-08 | S24: 2013-07-08 | T24: 2013-07-08 | U24: 0.9085156368 | V24: 6.938893904e-17 | X24: 0.9085156368 | Y24: TRUE | Z24: 2013-07-08 | AA24: 0.90849 | AB24: 0.256368351
B25: 16 | C25: EUSW5V3 BGN Curncy | D25: Swap | E25: 2D | F25: 0D | G25: 0D | H25: 5Y | I25: 3M | J25: ModFol+EoM | K25: Act/360 | L25: 5L25 | M25: 12M | N25: ModFol+EoM | O25: 30E/360 | P25: 5P25 | Q25: 0.027 | R25: 2009-07-08 | S25: 2014-07-08 | T25: 2014-07-08 | U25: 0.8736477892 | V25: -5.551115123e-17 | X25: 0.8736477892 | Y25: TRUE | Z25: 2014-07-08 | AA25: 0.87362 | AB25: 0.277892233
B26: 17 | C26: EUSW6V3 BGN Curncy | D26: Swap | E26: 2D | F26: 0D | G26: 0D | H26: 6Y | I26: 3M | J26: ModFol+EoM | K26: Act/360 | L26: 5L26 | M26: 12M | N26: ModFol+EoM | O26: 30E/360 | P26: 5P26 | Q26: 0.02939 | R26: 2009-07-08 | S26: 2015-07-08 | T26: 2015-07-08 | U26: 0.8378721978 | V26: -1.110223025e-16 | X26: 0.8378721978 | Y26: TRUE | Z26: 2015-07-08 | AA26: 0.83785 | AB26: 0.2219782273
B27: 18 | C27: EUSW7V3 BGN Curncy | D27: Swap | E27: 2D | F27: 0D | G27: 0D | H27: 7Y | I27: 3M | J27: ModFol+EoM | K27: Act/360 | L27: 5L27 | M27: 12M | N27: ModFol+EoM | O27: 30E/360 | P27: 5P27 | Q27: 0.03129 | R27: 2009-07-08 | S27: 2016-07-08 | T27: 2016-07-08 | U27: 0.8023265821 | V27: 2.775557562e-17 | X27: 0.8023265821 | Y27: TRUE | Z27: 2016-07-08 | AA27: 0.8023 | AB27: 0.2658214925
B28: 19 | C28: EUSW8V3 BGN Curncy | D28: Swap | E28: 2D | F28: 0D | G28: 0D | H28: 8Y | I28: 3M | J28: ModFol+EoM | K28: Act/360 | L28: 5L28 | M28: 12M | N28: ModFol+EoM | O28: 30E/360 | P28: 5P28 | Q28: 0.03282 | R28: 2009-07-08 | S28: 2017-07-10 | T28: 2017-07-10 | U28: 0.7673819237 | V28: 9.511835763e-14 | X28: 0.7673819237 | Y28: TRUE | Z28: 2017-07-10 | AA28: 0.76736 | AB28: 0.2192374011
B29: 20 | C29: EUSW9V3 BGN Curncy | D29: Swap | E29: 2D | F29: 0D | G29: 0D | H29: 9Y | I29: 3M | J29: ModFol+EoM | K29: Act/360 | L29: 5L29 | M29: 12M | N29: ModFol+EoM | O29: 30E/360 | P29: 5P29 | Q29: 0.0341 | R29: 2009-07-08 | S29: 2018-07-09 | T29: 2018-07-09 | U29: 0.7334185194 | V29: 9.520162436e-14 | X29: 0.7334185194 | Y29: TRUE | Z29: 2018-07-09 | AA29: 0.73339 | AB29: 0.2851940525
B30: 21 | C30: EUSW10V3 BGN Curncy | D30: Swap | E30: 2D | F30: 0D | G30: 0D | H30: 10Y | I30: 3M | J30: ModFol+EoM | K30: Act/360 | L30: 5L30 | M30: 12M | N30: ModFol+EoM | O30: 30E/360 | P30: 5P30 | Q30: 0.03521 | R30: 2009-07-08 | S30: 2019-07-08 | T30: 2019-07-08 | U30: 0.7002085375 | V30: 9.520162436e-14 | X30: 0.7002085375 | Y30: TRUE | Z30: 2019-07-08 | AA30: 0.70018 | AB30: 0.285374671
B31: 22 | C31: EUSW11V3 BGN Curncy | D31: Swap | E31: 2D | F31: 0D | G31: 0D | H31: 11Y | I31: 3M | J31: ModFol+EoM | K31: Act/360 | L31: 5L31 | M31: 12M | N31: ModFol+EoM | O31: 30E/360 | P31: 5P31 | Q31: 0.03622 | R31: 2009-07-08 | S31: 2020-07-08 | T31: 2020-07-08 | U31: 0.6674924134 | V31: -2.220446049e-16 | X31: 0.6674924134 | Y31: TRUE | Z31: 2020-07-08 | AA31: 0.66747 | AB31: 0.2241338467
B32: 23 | C32: EUSW12V3 BGN Curncy | D32: Swap | E32: 2D | F32: 0D | G32: 0D | H32: 12Y | I32: 3M | J32: ModFol+EoM | K32: Act/360 | L32: 5L32 | M32: 12M | N32: ModFol+EoM | O32: 30E/360 | P32: 5P32 | Q32: 0.03714 | R32: 2009-07-08 | S32: 2021-07-08 | T32: 2021-07-08 | U32: 0.6355082279 | V32: -1.110223025e-16 | X32: 0.6355082279 | Y32: TRUE | Z32: 2021-07-08 | AA32: 0.63549 | AB32: 0.1822794765
B33: 24 | C33: EUSW15V3 BGN Curncy | D33: Swap | E33: 2D | F33: 0D | G33: 0D | H33: 15Y | I33: 3M | J33: ModFol+EoM | K33: Act/360 | L33: 5L33 | M33: 12M | N33: ModFol+EoM | O33: 30E/360 | P33: 5P33 | Q33: 0.03923 | R33: 2009-07-08 | S33: 2024-07-08 | T33: 2024-07-08 | U33: 0.5474239872 | V33: -5.551115123e-17 | X33: 0.5474239872 | Y33: TRUE | Z33: 2024-07-08 | AA33: 0.5474 | AB33: 0.239871512
B34: 25 | C34: EUSW20V3 BGN Curncy | D34: Swap | E34: 2D | F34: 0D | G34: 0D | H34: 20Y | I34: 3M | J34: ModFol+EoM | K34: Act/360 | L34: 5L34 | M34: 12M | N34: ModFol+EoM | O34: 30E/360 | P34: 5P34 | Q34: 0.04073 | R34: 2009-07-08 | S34: 2029-07-09 | T34: 2029-07-09 | U34: 0.4331831038 | V34: -1.110223025e-16 | X34: 0.4331831038 | Y34: TRUE | Z34: 2029-07-09 | AA34: 0.43317 | AB34: 0.1310382685
B35: 26 | C35: EUSW25V3 BGN Curncy | D35: Swap | E35: 2D | F35: 0D | G35: 0D | H35: 25Y | I35: 3M | J35: ModFol+EoM | K35: Act/360 | L35: 5L35 | M35: 12M | N35: ModFol+EoM | O35: 30E/360 | P35: 5P35 | Q35: 0.04051 | R35: 2009-07-08 | S35: 2034-07-10 | T35: 2034-07-10 | U35: 0.3577472723 | V35: -1.10322862e-12 | X35: 0.3577472723 | Y35: TRUE | Z35: 2034-07-10 | AA35: 0.35774 | AB35: 0.0727230681
B36: 27 | C36: EUSW30V3 BGN Curncy | D36: Swap | E36: 2D | F36: 0D | G36: 0D | H36: 30Y | I36: 3M | J36: ModFol+EoM | K36: Act/360 | L36: 5L36 | M36: 12M | N36: ModFol+EoM | O36: 30E/360 | P36: 5P36 | Q36: 0.03996 | R36: 2009-07-08 | S36: 2039-07-08 | T36: 2039-07-08 | U36: 0.3016599867 | V36: -2.220446049e-16 | X36: 0.3016599867 | Y36: TRUE | Z36: 2039-07-08 | AA36: 0.30165 | AB36: 0.09986677019

Sheet EUR.6M
C2: DF cell starts at: | D2: =GetCellAddress(U9) -> U9 | H2: trade date | J2: =EUR.OIS!$J$2 -> 2009-07-06 | L2: interp. mode | N2: LinearLogDisc
C3: PV cell starts at: | D3: =GetCellAddress(V9) -> V9 | H3: holiday list | J3: =Holidays!E4 -> 16E4 | L3: proj. curve | N3: =CreateCurve(T$9:T$37, U$9:U$37, N$2) -> 6N3
C4: # of products: | D4: =MAX(B:B) -> 28 | H4: stub period | J4: Rear | L4: disc. curve | N4: =EUR.OIS!N4 -> 3N4
C5: current calib. | D5: 0 | H5: fixing schedule | J5: 1
C7: Product | E7: Spot | F7: Pay | G7: Forward | I7: Receiving Leg1: Floating | M7: Paying Leg2: Fixed | Q7: Market | R7: Effective Date | S7: Maturity Date | T7: Last Payment | U7: Discount | V7: Present | X7: Comparison to outputs in Bloomberg Terminal
B8: No. | C8: Ticker | D8: Type | E8: Lag | F8: Lag | G8: Start | H8: Tenor | I8: Period | J8: Date Rolling | K8: Day Count | L8: Leg ID | M8: Period | N8: Date Rolling | O8: Day Count | P8: Leg ID | Q8: Rate | R8: Start of Accrual | S8: End of Accrual | T8: Date | U8: Factor | V8: Value | X8: Derived | Z8: Date | AA8: Reference | AB8: diff.(bps)
T9: =R10 -> 2009-07-08 | U9: 1 | X9: D. Factor | Z9: =T9 -> 2009-07-08 | AA9: D. Factor
B10: =B9+1 -> 1 | C10: EUR006M Index | D10: Cash | E10: 2D | F10: 0D | G10: 0D | H10: 6M | I10: 6M | J10: ModFollowing | K10: Act/360 | L10: =CreateLeg($J$2:$J$5, $D10:$H10, I10:K10) -> 6L10 | M10: 12M | N10: ModFollowing | O10: Act/360 | P10: =CreateLeg($J$2:$J$5, $D10:$H10, M10:O10) -> 6P10 | Q10: 0.01268 | R10: =GetEffectiveDate($L10) -> 2009-07-08 | S10: =GetMaturityDate($L10) -> 2010-01-08 | T10: =GetLastPaymentDate($L10) -> 2010-01-08 | U10: 0.9935608426 | V10: =IF(OR($D$5=0,$D$5=B10), GetLegPV(L10,$N$3,$N$4,0) - GetLegPV(P10,Q10,$N$4,0)) -> 9.194034423e-17 | X10: =GetCurveDiscountFactor($N$3,Z10) -> 0.9935608426 | Y10: =S10=Z10 -> TRUE | Z10: 2010-01-08 | AA10: 0.993561 | AB10: =(X10-AA10)*10000 -> -0.001574250791
B11: 2 | C11: EUFR0AG CMPN Curncy | D11: FRA | E11: 2D | F11: 0D | G11: 1M | H11: 6M | I11: 6M | J11: ModFollowing | K11: Act/360 | L11: =CreateLeg($J$2:$J$5, $D11:$H11, I11:K11) -> 6L11 | M11: 12M | N11: ModFollowing | O11: Act/360 | P11: =CreateLeg($J$2:$J$5, $D11:$H11, M11:O11) -> 6P11 | Q11: 0.01195 | R11: =GetEffectiveDate($L11) -> 2009-08-10 | S11: =GetMaturityDate($L11) -> 2010-02-10 | T11: =GetLastPaymentDate($L11) -> 2010-02-10 | U11: 0.9927784179 | V11: 4.510281038e-17 | X11: =GetCurveDiscountFactor($N$3,Z11) -> 0.99282582 | Y11: FALSE | Z11: 2010-02-08 | AA11: 0.992592 | AB11: =(X11-AA11)*10000 -> 2.338200211
B12: 3 | C12: EUFR0BH CMPN Curncy | D12: FRA | E12: 2D | F12: 0D | G12: 2M | H12: 6M | I12: 6M | J12: ModFollowing | K12: Act/360 | L12: 6L12 | M12: 12M | N12: ModFollowing | O12: Act/360 | P12: 6P12 | Q12: 0.01188 | R12: 2009-09-08 | S12: 2010-03-08 | T12: 2010-03-08 | U12: 0.9919010108 | V12: 6.071532166e-18 | X12: 0.9919010108 | Y12: TRUE | Z12: 2010-03-08 | AA12: 0.991611 | AB12: 2.900108313
B13: 4 | C13: EUFR0CI CMPN Curncy | D13: FRA | E13: 2D | F13: 0D | G13: 3M | H13: 6M | I13: 6M | J13: ModFollowing | K13: Act/360 | L13: 6L13 | M13: 12M | N13: ModFollowing | O13: Act/360 | P13: 6P13 | Q13: 0.01196 | R13: 2009-10-08 | S13: 2010-04-08 | T13: 2010-04-08 | U13: 0.9907844983 | V13: -9.020562075e-17 | X13: 0.9907844983 | Y13: TRUE | Z13: 2010-04-08 | AA13: 0.990529 | AB13: 2.554982647
B14: 5 | C14: EUFR0DJ CMPN Curncy | D14: FRA | E14: 2D | F14: 0D | G14: 4M | H14: 6M | I14: 6M | J14: ModFollowing | K14: Act/360 | L14: 6L14 | M14: 12M | N14: ModFollowing | O14: Act/360 | P14: 6P14 | Q14: 0.01232 | R14: 2009-11-09 | S14: 2010-05-10 | T14: 2010-05-10 | U14: 0.9894929968 | V14: 3.729655473e-17 | X14: 0.9894929968 | Y14: TRUE | Z14: 2010-05-10 | AA14: 0.989381 | AB14: 1.119968397
B15: 6 | C15: EUFR0EK CMPN Curncy | D15: FRA | E15: 2D | F15: 0D | G15: 5M | H15: 6M | I15: 6M | J15: ModFollowing | K15: Act/360 | L15: 6L15 | M15: 12M | N15: ModFollowing | O15: Act/360 | P15: 6P15 | Q15: 0.012445 | R15: 2009-12-08 | S15: 2010-06-08 | T15: 2010-06-08 | U15: 0.9884239822 | V15: 6.245004514e-17 | X15: 0.9884239822 | Y15: TRUE | Z15: 2010-06-08 | AA15: 0.988291 | AB15: 1.329822172
B16: 7 | C16: EUFR0F1 CMPN Curncy | D16: FRA | E16: 2D | F16: 0D | G16: 6M | H16: 6M | I16: 6M | J16: ModFollowing | K16: Act/360 | L16: 6L16 | M16: 12M | N16: ModFollowing | O16: Act/360 | P16: 6P16 | Q16: 0.012695 | R16: 2010-01-08 | S16: 2010-07-08 | T16: 2010-07-08 | U16: 0.9872593989 | V16: 3.035766083e-17 | X16: 0.9872593989 | Y16: TRUE | Z16: 2010-07-08 | AA16: 0.987259 | AB16: 0.00398934436
B17: 8 | C17: EUFR0G1A CMPN Curncy | D17: FRA | E17: 2D | F17: 0D | G17: 7M | H17: 6M | I17: 6M | J17: ModFollowing | K17: Act/360 | L17: 6L17 | M17: 12M | N17: ModFollowing | O17: Act/360 | P17: 6P17 | Q17: 0.01345 | R17: 2010-02-08 | S17: 2010-08-09 | T17: 2010-08-09 | U17: 0.9861204747 | V17: 2.602085214e-17 | X17: 0.9861204747 | Y17: TRUE | Z17: 2010-08-09 | AA17: 0.985888 | AB17: 2.324747154
B18: 9 | C18: EUFR0H1B CMPN Curncy | D18: FRA | E18: 2D | F18: 0D | G18: 8M | H18: 6M | I18: 6M | J18: ModFollowing | K18: Act/360 | L18: 6L18 | M18: 12M | N18: ModFollowing | O18: Act/360 | P18: 6P18 | Q18: 0.01397 | R18: 2010-03-08 | S18: 2010-09-08 | T18: 2010-09-08 | U18: 0.9848688285 | V18: 1.023486851e-16 | X18: 0.9848688285 | Y18: TRUE | Z18: 2010-09-08 | AA18: 0.984581 | AB18: 2.878285358
B19: 10 | C19: EUFR0I1C CMPN Curncy | D19: FRA | E19: 2D | F19: 0D | G19: 9M | H19: 6M | I19: 6M | J19: ModFollowing | K19: Act/360 | L19: 6L19 | M19: 12M | N19: ModFollowing | O19: Act/360 | P19: 6P19 | Q19: 0.01469 | R19: 2010-04-08 | S19: 2010-10-08 | T19: 2010-10-08 | U19: 0.9834407365 | V19: -5.117434254e-17 | X19: 0.9834407365 | Y19: TRUE | Z19: 2010-10-08 | AA19: 0.983187 | AB19: 2.537365182
B20: 11 | C20: EUFR0J1D CMPN Curncy | D20: FRA | E20: 2D | F20: 0D | G20: 10M | H20: 6M | I20: 6M | J20: ModFollowing | K20: Act/360 | L20: 6L20 | M20: 12M | N20: ModFollowing | O20: Act/360 | P20: 6P20 | Q20: 0.01551 | R20: 2010-05-10 | S20: 2010-11-10 | T20: 2010-11-10 | U20: 0.9817106493 | V20: 6.418476861e-17 | X20: 0.9818154164 | Y20: FALSE | Z20: 2010-11-08 | AA20: 0.981683 | AB20: 1.32416363
B21: 12 | C21: EUFR0K1E CMPN Curncy | D21: FRA | E21: 2D | F21: 0D | G21: 11M | H21: 6M | I21: 6M | J21: ModFollowing | K21: Act/360 | L21: 6L21 | M21: 12M | N21: ModFollowing | O21: Act/360 | P21: 6P21 | Q21: 0.01626 | R21: 2010-06-08 | S21: 2010-12-08 | T21: 2010-12-08 | U21: 0.9803211379 | V21: 3.6429193e-17 | X21: 0.9803211379 | Y21: TRUE | Z21: 2010-12-08 | AA21: 0.980189 | AB21: 1.321378522
B22: 13 | C22: EUFR011F CMPN Curncy | D22: FRA | E22: 2D | F22: 0D | G22: 12M | H22: 6M | I22: 6M | J22: ModFollowing | K22: Act/360 | L22: 6L22 | M22: 12M | N22: ModFollowing | O22: Act/360 | P22: 6P22 | Q22: 0.017445 | R22: 2010-07-08 | S22: 2011-01-10 | T22: 2011-01-10 | U22: 0.9784404704 | V22: -2.602085214e-17 | X22: 0.9784404704 | Y22: TRUE | Z22: 2011-01-10 | AA22: 0.97844 | AB22: 0.004703649196
B23: 14 | C23: EUSA2 BGN Curncy | D23: Swap | E23: 2D | F23: 0D | G23: 0D | H23: 2Y | I23: 6M | J23: ModFollowing | K23: Act/360 | L23: 6L23 | M23: 12M | N23: ModFollowing | O23: 30E/360 | P23: 6P23 | Q23: 0.016665 | R23: 2009-07-08 | S23: 2011-07-08 | T23: 2011-07-08 | U23: 0.9674107597 | V23: 6.938893904e-18 | X23: 0.9674107597 | Y23: TRUE | Z23: 2011-07-08 | AA23: 0.967411 | AB23: -0.002402631588
B24: 15 | C24: EUSA3 BGN Curncy | D24: Swap | E24: 2D | F24: 0D | G24: 0D | H24: 3Y | I24: 6M | J24: ModFollowing | K24: Act/360 | L24: 6L24 | M24: 12M | N24: ModFollowing | O24: 30E/360 | P24: 6P24 | Q24: 0.02131 | R24: 2009-07-08 | S24: 2012-07-09 | T24: 2012-07-09 | U24: 0.9383186282 | V24: 4.857225733e-17 | X24: 0.9383186282 | Y24: TRUE | Z24: 2012-07-09 | AA24: 0.938319 | AB24: -0.003717794543
B25: 16 | C25: EUSA4 BGN Curncy | D25: Swap | E25: 2D | F25: 0D | G25: 0D | H25: 4Y | I25: 6M | J25: ModFollowing | K25: Act/360 | L25: 6L25 | M25: 12M | N25: ModFollowing | O25: 30E/360 | P25: 6P25 | Q25: 0.0249 | R25: 2009-07-08 | S25: 2013-07-08 | T25: 2013-07-08 | U25: 0.9054764996 | V25: 2.775557562e-17 | X25: 0.9054764996 | Y25: TRUE | Z25: 2013-07-08 | AA25: 0.905476 | AB25: 0.004995685673
B26: 17 | C26: EUSA5 BGN Curncy | D26: Swap | E26: 2D | F26: 0D | G26: 0D | H26: 5Y | I26: 6M | J26: ModFollowing | K26: Act/360 | L26: 6L26 | M26: 12M | N26: ModFollowing | O26: 30E/360 | P26: 6P26 | Q26: 0.02771 | R26: 2009-07-08 | S26: 2014-07-08 | T26: 2014-07-08 | U26: 0.870719353 | V26: -2.775557562e-17 | X26: 0.870719353 | Y26: TRUE | Z26: 2014-07-08 | AA26: 0.870719 | AB26: 0.003529942501
B27: 18 | C27: EUSA6 BGN Curncy | D27: Swap | E27: 2D | F27: 0D | G27: 0D | H27: 6Y | I27: 6M | J27: ModFollowing | K27: Act/360 | L27: 6L27 | M27: 12M | N27: ModFollowing | O27: 30E/360 | P27: 6P27 | Q27: 0.03003 | R27: 2009-07-08 | S27: 2015-07-08 | T27: 2015-07-08 | U27: 0.8348690121 | V27: -5.551115123e-17 | X27: 0.8348690121 | Y27: TRUE | Z27: 2015-07-08 | AA27: 0.834869 | AB27: 0.0001207074574
B28: 19 | C28: EUSA7 BGN Curncy | D28: Swap | E28: 2D | F28: 0D | G28: 0D | H28: 7Y | I28: 6M | J28: ModFollowing | K28: Act/360 | L28: 6L28 | M28: 12M | N28: ModFollowing | O28: 30E/360 | P28: 6P28 | Q28: 0.03187 | R28: 2009-07-08 | S28: 2016-07-08 | T28: 2016-07-08 | U28: 0.7993275423 | V28: -5.551115123e-17 | X28: 0.7993275423 | Y28: TRUE | Z28: 2016-07-08 | AA28: 0.799328 | AB28: -0.004577098935
B29: 20 | C29: EUSA8 BGN Curncy | D29: Swap | E29: 2D | F29: 0D | G29: 0D | H29: 8Y | I29: 6M | J29: ModFollowing | K29: Act/360 | L29: 6L29 | M29: 12M | N29: ModFollowing | O29: 30E/360 | P29: 6P29 | Q29: 0.03334 | R29: 2009-07-08 | S29: 2017-07-10 | T29: 2017-07-10 | U29: 0.7644959217 | V29: 0 | X29: 0.7644959217 | Y29: TRUE | Z29: 2017-07-10 | AA29: 0.764496 | AB29: -0.0007833945426
B30: 21 | C30: EUSA9 BGN Curncy | D30: Swap | E30: 2D | F30: 0D | G30: 0D | H30: 9Y | I30: 6M | J30: ModFollowing | K30: Act/360 | L30: 6L30 | M30: 12M | N30: ModFollowing | O30: 30E/360 | P30: 6P30 | Q30: 0.034565 | R30: 2009-07-08 | S30: 2018-07-09 | T30: 2018-07-09 | U30: 0.7307114303 | V30: -5.551115123e-17 | X30: 0.7307114303 | Y30: TRUE | Z30: 2018-07-09 | AA30: 0.730711 | AB30: 0.004303293458
B31: 22 | C31: EUSA10 BGN Curncy | D31: Swap | E31: 2D | F31: 0D | G31: 0D | H31: 10Y | I31: 6M | J31: ModFollowing | K31: Act/360 | L31: 6L31 | M31: 12M | N31: ModFollowing | O31: 30E/360 | P31: 6P31 | Q31: 0.03564 | R31: 2009-07-08 | S31: 2019-07-08 | T31: 2019-07-08 | U31: 0.6976023261 | V31: 0 | X31: 0.6976023261 | Y31: TRUE | Z31: 2019-07-08 | AA31: 0.697602 | AB31: 0.003260607866
B32: 23 | C32: EUSA11 BGN Curncy | D32: Swap | E32: 2D | F32: 0D | G32: 0D | H32: 11Y | I32: 6M | J32: ModFollowing | K32: Act/360 | L32: 6L32 | M32: 12M | N32: ModFollowing | O32: 30E/360 | P32: 6P32 | Q32: 0.03663 | R32: 2009-07-08 | S32: 2020-07-08 | T32: 2020-07-08 | U32: 0.664912972 | V32: -5.551115123e-17 | X32: 0.664912972 | Y32: TRUE | Z32: 2020-07-08 | AA32: 0.664913 | AB32: -0.0002804880561
B33: 24 | C33: EUSA12 BGN Curncy | D33: Swap | E33: 2D | F33: 0D | G33: 0D | H33: 12Y | I33: 6M | J33: ModFollowing | K33: Act/360 | L33: 6L33 | M33: 12M | N33: ModFollowing | O33: 30E/360 | P33: 6P33 | Q33: 0.037525 | R33: 2009-07-08 | S33: 2021-07-08 | T33: 2021-07-08 | U33: 0.6330413801 | V33: 5.551115123e-17 | X33: 0.6330413801 | Y33: TRUE | Z33: 2021-07-08 | AA33: 0.633041 | AB33: 0.003800828161
B34: 25 | C34: EUSA15 BGN Curncy | D34: Swap | E34: 2D | F34: 0D | G34: 0D | H34: 15Y | I34: 6M | J34: ModFollowing | K34: Act/360 | L34: 6L34 | M34: 12M | N34: ModFollowing | O34: 30E/360 | P34: 6P34 | Q34: 0.03958 | R34: 2009-07-08 | S34: 2024-07-08 | T34: 2024-07-08 | U34: 0.5450700081 | V34: 0 | X34: 0.5450700081 | Y34: TRUE | Z34: 2024-07-08 | AA34: 0.54507 | AB34: 8.07102718e-05
B35: 26 | C35: EUSA20 BGN Curncy | D35: Swap | E35: 2D | F35: 0D | G35: 0D | H35: 20Y | I35: 6M | J35: ModFollowing | K35: Act/360 | L35: 6L35 | M35: 12M | N35: ModFollowing | O35: 30E/360 | P35: 6P35 | Q35: 0.04098 | R35: 2009-07-08 | S35: 2029-07-09 | T35: 2029-07-09 | U35: 0.4318110264 | V35: 0 | X35: 0.4318110264 | Y35: TRUE | Z35: 2029-07-09 | AA35: 0.431811 | AB35: 0.0002639054114
B36: 27 | C36: EUSA25 BGN Curncy | D36: Swap | E36: 2D | F36: 0D | G36: 0D | H36: 25Y | I36: 6M | J36: ModFollowing | K36: Act/360 | L36: 6L36 | M36: 12M | N36: ModFollowing | O36: 30E/360 | P36: 6P36 | Q36: 0.04079 | R36: 2009-07-08 | S36: 2034-07-10 | T36: 2034-07-10 | U36: 0.3557798829 | V36: 0 | X36: 0.3557798829 | Y36: TRUE | Z36: 2034-07-10 | AA36: 0.35578 | AB36: -0.001170892777
B37: =B36+1 -> 28 | C37: EUSA30 BGN Curncy | D37: Swap | E37: 2D | F37: 0D | G37: 0D | H37: 30Y | I37: 6M | J37: ModFollowing | K37: Act/360 | L37: 6L37 | M37: 12M | N37: ModFollowing | O37: 30E/360 | P37: 6P37 | Q37: 0.04022 | R37: 2009-07-08 | S37: 2039-07-08 | T37: 2039-07-08 | U37: 0.2999116422 | V37: 0 | X37: 0.2999116422 | Y37: TRUE | Z37: 2039-07-08 | AA37: 0.299912 | AB37: -0.003577925795

Sheet EUR.12M
C2: DF cell starts at: | D2: =GetCellAddress(U9) -> U9 | H2: trade date | J2: =EUR.OIS!$J$2 -> 2009-07-06 | L2: interp. mode | N2: LinearLogDisc
C3: PV cell starts at: | D3: =GetCellAddress(V9) -> V9 | H3: holiday list | J3: =Holidays!E4 -> 16E4 | L3: proj. curve | N3: =CreateCurve(T$9:T$31, U$9:U$31, N$2) -> 7N3
C4: # of products: | D4: =MAX(B:B) -> 22 | H4: stub period | J4: Rear | L4: disc. curve | N4: =EUR.OIS!N4 -> 3N4
C5: current calib. | D5: 0 | H5: fixing schedule | J5: 1
C7: Product | E7: Spot | F7: Pay | G7: Forward | I7: Receiving Leg1: Floating | M7: Paying Leg2: Fixed | Q7: Market | R7: Effective Date | S7: Maturity Date | T7: Last Payment | U7: Discount | V7: Present | X7: Comparison to outputs in Bloomberg Terminal
B8: No. | C8: Ticker | D8: Type | E8: Lag | F8: Lag | G8: Start | H8: Tenor | I8: Period | J8: Date Rolling | K8: Day Count | L8: Leg ID | M8: Period | N8: Date Rolling | O8: Day Count | P8: Leg ID | Q8: Rate | R8: Start of Accrual | S8: End of Accrual | T8: Date | U8: Factor | V8: Value | X8: Derived | Z8: Date | AA8: Reference | AB8: diff.(bps)
S9: =R10 -> 2009-07-08 | T9: =R10 -> 2009-07-08 | U9: 1 | X9: D. Factor | Z9: =T9 -> 2009-07-08 | AA9: D. Factor
B10: =B9+1 -> 1 | C10: EONIA Index | D10: Cash | E10: 2D | F10: 0D | G10: 0D | H10: 1D | I10: 6M | J10: ModFol+EoM | K10: Act/360 | L10: =CreateLeg($J$2:$J$5, $D10:$H10, I10:K10) -> 7L10 | M10: 12M | N10: ModFol+EoM | O10: Act/360 | P10: =CreateLeg($J$2:$J$5, $D10:$H10, M10:O10) -> 7P10 | Q10: 0.00332 | R10: =GetEffectiveDate($L10) -> 2009-07-08 | S10: =GetMaturityDate($L10) -> 2009-07-09 | T10: =GetLastPaymentDate($L10) -> 2009-07-09 | U10: 0.9999907779 | V10: =IF(OR($D$5=0,$D$5=B10), GetLegPV(L10,$N$3,$N$4,0) - GetLegPV(P10,Q10,$N$4,0)) -> -1.172191955e-16 | X10: =GetCurveDiscountFactor($N$3,Z10) -> 0.9999907779 | Y10: =S10=Z10 -> TRUE | Z10: 2009-07-09 | AA10: 0.999991 | AB10: =(X10-AA10)*10000 -> -0.002221371735
B11: 2 | C11: EUR001W Index | D11: Cash | E11: 2D | F11: 0D | G11: 0D | H11: 1W | I11: 6M | J11: ModFol+EoM | K11: Act/360 | L11: =CreateLeg($J$2:$J$5, $D11:$H11, I11:K11) -> 7L11 | M11: 12M | N11: ModFol+EoM | O11: Act/360 | P11: =CreateLeg($J$2:$J$5, $D11:$H11, M11:O11) -> 7P11 | Q11: 0.00435 | R11: =GetEffectiveDate($L11) -> 2009-07-08 | S11: =GetMaturityDate($L11) -> 2009-07-15 | T11: =GetLastPaymentDate($L11) -> 2009-07-15 | U11: 0.9999154238 | V11: 5.450826422e-17 | X11: =GetCurveDiscountFactor($N$3,Z11) -> 0.9999154238 | Y11: TRUE | Z11: 2009-07-15 | AA11: 0.999915 | AB11: =(X11-AA11)*10000 -> 0.004238204019
B12: 3 | C12: EUR001M Index | D12: Cash | E12: 2D | F12: 0D | G12: 0D | H12: 1M | I12: 6M | J12: ModFol+EoM | K12: Act/360 | L12: 7L12 | M12: 12M | N12: ModFol+EoM | O12: Act/360 | P12: 7P12 | Q12: 0.00684 | R12: 2009-07-08 | S12: 2009-08-10 | T12: 2009-08-10 | U12: 0.9993733929 | V12: -6.689527404e-17 | X12: 0.9993733929 | Y12: TRUE | Z12: 2009-08-10 | AA12: 0.999373 | AB12: 0.003928826626
B13: 4 | C13: EUR002M Index | D13: Cash | E13: 2D | F13: 0D | G13: 0D | H13: 2M | I13: 6M | J13: ModFol+EoM | K13: Act/360 | L13: 7L13 | M13: 12M | N13: ModFol+EoM | O13: Act/360 | P13: 7P13 | Q13: 0.00863 | R13: 2009-07-08 | S13: 2009-09-08 | T13: 2009-09-08 | U13: 0.998515928 | V13: -1.084202172e-17 | X13: 0.998515928 | Y13: TRUE | Z13: 2009-09-08 | AA13: 0.998516 | AB13: -0.0007203449215
B14: 5 | C14: EUR003M Index | D14: Cash | E14: 2D | F14: 0D | G14: 0D | H14: 3M | I14: 6M | J14: ModFol+EoM | K14: Act/360 | L14: 7L14 | M14: 12M | N14: ModFol+EoM | O14: Act/360 | P14: 7P14 | Q14: 0.01048 | R14: 2009-07-08 | S14: 2009-10-08 | T14: 2009-10-08 | U14: 0.9973289315 | V14: -8.456776945e-17 | X14: 0.9973289315 | Y14: TRUE | Z14: 2009-10-08 | AA14: 0.997329 | AB14: -0.0006850718903
B15: 6 | C15: EUR004M Index | D15: Cash | E15: 2D | F15: 0D | G15: 0D | H15: 4M | I15: 6M | J15: ModFol+EoM | K15: Act/360 | L15: 7L15 | M15: 12M | N15: ModFol+EoM | O15: Act/360 | P15: 7P15 | Q15: 0.01126 | R15: 2009-07-08 | S15: 2009-11-09 | T15: 2009-11-09 | U15: 0.9961365398 | V15: -3.77302356e-17 | X15: 0.9961365398 | Y15: TRUE | Z15: 2009-11-09 | AA15: 0.996137 | AB15: -0.004602285846
B16: 7 | C16: EUR005M Index | D16: Cash | E16: 2D | F16: 0D | G16: 0D | H16: 5M | I16: 6M | J16: ModFol+EoM | K16: Act/360 | L16: 7L16 | M16: 12M | N16: ModFol+EoM | O16: Act/360 | P16: 7P16 | Q16: 0.01197 | R16: 2009-07-08 | S16: 2009-12-08 | T16: 2009-12-08 | U16: 0.9949384991 | V16: 9.801187639e-17 | X16: 0.9949384991 | Y16: TRUE | Z16: 2009-12-08 | AA16: 0.994938 | AB16: 0.004991203499
B17: 8 | C17: EUR006M Index | D17: Cash | E17: 2D | F17: 0D | G17: 0D | H17: 6M | I17: 6M | J17: ModFol+EoM | K17: Act/360 | L17: 7L17 | M17: 12M | N17: ModFol+EoM | O17: Act/360 | P17: 7P17 | Q17: 0.01268 | R17: 2009-07-08 | S17: 2010-01-08 | T17: 2010-01-08 | U17: 0.9935608426 | V17: 9.194034423e-17 | X17: 0.9935608426 | Y17: TRUE | Z17: 2010-01-08 | AA17: 0.993561 | AB17: -0.00157425079
B18: 9 | C18: EUSA2 CMPN Curncy | D18: Swap | E18: 2D | F18: 0D | G18: 0D | H18: 2Y | I18: 6M | J18: ModFol+EoM | K18: Act/360 | L18: 7L18 | M18: 12M | N18: ModFol+EoM | O18: 30E/360 | P18: 7P18 | Q18: 0.017695 | R18: 2009-07-08 | S18: 2011-07-08 | T18: 2011-07-08 | U18: 0.9654743404 | V18: 6.245004514e-17 | X18: 0.9654743404 | Y18: TRUE | Z18: 2011-07-08 | AA18: 0.965474 | AB18: 0.00340374203
B19: 10 | C19: EUSA3 CMPN Curncy | D19: Swap | E19: 2D | F19: 0D | G19: 0D | H19: 3Y | I19: 6M | J19: ModFol+EoM | K19: Act/360 | L19: 7L19 | M19: 12M | N19: ModFol+EoM | O19: 30E/360 | P19: 7P19 | Q19: 0.022125 | R19: 2009-07-08 | S19: 2012-07-09 | T19: 2012-07-09 | U19: 0.9361005084 | V19: 5.551115123e-17 | X19: 0.9361005084 | Y19: TRUE | Z19: 2012-07-09 | AA19: 0.936101 | AB19: -0.004915832169
B20: 11 | C20: EUSA4 CMPN Curncy | D20: Swap | E20: 2D | F20: 0D | G20: 0D | H20: 4Y | I20: 6M | J20: ModFol+EoM | K20: Act/360 | L20: 7L20 | M20: 12M | N20: ModFol+EoM | O20: 30E/360 | P20: 7P20 | Q20: 0.025445 | R20: 2009-07-08 | S20: 2013-07-08 | T20: 2013-07-08 | U20: 0.9036137641 | V20: 9.714451465e-17 | X20: 0.9036137641 | Y20: TRUE | Z20: 2013-07-08 | AA20: 0.903614 | AB20: -0.002359435013
B21: 12 | C21: EUSA5 CMPN Curncy | D21: Swap | E21: 2D | F21: 0D | G21: 0D | H21: 5Y | I21: 6M | J21: ModFol+EoM | K21: Act/360 | L21: 7L21 | M21: 12M | N21: ModFol+EoM | O21: 30E/360 | P21: 7P21 | Q21: 0.02814 | R21: 2009-07-08 | S21: 2014-07-08 | T21: 2014-07-08 | U21: 0.8689862575 | V21: 0 | X21: 0.8689862575 | Y21: TRUE | Z21: 2014-07-08 | AA21: 0.868986 | AB21: 0.002575069162
B22: 13 | C22: EUSA6 CMPN Curncy | D22: Swap | E22: 2D | F22: 0D | G22: 0D | H22: 6Y | I22: 6M | J22: ModFol+EoM | K22: Act/360 | L22: 7L22 | M22: 12M | N22: ModFol+EoM | O22: 30E/360 | P22: 7P22 | Q22: 0.03042 | R22: 2009-07-08 | S22: 2015-07-08 | T22: 2015-07-08 | U22: 0.8330717433 | V22: 8.326672685e-17 | X22: 0.8330717433 | Y22: TRUE | Z22: 2015-07-08 | AA22: 0.833072 | AB22: -0.002566952624
B23: 14 | C23: EUSA7 CMPN Curncy | D23: Swap | E23: 2D | F23: 0D | G23: 0D | H23: 7Y | I23: 6M | J23: ModFol+EoM | K23: Act/360 | L23: 7L23 | M23: 12M | N23: ModFol+EoM | O23: 30E/360 | P23: 7P23 | Q23: 0.0322 | R23: 2009-07-08 | S23: 2016-07-08 | T23: 2016-07-08 | U23: 0.7976685085 | V23: 2.775557562e-17 | X23: 0.7976685085 | Y23: TRUE | Z23: 2016-07-08 | AA23: 0.797669 | AB23: -0.004914668386
B24: 15 | C24: EUSA8 CMPN Curncy | D24: Swap | E24: 2D | F24: 0D | G24: 0D | H24: 8Y | I24: 6M | J24: ModFol+EoM | K24: Act/360 | L24: 7L24 | M24: 12M | N24: ModFol+EoM | O24: 30E/360 | P24: 7P24 | Q24: 0.03368 | R24: 2009-07-08 | S24: 2017-07-10 | T24: 2017-07-10 | U24: 0.7625965909 | V24: -8.326672685e-17 | X24: 0.7625965909 | Y24: TRUE | Z24: 2017-07-10 | AA24: 0.762597 | AB24: -0.004091244921
B25: 16 | C25: EUSA9 CMPN Curncy | D25: Swap | E25: 2D | F25: 0D | G25: 0D | H25: 9Y | I25: 6M | J25: ModFol+EoM | K25: Act/360 | L25: 7L25 | M25: 12M | N25: ModFol+EoM | O25: 30E/360 | P25: 7P25 | Q25: 0.034835 | R25: 2009-07-08 | S25: 2018-07-09 | T25: 2018-07-09 | U25: 0.7291794498 | V25: 0 | X25: 0.7291794498 | Y25: TRUE | Z25: 2018-07-09 | AA25: 0.729179 | AB25: 0.004498188435
B26: 17 | C26: EUSA10 CMPN Curncy | D26: Swap | E26: 2D | F26: 0D | G26: 0D | H26: 10Y | I26: 6M | J26: ModFol+EoM | K26: Act/360 | L26: 7L26 | M26: 12M | N26: ModFol+EoM | O26: 30E/360 | P26: 7P26 | Q26: 0.03591 | R26: 2009-07-08 | S26: 2019-07-08 | T26: 2019-07-08 | U26: 0.6959587015 | V26: 5.551115123e-17 | X26: 0.6959587015 | Y26: TRUE | Z26: 2019-07-08 | AA26: 0.695959 | AB26: -0.002984957812
B27: 18 | C27: EUSA12 CMPN Curncy | D27: Swap | E27: 2D | F27: 0D | G27: 0D | H27: 12Y | I27: 6M | J27: ModFol+EoM | K27: Act/360 | L27: 7L27 | M27: 12M | N27: ModFol+EoM | O27: 30E/360 | P27: 7P27 | Q27: 0.037775 | R27: 2009-07-08 | S27: 2021-07-08 | T27: 2021-07-08 | U27: 0.6314216836 | V27: 0 | X27: 0.6314216836 | Y27: TRUE | Z27: 2021-07-08 | AA27: 0.631422 | AB27: -0.003163532706
B28: 19 | C28: EUSA15 CMPN Curncy | D28: Swap | E28: 2D | F28: 0D | G28: 0D | H28: 15Y | I28: 6M | J28: ModFol+EoM | K28: Act/360 | L28: 7L28 | M28: 12M | N28: ModFol+EoM | O28: 30E/360 | P28: 7P28 | Q28: 0.03979 | R28: 2009-07-08 | S28: 2024-07-08 | T28: 2024-07-08 | U28: 0.5436981891 | V28: 0 | X28: 0.5436981891 | Y28: TRUE | Z28: 2024-07-08 | AA28: 0.543698 | AB28: 0.001890802465
B29: 20 | C29: EUSA20 CMPN Curncy | D29: Swap | E29: 2D | F29: 0D | G29: 0D | H29: 20Y | I29: 6M | J29: ModFol+EoM | K29: Act/360 | L29: 7L29 | M29: 12M | N29: ModFol+EoM | O29: 30E/360 | P29: 7P29 | Q29: 0.04116 | R29: 2009-07-08 | S29: 2029-07-09 | T29: 2029-07-09 | U29: 0.4306467946 | V29: 0 | X29: 0.4306467946 | Y29: TRUE | Z29: 2029-07-09 | AA29: 0.430647 | AB29: -0.002054342956
B30: 21 | C30: EUSA25 CMPN Curncy | D30: Swap | E30: 2D | F30: 0D | G30: 0D | H30: 25Y | I30: 6M | J30: ModFol+EoM | K30: Act/360 | L30: 7L30 | M30: 12M | N30: ModFol+EoM | O30: 30E/360 | P30: 7P30 | Q30: 0.04096 | R30: 2009-07-08 | S30: 2034-07-10 | T30: 2034-07-10 | U30: 0.3546488989 | V30: 0 | X30: 0.3546488989 | Y30: TRUE | Z30: 2034-07-10 | AA30: 0.354649 | AB30: -0.001011395582
B31: 22 | C31: EUSA30 CMPN Curncy | D31: Swap | E31: 2D | F31: 0D | G31: 0D | H31: 30Y | I31: 6M | J31: ModFol+EoM | K31: Act/360 | L31: 7L31 | M31: 12M | N31: ModFol+EoM | O31: 30E/360 | P31: 7P31 | Q31: 0.04038 | R31: 2009-07-08 | S31: 2039-07-08 | T31: 2039-07-08 | U31: 0.2988643458 | V31: 0 | X31: 0.2988643458 | Y31: TRUE | Z31: 2039-07-08 | AA31: 0.298864 | AB31: 0.003458239827

Sheet EUR.xccy
N1: USD3M | O1: EUR3M
C2: DF cell starts at: | D2: =GetCellAddress(U9) -> U9 | H2: trade date | J2: =EUR.OIS!$J$2 -> 2009-07-06 | L2: interp. mode | N2: LinearLogDisc | O2: LinearLogDisc
C3: PV cell starts at: | D3: =GetCellAddress(V9) -> V9 | H3: holiday list | J3: =Holidays!E4 -> 16E4 | L3: proj. curve | N3: =USD.3M!N3 -> 12N3 | O3: =EUR.3M!$N$3 -> 5N3
C4: # of products: | D4: =MAX(B:B) -> 17 | H4: stub period | J4: Rear | L4: disc. curve | N4: =USD.OIS!N4 -> 11N4 | O4: =CreateCurve(T$9:T$26, U$9:U$26, O$2) -> 8O4
C5: current calib. | D5: 0 | H5: fixing schedule | J5: 1
C7: Product | E7: Spot | F7: Pay | G7: Forward | I7: Receiving Leg1: Floating USD | M7: Paying Leg2: Floating EUR | Q7: Market | R7: Effective Date | S7: Maturity Date | T7: Last Payment | U7: Discount | V7: Present | X7: Comparison to outputs in Bloomberg Terminal
B8: No. | C8: Ticker | D8: Type | E8: Lag | F8: Lag | G8: Start | H8: Tenor | I8: Period | J8: Date Rolling | K8: Day Count | L8: Leg ID | M8: Period | N8: Date Rolling | O8: Day Count | P8: Leg ID | Q8: Rate | R8: Start of Accrual | S8: End of Accrual | T8: Date | U8: Factor | V8: Value | X8: Derived | Z8: Date | AA8: Reference | AB8: diff.(bps)
S9: =R10 -> 2009-07-08 | T9: =R10 -> 2009-07-08 | U9: 1 | X9: D. Factor | Z9: =T9 -> 2009-07-08 | AA9: D. Factor
B10: =B9+1 -> 1 | C10: EUBSC | D10: Swap | E10: 2D | F10: 0D | G10: 0D | H10: 3M | I10: 3M | J10: ModFol+EoM | K10: Act/360 | L10: =CreateLeg($J$2:$J$5, $D10:$H10, I10:K10) -> 8L10 | M10: 3M | N10: ModFol+EoM | O10: Act/360 | P10: =CreateLeg($J$2:$J$5, $D10:$H10, M10:O10) -> 8P10 | Q10: -0.004625 | R10: =GetEffectiveDate($L10) -> 2009-07-08 | S10: =GetMaturityDate($L10) -> 2009-10-08 | T10: =GetLastPaymentDate($L10) -> 2009-10-08 | U10: 0.9994136119 | V10: =IF(OR($D$5=0,$D$5=B10), GetLegPV(L10,$N$3,$N$4,0,TRUE) - GetLegPV(P10,$O$3,$O$4,Q10,TRUE)) -> 6.505213035e-18 | X10: =GetCurveDiscountFactor($O$4,Z10) -> 0.9994136119 | Y10: =S10=Z10 -> TRUE | Z10: 2009-10-08 | AA10: 0.999414 | AB10: =(X10-AA10)*10000 -> -0.003880806938
B11: 2 | C11: EUBSF | D11: Swap | E11: 2D | F11: 0D | G11: 0D | H11: 6M | I11: 3M | J11: ModFol+EoM | K11: Act/360 | L11: =CreateLeg($J$2:$J$5, $D11:$H11, I11:K11) -> 8L11 | M11: 3M | N11: ModFol+EoM | O11: Act/360 | P11: =CreateLeg($J$2:$J$5, $D11:$H11, M11:O11) -> 8P11 | Q11: -0.00375 | R11: =GetEffectiveDate($L11) -> 2009-07-08 | S11: =GetMaturityDate($L11) -> 2010-01-08 | T11: =GetLastPaymentDate($L11) -> 2010-01-08 | U11: 0.9986780838 | V11: -2.168404345e-18 | X11: =GetCurveDiscountFactor($O$4,Z11) -> 0.9986780838 | Y11: TRUE | Z11: 2010-01-08 | AA11: 0.998668 | AB11: =(X11-AA11)*10000 -> 0.1008383326
B12: 3 | C12: EUBSI | D12: Swap | E12: 2D | F12: 0D | G12: 0D | H12: 9M | I12: 3M | J12: ModFol+EoM | K12: Act/360 | L12: 8L12 | M12: 3M | N12: ModFol+EoM | O12: Act/360 | P12: 8P12 | Q12: -0.00295 | R12: 2009-07-08 | S12: 2010-04-08 | T12: 2010-04-08 | U12: 0.9972851397 | V12: 9.194034423e-17 | X12: 0.9972851397 | Y12: TRUE | Z12: 2010-04-08 | AA12: 0.997282 | AB12: 0.0313974564
B13: 4 | C13: EUBS1 | D13: Swap | E13: 2D | F13: 0D | G13: 0D | H13: 12M | I13: 3M | J13: ModFol+EoM | K13: Act/360 | L13: 8L13 | M13: 3M | N13: ModFol+EoM | O13: Act/360 | P13: 8P13 | Q13: -0.00304 | R13: 2009-07-08 | S13: 2010-07-08 | T13: 2010-07-08 | U13: 0.9958501458 | V13: 7.979727989e-17 | X13: 0.9958501458 | Y13: TRUE | Z13: 2010-07-08 | AA13: 0.995848 | AB13: 0.02145768934
B14: 5 | C14: EUBS2 | D14: Swap | E14: 2D | F14: 0D | G14: 0D | H14: 2Y | I14: 3M | J14: ModFol+EoM | K14: Act/360 | L14: 8L14 | M14: 3M | N14: ModFol+EoM | O14: Act/360 | P14: 8P14 | Q14: -0.002825 | R14: 2009-07-08 | S14: 2011-07-08 | T14: 2011-07-08 | U14: 0.9822576605 | V14: -6.245004514e-17 | X14: 0.9822576605 | Y14: TRUE | Z14: 2011-07-08 | AA14: 0.982254 | AB14: 0.03660494282
B15: 6 | C15: EUBS3 | D15: Swap | E15: 2D | F15: 0D | G15: 0D | H15: 3Y | I15: 3M | J15: ModFol+EoM | K15: Act/360 | L15: 8L15 | M15: 3M | N15: ModFol+EoM | O15: Act/360 | P15: 8P15 | Q15: -0.002575 | R15: 2009-07-08 | S15: 2012-07-09 | T15: 2012-07-09 | U15: 0.9591180496 | V15: 5.551115123e-17 | X15: 0.9591180496 | Y15: TRUE | Z15: 2012-07-09 | AA15: 0.959044 | AB15: 0.740496265
B16: 7 | C16: EUBS4 | D16: Swap | E16: 2D | F16: 0D | G16: 0D | H16: 4Y | I16: 3M | J16: ModFol+EoM | K16: Act/360 | L16: 8L16 | M16: 3M | N16: ModFol+EoM | O16: Act/360 | P16: 8P16 | Q16: -0.0024 | R16: 2009-07-08 | S16: 2013-07-08 | T16: 2013-07-08 | U16: 0.9273153386 | V16: 1.387778781e-17 | X16: 0.9273153386 | Y16: TRUE | Z16: 2013-07-08 | AA16: 0.927306 | AB16: 0.09338588636
B17: 8 | C17: EUBS5 | D17: Swap | E17: 2D | F17: 0D | G17: 0D | H17: 5Y | I17: 3M | J17: ModFol+EoM | K17: Act/360 | L17: 8L17 | M17: 3M | N17: ModFol+EoM | O17: Act/360 | P17: 8P17 | Q17: -0.002325 | R17: 2009-07-08 | S17: 2014-07-08 | T17: 2014-07-08 | U17: 0.8943801532 | V17: -8.326672685e-17 | X17: 0.8943801532 | Y17: TRUE | Z17: 2014-07-08 | AA17: 0.894383 | AB17: -0.02846751783
B18: 9 | C18: EUBS6 | D18: Swap | E18: 2D | F18: 0D | G18: 0D | H18: 6Y | I18: 3M | J18: ModFol+EoM | K18: Act/360 | L18: 8L18 | M18: 3M | N18: ModFol+EoM | O18: Act/360 | P18: 8P18 | Q18: -0.00215 | R18: 2009-07-08 | S18: 2015-07-08 | T18: 2015-07-08 | U18: 0.8596218858 | V18: -2.775557562e-17 | X18: 0.8596218858 | Y18: TRUE | Z18: 2015-07-08 | AA18: 0.859642 | AB18: -0.2011419593
B19: 10 | C19: EUBS7 | D19: Swap | E19: 2D | F19: 0D | G19: 0D | H19: 7Y | I19: 3M | J19: ModFol+EoM | K19: Act/360 | L19: 8L19 | M19: 3M | N19: ModFol+EoM | O19: Act/360 | P19: 8P19 | Q19: -0.002 | R19: 2009-07-08 | S19: 2016-07-08 | T19: 2016-07-08 | U19: 0.8256897195 | V19: -2.775557562e-17 | X19: 0.8256897195 | Y19: TRUE | Z19: 2016-07-08 | AA19: 0.825753 | AB19: -0.6328045662
B20: 11 | C20: EUBS8 | D20: Swap | E20: 2D | F20: 0D | G20: 0D | H20: 8Y | I20: 3M | J20: ModFol+EoM | K20: Act/360 | L20: 8L20 | M20: 3M | N20: ModFol+EoM | O20: Act/360 | P20: 8P20 | Q20: -0.0018 | R20: 2009-07-08 | S20: 2017-07-10 | T20: 2017-07-10 | U20: 0.7903093917 | V20: 0 | X20: 0.7903093917 | Y20: TRUE | Z20: 2017-07-10 | AA20: 0.790383 | AB20: -0.7360828602
B21: 12 | C21: EUBS9 | D21: Swap | E21: 2D | F21: 0D | G21: 0D | H21: 9Y | I21: 3M | J21: ModFol+EoM | K21: Act/360 | L21: 8L21 | M21: 3M | N21: ModFol+EoM | O21: Act/360 | P21: 8P21 | Q21: -0.0016 | R21: 2009-07-08 | S21: 2018-07-09 | T21: 2018-07-09 | U21: 0.7561128236 | V21: -5.551115123e-17 | X21: 0.7561128236 | Y21: TRUE | Z21: 2018-07-09 | AA21: 0.756216 | AB21: -1.031764281
B22: 13 | C22: EUBS10 | D22: Swap | E22: 2D | F22: 0D | G22: 0D | H22: 10Y | I22: 3M | J22: ModFol+EoM | K22: Act/360 | L22: 8L22 | M22: 3M | N22: ModFol+EoM | O22: Act/360 | P22: 8P22 | Q22: -0.0014 | R22: 2009-07-08 | S22: 2019-07-08 | T22: 2019-07-08 | U22: 0.7221082257 | V22: 5.551115123e-17 | X22: 0.7221082257 | Y22: TRUE | Z22: 2019-07-08 | AA22: 0.722236 | AB22: -1.277742998
B23: 14 | C23: EUBS12 | D23: Swap | E23: 2D | F23: 0D | G23: 0D | H23: 12Y | I23: 3M | J23: ModFol+EoM | K23: Act/360 | L23: 8L23 | M23: 3M | N23: ModFol+EoM | O23: Act/360 | P23: 8P23 | Q23: -0.00105 | R23: 2009-07-08 | S23: 2021-07-08 | T23: 2021-07-08 | U23: 0.6551847463 | V23: 0 | X23: 0.6551847463 | Y23: TRUE | Z23: 2021-07-08 | AA23: 0.655349 | AB23: -1.642537409
B24: 15 | C24: EUBS15 | D24: Swap | E24: 2D | F24: 0D | G24: 0D | H24: 15Y | I24: 3M | J24: ModFol+EoM | K24: Act/360 | L24: 8L24 | M24: 3M | N24: ModFol+EoM | O24: Act/360 | P24: 8P24 | Q24: -0.0005 | R24: 2009-07-08 | S24: 2024-07-08 | T24: 2024-07-08 | U24: 0.5612610193 | V24: -5.551115123e-17 | X24: 0.5612610193 | Y24: TRUE | Z24: 2024-07-08 | AA24: 0.561436 | AB24: -1.749807373
B25: 16 | C25: EUBS20 | D25: Swap | E25: 2D | F25: 0D | G25: 0D | H25: 20Y | I25: 3M | J25: ModFol+EoM | K25: Act/360 | L25: 8L25 | M25: 3M | N25: ModFol+EoM | O25: Act/360 | P25: 8P25 | Q25: 0.0001 | R25: 2009-07-08 | S25: 2029-07-09 | T25: 2029-07-09 | U25: 0.4394163654 | V25: 5.551115123e-17 | X25: 0.4394163654 | Y25: TRUE | Z25: 2029-07-09 | AA25: 0.439575 | AB25: -1.586346077
B26: 17 | C26: EUBS30 | D26: Swap | E26: 2D | F26: 0D | G26: 0D | H26: 30Y | I26: 3M | J26: ModFol+EoM | K26: Act/360 | L26: 8L26 | M26: 3M | N26: ModFol+EoM | O26: Act/360 | P26: 8P26 | Q26: 0.0004 | R26: 2009-07-08 | S26: 2039-07-08 | T26: 2039-07-08 | U26: 0.3030295492 | V26: -5.551115123e-17 | X26: 0.3030295492 | Y26: TRUE | Z26: 2039-07-08 | AA26: 0.303205 | AB26: -1.754507798

Sheet EUR.Basis
K3: trade date | M3: =EUR.OIS!$J$2 -> 2009-07-06 | Q3: Leg:1 | R3: Leg:2
K4: holiday list | M4: =Holidays!$E$4 -> 16E4 | Q4: 3M | R4: 1M
K5: stub period | M5: Rear | P5: projection | Q5: =EUR.3M!$N$3 -> 5N3 | R5: =EUR.1M!$N$3 -> 4N3
K6: fixing schedule | M6: 1 | P6: discount | Q6: =EUR.OIS!$N$4 -> 3N4 | R6: =EUR.OIS!$N$4 -> 3N4
D9: Spot | E9: Pay | F9: Forward | H9: Receiving Leg1: Floating | L9: Paying Leg2: Floating | P9: Effective Date | Q9: Maturity Date | R9: Last Payment | T9: Basis
B10: No. | C10: Type | D10: Lag | E10: Lag | F10: Start | G10: Tenor | H10: Period | I10: Date Rolling | J10: Day Count | K10: Leg ID | L10: Period | M10: Date Rolling | N10: Day Count | O10: Leg ID | P10: Start of Accrual | Q10: End of Accrual | R10: Date | T10: Spread | U10: PV
B12: =B11+1 -> 1 | C12: Swap | D12: 2D | E12: 0D | F12: 0D | G12: 1M | H12: 3M | I12: ModFol+EoM | J12: Act/360 | K12: =CreateLeg($M$3:$M$6, $C12:$G12, H12:J12) -> 9K12 | L12: 1M | M12: ModFol+EoM | N12: Act/360 | O12: =CreateLeg($M$3:$M$6, $C12:$G12, L12:N12) -> 9O12 | P12: =GetEffectiveDate($K12) -> 2009-07-08 | Q12: =GetMaturityDate($K12) -> 2009-08-10 | R12: =GetLastPaymentDate($K12) -> 2009-08-10 | T12: =Getspread(K12,$Q$5,$Q$6, O12,$R$5,$R$6) -> 0.003631013173 | U12: =GetLegPV(K12,$Q$5,$Q$6,0)-GetLegPV(O12,$R$5,$R$6,T12) -> 0
B13: 2 | C13: Swap | D13: 2D | E13: 0D | F13: 0D | G13: 3M | H13: 3M | I13: ModFol+EoM | J13: Act/360 | K13: =CreateLeg($M$3:$M$6, $C13:$G13, H13:J13) -> 9K13 | L13: 1M | M13: ModFol+EoM | N13: Act/360 | O13: =CreateLeg($M$3:$M$6, $C13:$G13, L13:N13) -> 9O13 | P13: =GetEffectiveDate($K13) -> 2009-07-08 | Q13: =GetMaturityDate($K13) -> 2009-10-08 | R13: =GetLastPaymentDate($K13) -> 2009-10-08 | T13: =Getspread(K13,$Q$5,$Q$6, O13,$R$5,$R$6) -> 0.003758124169 | U13: 0
B14: 3 | C14: Swap | D14: 2D | E14: 0D | F14: 0D | G14: 6M | H14: 3M | I14: ModFol+EoM | J14: Act/360 | K14: 9K14 | L14: 1M | M14: ModFol+EoM | N14: Act/360 | O14: 9O14 | P14: 2009-07-08 | Q14: 2010-01-08 | R14: 2010-01-08 | T14: 0.002796982628 | U14: 0
B15: 4 | C15: Swap | D15: 2D | E15: 0D | F15: 0D | G15: 9M | H15: 3M | I15: ModFol+EoM | J15: Act/360 | K15: 9K15 | L15: 1M | M15: ModFol+EoM | N15: Act/360 | O15: 9O15 | P15: 2009-07-08 | Q15: 2010-04-08 | R15: 2010-04-08 | T15: 0.002625866492 | U15: 1.561251128e-17
B16: 5 | C16: Swap | D16: 2D | E16: 0D | F16: 0D | G16: 12M | H16: 3M | I16: ModFol+EoM | J16: Act/360 | K16: 9K16 | L16: 1M | M16: ModFol+EoM | N16: Act/360 | O16: 9O16 | P16: 2009-07-08 | Q16: 2010-07-08 | R16: 2010-07-08 | T16: 0.002559547716 | U16: 2.255140519e-17
B17: 6 | C17: Swap | D17: 2D | E17: 0D | F17: 0D | G17: 2Y | H17: 3M | I17: ModFol+EoM | J17: Act/360 | K17: 9K17 | L17: 1M | M17: ModFol+EoM | N17: Act/360 | O17: 9O17 | P17: 2009-07-08 | Q17: 2011-07-08 | R17: 2011-07-08 | T17: 0.001827450374 | U17: 4.510281038e-17
B18: 7 | C18: Swap | D18: 2D | E18: 0D | F18: 0D | G18: 3Y | H18: 3M | I18: ModFol+EoM | J18: Act/360 | K18: 9K18 | L18: 1M | M18: ModFol+EoM | N18: Act/360 | O18: 9O18 | P18: 2009-07-08 | Q18: 2012-07-09 | R18: 2012-07-09 | T18: 0.001494714782 | U18: 0
B19: 8 | C19: Swap | D19: 2D | E19: 0D | F19: 0D | G19: 4Y | H19: 3M | I19: ModFol+EoM | J19: Act/360 | K19: 9K19 | L19: 1M | M19: ModFol+EoM | N19: Act/360 | O19: 9O19 | P19: 2009-07-08 | Q19: 2013-07-08 | R19: 2013-07-08 | T19: 0.001211841128 | U19: 0
B20: 9 | C20: Swap | D20: 2D | E20: 0D | F20: 0D | G20: 5Y | H20: 3M | I20: ModFol+EoM | J20: Act/360 | K20: 9K20 | L20: 1M | M20: ModFol+EoM | N20: Act/360 | O20: 9O20 | P20: 2009-07-08 | Q20: 2014-07-08 | R20: 2014-07-08 | T20: 0.001007197922 | U20: 0
B21: 10 | C21: Swap | D21: 2D | E21: 0D | F21: 0D | G21: 6Y | H21: 3M | I21: ModFol+EoM | J21: Act/360 | K21: 9K21 | L21: 1M | M21: ModFol+EoM | N21: Act/360 | O21: 9O21 | P21: 2009-07-08 | Q21: 2015-07-08 | R21: 2015-07-08 | T21: 0.0008806226758 | U21: 0
B22: 11 | C22: Swap | D22: 2D | E22: 0D | F22: 0D | G22: 7Y | H22: 3M | I22: ModFol+EoM | J22: Act/360 | K22: 9K22 | L22: 1M | M22: ModFol+EoM | N22: Act/360 | O22: 9O22 | P22: 2009-07-08 | Q22: 2016-07-08 | R22: 2016-07-08 | T22: 0.0007538871684 | U22: 0
B23: 12 | C23: Swap | D23: 2D | E23: 0D | F23: 0D | G23: 8Y | H23: 3M | I23: ModFol+EoM | J23: Act/360 | K23: 9K23 | L23: 1M | M23: ModFol+EoM | N23: Act/360 | O23: 9O23 | P23: 2009-07-08 | Q23: 2017-07-10 | R23: 2017-07-10 | T23: 0.0006761120413 | U23: 0
B24: 13 | C24: Swap | D24: 2D | E24: 0D | F24: 0D | G24: 9Y | H24: 3M | I24: ModFol+EoM | J24: Act/360 | K24: 9K24 | L24: 1M | M24: ModFol+EoM | N24: Act/360 | O24: 9O24 | P24: 2009-07-08 | Q24: 2018-07-09 | R24: 2018-07-09 | T24: 0.0006177497056 | U24: 0
B25: 14 | C25: Swap | D25: 2D | E25: 0D | F25: 0D | G25: 10Y | H25: 3M | I25: ModFol+EoM | J25: Act/360 | K25: 9K25 | L25: 1M | M25: ModFol+EoM | N25: Act/360 | O25: 9O25 | P25: 2009-07-08 | Q25: 2019-07-08 | R25: 2019-07-08 | T25: 0.00055948091 | U25: 0
B26: 15 | C26: Swap | D26: 2D | E26: 0D | F26: 0D | G26: 12Y | H26: 3M | I26: ModFol+EoM | J26: Act/360 | K26: 9K26 | L26: 1M | M26: ModFol+EoM | N26: Act/360 | O26: 9O26 | P26: 2009-07-08 | Q26: 2021-07-08 | R26: 2021-07-08 | T26: 0.0004527193588 | U26: 0
B27: 16 | C27: Swap | D27: 2D | E27: 0D | F27: 0D | G27: 15Y | H27: 3M | I27: ModFol+EoM | J27: Act/360 | K27: 9K27 | L27: 1M | M27: ModFol+EoM | N27: Act/360 | O27: 9O27 | P27: 2009-07-08 | Q27: 2024-07-08 | R27: 2024-07-08 | T27: 0.0003846353642 | U27: 0
B28: 17 | C28: Swap | D28: 2D | E28: 0D | F28: 0D | G28: 20Y | H28: 3M | I28: ModFol+EoM | J28: Act/360 | K28: 9K28 | L28: 1M | M28: ModFol+EoM | N28: Act/360 | O28: 9O28 | P28: 2009-07-08 | Q28: 2029-07-09 | R28: 2029-07-09 | T28: 0.0003073839108 | U28: 0
B29: 18 | C29: Swap | D29: 2D | E29: 0D | F29: 0D | G29: 25Y | H29: 3M | I29: ModFol+EoM | J29: Act/360 | K29: 9K29 | L29: 1M | M29: ModFol+EoM | N29: Act/360 | O29: 9O29 | P29: 2009-07-08 | Q29: 2034-07-10 | R29: 2034-07-10 | T29: 0.0002497984588 | U29: 0
B30: 19 | C30: Swap | D30: 2D | E30: 0D | F30: 0D | G30: 30Y | H30: 3M | I30: ModFol+EoM | J30: Act/360 | K30: 9K30 | L30: 1M | M30: ModFol+EoM | N30: Act/360 | O30: 9O30 | P30: 2009-07-08 | Q30: 2039-07-08 | R30: 2039-07-08 | T30: 0.0002209418276 | U30: 0
K33: trade date | M33: =EUR.OIS!$J$2 -> 2009-07-06 | Q33: 3M
K34: holiday list | M34: =Holidays!$E$4 -> 16E4 | P34: projection | Q34: =EUR.3M!$N$3 -> 5N3
K35: stub period | M35: Rear | P35: discount | Q35: =EUR.OIS!N4 -> 3N4
K36: fixing schedule | M36: 1
D40: Spot | E40: Pay | F40: Forward | H40: Receiving Leg1: Floating | L40: Paying Leg2: Fixed | P40: Effective Date | Q40: Maturity Date | R40: Last Payment | T40: Fixed
B41: No. | C41: Type | D41: Lag | E41: Lag | F41: Start | G41: Tenor | H41: Period | I41: Date Rolling | J41: Day Count | K41: Leg ID | L41: Period | M41: Date Rolling | N41: Day Count | O41: Leg ID | P41: Start of Accrual | Q41: End of Accrual | R41: Date | T41: Rate | U41: PV
B42: 20
B43: =B42+1 -> 21 | C43: Swap | D43: 2D | E43: 0D | F43: 0D | G43: 1M | H43: 3M | I43: ModFol+EoM | J43: Act/360 | K43: =CreateLeg($M$3:$M$6, $C43:$G43, H43:J43) -> 9K43 | L43: 12M | M43: ModFol+EoM | N43: 30E/360 | O43: =CreateLeg($M$3:$M$6, $C43:$G43, L43:N43) -> 9O43 | P43: =GetEffectiveDate($K43) -> 2009-07-08 | Q43: =GetMaturityDate($K43) -> 2009-08-10 | R43: =GetLastPaymentDate($K43) -> 2009-08-10 | T43: =Getspread(K43,$Q$34,$Q$35, O43,0,$Q$35) -> 0.01079823233 | U43: =GetLegPV(K43,$Q$34,$Q$35,0) - GetLegPV(O43,T43,$Q$35,0) -> 0
B44: 22 | C44: Swap | D44: 2D | E44: 0D | F44: 0D | G44: 3M | H44: 3M | I44: ModFollowing | J44: Act/360 | K44: =CreateLeg($M$3:$M$6, $C44:$G44, H44:J44) -> 9K44 | L44: 12M | M44: ModFol+EoM | N44: 30E/360 | O44: =CreateLeg($M$3:$M$6, $C44:$G44, L44:N44) -> 9O44 | P44: 2009-07-08 | Q44: 2009-10-08 | R44: 2009-10-08 | T44: =Getspread(K44,$Q$34,$Q$35, O44,0,$Q$35) -> 0.01071288889 | U44: =GetLegPV(K44,$Q$34,$Q$35,0)-GetLegPV(O44,T44,$R$6,0) -> -1.994931997e-17
B45: 23 | C45: Swap | D45: 2D | E45: 0D | F45: 0D | G45: 6M | H45: 3M | I45: ModFollowing | J45: Act/360 | K45: 9K45 | L45: 12M | M45: ModFol+EoM | N45: 30E/360 | O45: 9O45 | P45: 2009-07-08 | Q45: 2010-01-08 | R45: 2010-01-08 | T45: 0.01030468622 | U45: 4.423544864e-17
B46: 24 | C46: Swap | D46: 2D | E46: 0D | F46: 0D | G46: 9M | H46: 3M | I46: ModFollowing | J46: Act/360 | K46: 9K46 | L46: 12M | M46: ModFol+EoM | N46: 30E/360 | O46: 9O46 | P46: 2009-07-08 | Q46: 2010-04-08 | R46: 2010-04-08 | T46: 0.01047504296 | U46: -1.734723476e-17
B47: 25 | C47: Swap | D47: 2D | E47: 0D | F47: 0D | G47: 12M | H47: 3M | I47: ModFollowing | J47: Act/360 | K47: 9K47 | L47: 12M | M47: ModFol+EoM | N47: 30E/360 | O47: 9O47 | P47: 2009-07-08 | Q47: 2010-07-08 | R47: 2010-07-08 | T47: 0.01095489818 | U47: 7.979727989e-17
B48: 26 | C48: Swap | D48: 2D | E48: 0D | F48: 0D | G48: 2Y | H48: 3M | I48: ModFollowing | J48: Act/360 | K48: 9K48 | L48: 12M | M48: ModFol+EoM | N48: 30E/360 | O48: 9O48 | P48: 2009-07-08 | Q48: 2011-07-08 | R48: 2011-07-08 | T48: 0.01524415242 | U48: 0
B49: 27 | C49: Swap | D49: 2D | E49: 0D | F49: 0D | G49: 3Y | H49: 3M | I49: ModFollowing | J49: Act/360 | K49: 9K49 | L49: 12M | M49: ModFol+EoM | N49: 30E/360 | O49: 9O49 | P49: 2009-07-08 | Q49: 2012-07-09 | R49: 2012-07-09 | T49: 0.02015967631 | U49: 0
B50: 28 | C50: Swap | D50: 2D | E50: 0D | F50: 0D | G50: 4Y | H50: 3M | I50: ModFollowing | J50: Act/360 | K50: 9K50 | L50: 12M | M50: ModFol+EoM | N50: 30E/360 | O50: 9O50 | P50: 2009-07-08 | Q50: 2013-07-08 | R50: 2013-07-08 | T50: 0.02402203222 | U50: 0
B51: 29 | C51: Swap | D51: 2D | E51: 0D | F51: 0D | G51: 5Y | H51: 3M | I51: ModFollowing | J51: Act/360 | K51: 9K51 | L51: 12M | M51: ModFol+EoM | N51: 30E/360 | O51: 9O51 | P51: 2009-07-08 | Q51: 2014-07-08 | R51: 2014-07-08 | T51: 0.02699352487 | U51: 0
B52: 30 | C52: Swap | D52: 2D | E52: 0D | F52: 0D | G52: 6Y | H52: 3M | I52: ModFollowing | J52: Act/360 | K52: 9K52 | L52: 12M | M52: ModFol+EoM | N52: 30E/360 | O52: 9O52 | P52: 2009-07-08 | Q52: 2015-07-08 | R52: 2015-07-08 | T52: 0.02938451272 | U52: 0
B53: 31 | C53: Swap | D53: 2D | E53: 0D | F53: 0D | G53: 7Y | H53: 3M | I53: ModFollowing | J53: Act/360 | K53: 9K53 | L53: 12M | M53: ModFol+EoM | N53: 30E/360 | O53: 9O53 | P53: 2009-07-08 | Q53: 2016-07-08 | R53: 2016-07-08 | T53: 0.03128521336 | U53: 0
B54: 32 | C54: Swap | D54: 2D | E54: 0D | F54: 0D | G54: 8Y | H54: 3M | I54: ModFollowing | J54: Act/360 | K54: 9K54 | L54: 12M | M54: ModFol+EoM | N54: 30E/360 | O54: 9O54 | P54: 2009-07-08 | Q54: 2017-07-10 | R54: 2017-07-10 | T54: 0.03281566255 | U54: 0
B55: 33 | C55: Swap | D55: 2D | E55: 0D | F55: 0D | G55: 9Y | H55: 3M | I55: ModFollowing | J55: Act/360 | K55: 9K55 | L55: 12M | M55: ModFol+EoM | N55: 30E/360 | O55: 9O55 | P55: 2009-07-08 | Q55: 2018-07-09 | R55: 2018-07-09 | T55: 0.03409593348 | U55: 0
B56: 34 | C56: Swap | D56: 2D | E56: 0D | F56: 0D | G56: 10Y | H56: 3M | I56: ModFollowing | J56: Act/360 | K56: 9K56 | L56: 12M | M56: ModFol+EoM | N56: 30E/360 | O56: 9O56 | P56: 2009-07-08 | Q56: 2019-07-08 | R56: 2019-07-08 | T56: 0.03520620586 | U56: 0
B57: 35 | C57: Swap | D57: 2D | E57: 0D | F57: 0D | G57: 12Y | H57: 3M | I57: ModFollowing | J57: Act/360 | K57: 9K57 | L57: 12M | M57: ModFol+EoM | N57: 30E/360 | O57: 9O57 | P57: 2009-07-08 | Q57: 2021-07-08 | R57: 2021-07-08 | T57: 0.03713671376 | U57: 0
B58: 36 | C58: Swap | D58: 2D | E58: 0D | F58: 0D | G58: 15Y | H58: 3M | I58: ModFollowing | J58: Act/360 | K58: 9K58 | L58: 12M | M58: ModFol+EoM | N58: 30E/360 | O58: 9O58 | P58: 2009-07-08 | Q58: 2024-07-08 | R58: 2024-07-08 | T58: 0.0392269085 | U58: 0
B59: 37 | C59: Swap | D59: 2D | E59: 0D | F59: 0D | G59: 20Y | H59: 3M | I59: ModFollowing | J59: Act/360 | K59: 9K59 | L59: 12M | M59: ModFol+EoM | N59: 30E/360 | O59: 9O59 | P59: 2009-07-08 | Q59: 2029-07-09 | R59: 2029-07-09 | T59: 0.04072739629 | U59: 0
B60: 38 | C60: Swap | D60: 2D | E60: 0D | F60: 0D | G60: 25Y | H60: 3M | I60: ModFollowing | J60: Act/360 | K60: 9K60 | L60: 12M | M60: ModFol+EoM | N60: 30E/360 | O60: 9O60 | P60: 2009-07-08 | Q60: 2034-07-10 | R60: 2034-07-10 | T60: 0.04050790664 | U60: 0
B61: 39 | C61: Swap | D61: 2D | E61: 0D | F61: 0D | G61: 30Y | H61: 3M | I61: ModFollowing | J61: Act/360 | K61: 9K61 | L61: 12M | M61: ModFol+EoM | N61: 30E/360 | O61: 9O61 | P61: 2009-07-08 | Q61: 2039-07-08 | R61: 2039-07-08 | T61: 0.03995805336 | U61: 0

Sheet EUR.1M.Basis
N1: 1M | O1: 3M
C2: DF cell starts at: | D2: =GetCellAddress(U9) -> U9 | H2: trade date | J2: =EUR.OIS!$J$2 -> 2009-07-06 | L2: interp. mode | N2: LinearLogDisc
C3: PV cell starts at: | D3: =GetCellAddress(V9) -> V9 | H3: holiday list | J3: =Holidays!E4 -> 16E4 | L3: proj. curve | N3: =CreateCurve(T$9:T$38, U$9:U$38, N$2) -> 10N3 | O3: =EUR.3M!N3 -> 5N3
C4: # of products: | D4: =MAX(B:B) -> 29 | H4: stub period | J4: Rear | L4: disc. curve | N4: =EUR.OIS!$N$4 -> 3N4 | O4: =EUR.OIS!$N$4 -> 3N4
C5: current calib. | D5: 0 | H5: fixing schedule | J5: 1
C7: Product | E7: Spot | F7: Pay | G7: Forward | I7: Receiving Leg1: Floating | M7: Paying Leg2 | Q7: Market | R7: Effective Date | S7: Maturity Date | T7: Last Payment | U7: Discount | V7: Present | X7: Comparison to outputs in Bloomberg Terminal
B8: No. | C8: Ticker | D8: Type | E8: Lag | F8: Lag | G8: Start | H8: Tenor | I8: Period | J8: Date Rolling | K8: Day Count | L8: Leg ID | M8: Period | N8: Date Rolling | O8: Day Count | P8: Leg ID | Q8: Rate | R8: Start of Accrual | S8: End of Accrual | T8: Date | U8: Factor | V8: Value | X8: Derived | Z8: Date | AA8: Reference | AB8: diff.(bps)
S9: =R10 -> 2009-07-08 | T9: =R10 -> 2009-07-08 | U9: 1 | X9: D. Factor | Z9: =S9 -> 2009-07-08 | AA9: D. Factor
B10: =B9+1 -> 1 | C10: EUR001M Index | D10: Swap | E10: 2D | F10: 0D | G10: 0D | H10: 1M | I10: 1M | J10: ModFol+EoM | K10: Act/360 | L10: =CreateLeg($J$2:$J$5, $D10:$H10, I10:K10) -> 10L10 | M10: 12M | N10: ModFol+EoM | O10: Act/360 | P10: =CreateLeg($J$2:$J$5, $D10:$H10, M10:O10) -> 10P10 | Q10: =EUR.1M!Q10 -> 0.00684 | R10: =GetEffectiveDate($L10) -> 2009-07-08 | S10: =GetMaturityDate($L10) -> 2009-08-10 | T10: =GetLastPaymentDate($L10) -> 2009-08-10 | U10: 0.9993733929 | V10: =IF(OR($D$5=0,$D$5=B10), GetLegPV(L10,$N$3,$N$4,0) - GetLegPV(P10,Q10,$N$4,0)) -> -6.689527404e-17 | X10: =GetCurveDiscountFactor($N$3,Z10) -> 0.9993733929 | Y10: =S10=Z10 -> TRUE | Z10: 2009-08-10 | AA10: 0.99937 | AB10: =(X10-AA10)*10000 -> 0.03392882663
B11: 2 | C11: EUSWBV1 CMPN Curncy | D11: Swap | E11: 2D | F11: 0D | G11: 0D | H11: 2M | I11: 1M | J11: ModFol+EoM | K11: Act/360 | L11: =CreateLeg($J$2:$J$5, $D11:$H11, I11:K11) -> 10L11 | M11: 12M | N11: ModFol+EoM | O11: Act/360 | P11: =CreateLeg($J$2:$J$5, $D11:$H11, M11:O11) -> 10P11 | Q11: =EUR.1M!Q11 -> 0.00665 | R11: =GetEffectiveDate($L11) -> 2009-07-08 | S11: =GetMaturityDate($L11) -> 2009-09-08 | T11: =GetLastPaymentDate($L11) -> 2009-09-08 | U11: 0.9988559909 | V11: -1.170938346e-16 | X11: =GetCurveDiscountFactor($N$3,Z11) -> 0.9988559909 | Y11: TRUE | Z11: 2009-09-08 | AA11: 0.99886 | AB11: =(X11-AA11)*10000 -> -0.04009082008
B12: 3 | C12: EUSWCV1 CMPN Curncy | D12: Swap | E12: 2D | F12: 0D | G12: 0D | H12: 3M | I12: 1M | J12: ModFol+EoM | K12: Act/360 | L12: 10L12 | M12: 12M | N12: ModFol+EoM | O12: Act/360 | P12: 10P12 | Q12: =EUR.1M!Q12 -> 0.00672 | R12: 2009-07-08 | S12: 2009-10-08 | T12: 2009-10-08 | U12: 0.9982854879 | V12: 6.22332047e-17 | X12: 0.9982854879 | Y12: TRUE | Z12: 2009-10-08 | AA12: 0.99829 | AB12: -0.04512055459
B13: 4 | C13: EUSWDV1 CMPN Curncy | D13: Swap | E13: 2D | F13: 0D | G13: 0D | H13: 4M | I13: 1M | J13: ModFol+EoM | K13: Act/360 | L13: 10L13 | M13: 12M | N13: ModFol+EoM | O13: Act/360 | P13: 10P13 | Q13: =EUR.1M!Q13 -> 0.00677 | R13: 2009-07-08 | S13: 2009-11-09 | T13: 2009-11-09 | U13: 0.9976733093 | V13: -7.329206686e-17 | X13: 0.9976733093 | Y13: TRUE | Z13: 2009-11-09 | AA13: 0.99767 | AB13: 0.03309331654
B14: 5 | C14: EUSWEV1 CMPN Curncy | D14: Swap | E14: 2D | F14: 0D | G14: 0D | H14: 5M | I14: 1M | J14: ModFol+EoM | K14: Act/360 | L14: 10L14 | M14: 12M | N14: ModFol+EoM | O14: Act/360 | P14: 10P14 | Q14: =EUR.1M!Q14 -> 0.00694 | R14: 2009-07-08 | S14: 2009-12-08 | T14: 2009-12-08 | U14: 0.9970587044 | V14: -8.760353554e-17 | X14: 0.9970587044 | Y14: TRUE | Z14: 2009-12-08 | AA14: 0.99706 | AB14: -0.01295554424
B15: 6 | C15: EUSWFV1 CMPN Curncy | D15: Swap | E15: 2D | F15: 0D | G15: 0D | H15: 6M | I15: 1M | J15: ModFol+EoM | K15: Act/360 | L15: 10L15 | M15: 12M | N15: ModFol+EoM | O15: Act/360 | P15: 10P15 | Q15: =EUR.1M!Q15 -> 0.00728 | R15: 2009-07-08 | S15: 2010-01-08 | T15: 2010-01-08 | U15: 0.9962917563 | V15: -1.734723476e-17 | X15: 0.9962917563 | Y15: TRUE | Z15: 2010-01-08 | AA15: 0.99629 | AB15: 0.01756299323
B16: 7 | C16: EUSWGV1 CMPN Curncy | D16: Swap | E16: 2D | F16: 0D | G16: 0D | H16: 7M | I16: 1M | J16: ModFol+EoM | K16: Act/360 | L16: 10L16 | M16: 12M | N16: ModFol+EoM | O16: Act/360 | P16: 10P16 | Q16: =EUR.1M!Q16 -> 0.00772 | R16: 2009-07-08 | S16: 2010-02-08 | T16: 2010-02-08 | U16: 0.995408419 | V16: -1.006139616e-16 | X16: 0.995408419 | Y16: TRUE | Z16: 2010-02-08 | AA16: 0.99541 | AB16: -0.01580984147
B17: 8 | C17: EUSWHV1 CMPN Curncy | D17: Swap | E17: 2D | F17: 0D | G17: 0D | H17: 8M | I17: 1M | J17: ModFol+EoM | K17: Act/360 | L17: 10L17 | M17: 12M | N17: ModFol+EoM | O17: Act/360 | P17: 10P17 | Q17: =EUR.1M!Q17 -> 0.00746 | R17: 2009-07-08 | S17: 2010-03-08 | T17: 2010-03-08 | U17: 0.9949882086 | V17: 4.33680869e-18 | X17: 0.9949882086 | Y17: TRUE | Z17: 2010-03-08 | AA17: 0.99499 | AB17: -0.01791426098
B18: 9 | C18: EUSWIV1 CMPN Curncy | D18: Swap | E18: 2D | F18: 0D | G18: 0D | H18: 9M | I18: 1M | J18: ModFol+EoM | K18: Act/360 | L18: 10L18 | M18: 12M | N18: ModFol+EoM | O18: Act/360 | P18: 10P18 | Q18: =EUR.1M!Q18 -> 0.00769 | R18: 2009-07-08 | S18: 2010-04-08 | T18: 2010-04-08 | U18: 0.9941791462 | V18: -7.806255642e-17 | X18: 0.9941791462 | Y18: TRUE | Z18: 2010-04-08 | AA18: 0.99418 | AB18: -0.008538463863
B19: 10 | C19: EUSWJV1 CMPN Curncy | D19: Swap | E19: 2D | F19: 0D | G19: 0D | H19: 10M | I19: 1M | J19: ModFol+EoM | K19: Act/360 | L19: 10L19 | M19: 12M | N19: ModFol+EoM | O19: Act/360 | P19: 10P19 | Q19: =EUR.1M!Q19 -> 0.00788 | R19: 2009-07-08 | S19: 2010-05-10 | T19: 2010-05-10 | U19: 0.9933441081 | V19: 2.255140519e-17 | X19: 0.9933441081 | Y19: TRUE | Z19: 2010-05-10 | AA19: 0.99334 | AB19: 0.04108105517
B20: 11 | C20: EUSWKV1 CMPN Curncy | D20: Swap | E20: 2D | F20: 0D | G20: 0D | H20: 11M | I20: 1M | J20: ModFol+EoM | K20: Act/360 | L20: 10L20 | M20: 12M | N20: ModFol+EoM | O20: Act/360 | P20: 10P20 | Q20: =EUR.1M!Q20 -> 0.00802 | R20: 2009-07-08 | S20: 2010-06-08 | T20: 2010-06-08 | U20: 0.9925893134 | V20: -4.423544864e-17 | X20: 0.9925893134 | Y20: TRUE | Z20: 2010-06-08 | AA20: 0.99259 | AB20: -0.006866375519
B21: 12 | C21: EUSW1V1 CMPN Curncy | D21: Swap | E21: 2D | F21: 0D | G21: 0D | H21: 12M | I21: 1M | J21: ModFol+EoM | K21: Act/360 | L21: 10L21 | M21: 12M | N21: ModFol+EoM | O21: 30E/360 | P21: 10P21 | Q21: =EUR.1M!Q21 -> 0.00835 | R21: 2009-07-08 | S21: 2010-07-08 | T21: 2010-07-08 | U21: 0.9917164615 | V21: -8.67361738e-18 | X21: 0.9917164615 | Y21: TRUE | Z21: 2010-07-08 | AA21: 0.99172 | AB21: -0.03538518085
B22: 13 | C22: EUSW1CV1 CMPN Curncy | D22: Swap | E22: 2D | F22: 0D | G22: 0D | H22: 15M | I22: 1M | J22: ModFol+EoM | K22: Act/360 | L22: 10L22 | M22: 12M | N22: ModFol+EoM | O22: 30E/360 | P22: 10P22 | Q22: =EUR.1M!Q22 -> 0.00931 | R22: 2009-07-08 | S22: 2010-10-08 | T22: 2010-10-08 | U22: 0.988463798 | V22: 2.602085214e-17 | X22: 0.988463798 | Y22: TRUE | Z22: 2010-10-08 | AA22: 0.98846 | AB22: 0.03798046765
B23: 14 | C23: EUSW1FV1 CMPN Curncy | D23: Swap | E23: 2D | F23: 0D | G23: 0D | H23: 18M | I23: 1M | J23: ModFol+EoM | K23: Act/360 | L23: 10L23 | M23: 12M | N23: ModFol+EoM | O23: 30E/360 | P23: 10P23 | Q23: =EUR.1M!Q23 -> 0.01063 | R23: 2009-07-08 | S23: 2011-01-10 | T23: 2011-01-10 | U23: 0.9841642448 | V23: 7.285838599e-17 | X23: 0.9841642448 | Y23: TRUE | Z23: 2011-01-10 | AA23: 0.98416 | AB23: 0.04244815043
B24: 15 | C24: EUSW1IV1 CMPN Curncy | D24: Swap | E24: 2D | F24: 0D | G24: 0D | H24: 21M | I24: 1M | J24: ModFol+EoM | K24: Act/360 | L24: 10L24 | M24: 12M | N24: ModFol+EoM | O24: 30E/360 | P24: 10P24 | Q24: =EUR.1M!Q24 -> 0.01186 | R24: 2009-07-08 | S24: 2011-04-08 | T24: 2011-04-08 | U24: 0.9795215154 | V24: 2.775557562e-17 | X24: 0.9795215154 | Y24: TRUE | Z24: 2011-04-08 | AA24: 0.97952 | AB24: 0.01515421634
B25: 16 | C25: EUSW2V1 CMPN Curncy | D25: Swap | E25: 2D | F25: 0D | G25: 0D | H25: 2Y | I25: 1M | J25: ModFol+EoM | K25: Act/360 | L25: 10L25 | M25: 12M | N25: ModFol+EoM | O25: 30E/360 | P25: 10P25 | Q25: =EUR.1M!Q25 -> 0.01338 | R25: 2009-07-08 | S25: 2011-07-08 | T25: 2011-07-08 | U25: 0.973690448 | V25: 7.632783294e-17 | X25: 0.973690448 | Y25: TRUE | Z25: 2011-07-08 | AA25: 0.97369 | AB25: 0.004479827447
B26: 17 | C26: Basis Swap | D26: Swap | E26: 2D | F26: 0D | G26: 0D | H26: 3Y | I26: 1M | J26: ModFol+EoM | K26: Act/360 | L26: 10L26 | M26: 3M | N26: ModFol+EoM | O26: Act/360 | P26: 10P26 | Q26: =EUR.Basis!T18 -> 0.001494714782 | R26: 2009-07-08 | S26: 2012-07-09 | T26: 2012-07-09 | U26: 0.9457252922 | V26: =IF(OR($D$5=0,$D$5=B26), GetLegPV(L26,$N$3,$N$4,Q26) - GetLegPV(P26,$O$3,$O$4,0)) -> 4.163336342e-17 | X26: 0.9457252922 | Y26: TRUE | Z26: 2012-07-09 | AA26: 0.94573 | AB26: -0.04707750963
B27: 18 | C27: Basis Swap | D27: Swap | E27: 2D | F27: 0D | G27: 0D | H27: 4Y | I27: 1M | J27: ModFol+EoM | K27: Act/360 | L27: 10L27 | M27: 3M | N27: ModFol+EoM | O27: Act/360 | P27: 10P27 | Q27: =EUR.Basis!T19 -> 0.001211841128 | R27: 2009-07-08 | S27: 2013-07-08 | T27: 2013-07-08 | U27: 0.912908916 | V27: 6.938893904e-17 | X27: 0.912908916 | Y27: TRUE | Z27: 2013-07-08 | AA27: 0.91291 | AB27: -0.01084033799
B28: 19 | C28: Basis Swap | D28: Swap | E28: 2D | F28: 0D | G28: 0D | H28: 5Y | I28: 1M | J28: ModFol+EoM | K28: Act/360 | L28: 10L28 | M28: 3M | N28: ModFol+EoM | O28: Act/360 | P28: 10P28 | Q28: =EUR.Basis!T20 -> 0.001007197922 | R28: 2009-07-08 | S28: 2014-07-08 | T28: 2014-07-08 | U28: 0.8779783535 | V28: 0 | X28: 0.8779783535 | Y28: TRUE | Z28: 2014-07-08 | AA28: 0.87798 | AB28: -0.01646535849
B29: 20 | C29: Basis Swap | D29: Swap | E29: 2D | F29: 0D | G29: 0D | H29: 6Y | I29: 1M | J29: ModFol+EoM | K29: Act/360 | L29: 10L29 | M29: 3M | N29: ModFol+EoM | O29: Act/360 | P29: 10P29 | Q29: =EUR.Basis!T21 -> 0.0008806226758 | R29: 2009-07-08 | S29: 2015-07-08 | T29: 2015-07-08 | U29: 0.8421743798 | V29: -1.110223025e-16 | X29: 0.8421743798 | Y29: TRUE | Z29: 2015-07-08 | AA29: 0.84217 | AB29: 0.04379836355
B30: 21 | C30: Basis Swap | D30: Swap | E30: 2D | F30: 0D | G30: 0D | H30: 7Y | I30: 1M | J30: ModFol+EoM | K30: Act/360 | L30: 10L30 | M30: 3M | N30: ModFol+EoM | O30: Act/360 | P30: 10P30 | Q30: =EUR.Basis!T22 -> 0.0007538871684 | R30: 2009-07-08 | S30: 2016-07-08 | T30: 2016-07-08 | U30: 0.8063553145 | V30: -1.387778781e-16 | X30: 0.8063553145 | Y30: TRUE | Z30: 2016-07-08 | AA30: 0.80636 | AB30: -0.04685480485
B31: 22 | C31: Basis Swap | D31: Swap | E31: 2D | F31: 0D | G31: 0D | H31: 8Y | I31: 1M | J31: ModFol+EoM | K31: Act/360 | L31: 10L31 | M31: 3M | N31: ModFol+EoM | O31: Act/360 | P31: 10P31 | Q31: =EUR.Basis!T23 -> 0.0006761120413 | R31: 2009-07-08 | S31: 2017-07-10 | T31: 2017-07-10 | U31: 0.7712675961 | V31: -5.551115123e-17 | X31: 0.7712675961 | Y31: TRUE | Z31: 2017-07-10 | AA31: 0.77127 | AB31: -0.02403949736
B32: 23 | C32: Basis Swap | D32: Swap | E32: 2D | F32: 0D | G32: 0D | H32: 9Y | I32: 1M | J32: ModFol+EoM | K32: Act/360 | L32: 10L32 | M32: 3M | N32: ModFol+EoM | O32: Act/360 | P32: 10P32 | Q32: =EUR.Basis!T24 -> 0.0006177497056 | R32: 2009-07-08 | S32: 2018-07-09 | T32: 2018-07-09 | U32: 0.737171554 | V32: 2.220446049e-16 | X32: 0.737171554 | Y32: TRUE | Z32: 2018-07-09 | AA32: 0.73717 | AB32: 0.01554026353
B33: 24 | C33: Basis Swap | D33: Swap | E33: 2D | F33: 0D | G33: 0D | H33: 10Y | I33: 1M | J33: ModFol+EoM | K33: Act/360 | L33: 10L33 | M33: 3M | N33: ModFol+EoM | O33: Act/360 | P33: 10P33 | Q33: =EUR.Basis!T25 -> 0.00055948091 | R33: 2009-07-08 | S33: 2019-07-08 | T33: 2019-07-08 | U33: 0.7037276559 | V33: -5.551115123e-17 | X33: 0.7037276559 | Y33: TRUE | Z33: 2019-07-08 | AA33: 0.70373 | AB33: -0.02344065898
B34: 25 | C34: Basis Swap | D34: Swap | E34: 2D | F34: 0D | G34: 0D | H34: 12Y | I34: 1M | J34: ModFol+EoM | K34: Act/360 | L34: 10L34 | M34: 3M | N34: ModFol+EoM | O34: Act/360 | P34: 10P34 | Q34: =EUR.Basis!T26 -> 0.0004527193588 | R34: 2009-07-08 | S34: 2021-07-08 | T34: 2021-07-08 | U34: 0.6384144401 | V34: 1.665334537e-16 | X34: 0.6384144401 | Y34: TRUE | Z34: 2021-07-08 | AA34: 0.63841 | AB34: 0.04440116034
B35: 26 | C35: Basis Swap | D35: Swap | E35: 2D | F35: 0D | G35: 0D | H35: 15Y | I35: 1M | J35: ModFol+EoM | K35: Act/360 | L35: 10L35 | M35: 3M | N35: ModFol+EoM | O35: Act/360 | P35: 10P35 | Q35: =EUR.Basis!T27 -> 0.0003846353642 | R35: 2009-07-08 | S35: 2024-07-08 | T35: 2024-07-08 | U35: 0.549924692 | V35: 5.551115123e-17 | X35: 0.549924692 | Y35: TRUE | Z35: 2024-07-08 | AA35: 0.54993 | AB35: -0.05308039212
B36: 27 | C36: Basis Swap | D36: Swap | E36: 2D | F36: 0D | G36: 0D | H36: 20Y | I36: 1M | J36: ModFol+EoM | K36: Act/360 | L36: 10L36 | M36: 3M | N36: ModFol+EoM | O36: Act/360 | P36: 10P36 | Q36: =EUR.Basis!T28 -> 0.0003073839108 | R36: 2009-07-08 | S36: 2029-07-09 | T36: 2029-07-09 | U36: 0.4350187681 | V36: -2.220446049e-16 | X36: 0.4350187681 | Y36: TRUE | Z36: 2029-07-09 | AA36: 0.43502 | AB36: -0.01231905577
B37: 28 | C37: Basis Swap | D37: Swap | E37: 2D | F37: 0D | G37: 0D | H37: 25Y | I37: 1M | J37: ModFol+EoM | K37: Act/360 | L37: 10L37 | M37: 3M | N37: ModFol+EoM | O37: Act/360 | P37: 10P37 | Q37: =EUR.Basis!T29 -> 0.0002497984588 | R37: 2009-07-08 | S37: 2034-07-10 | T37: 2034-07-10 | U37: 0.3589702951 | V37: 2.220446049e-16 | X37: 0.3589702951 | Y37: TRUE | Z37: 2034-07-10 | AA37: 0.35897 | AB37: 0.002951191025
B38: 29 | C38: Basis Swap | D38: Swap | E38: 2D | F38: 0D | G38: 0D | H38: 30Y | I38: 1M | J38: ModFol+EoM | K38: Act/360 | L38: 10L38 | M38: 3M | N38: ModFol+EoM | O38: Act/360 | P38: 10P38 | Q38: =EUR.Basis!T30 -> 0.0002209418276 | R38: 2009-07-08 | S38: 2039-07-08 | T38: 2039-07-08 | U38: 0.3025983356 | V38: -1.110223025e-16 | X38: 0.3025983356 | Y38: TRUE | Z38: 2039-07-08 | AA38: 0.3026 | AB38: -0.01664410199

Sheet USD.OIS
C2: DF cell starts at: | D2: =GetCellAddress(U9) -> U9 | H2: trade date | J2: 2009-07-06 | L2: interp. mode | N2: LinearLogDisc
C3: PV cell starts at: | D3: =GetCellAddress(V9) -> V9 | H3: holiday list | J3: =Holidays!E3 -> 16E3 | L3: proj. curve | N3: =CreateCurve(S$9:S$35, U$9:U$35, N$2) -> 11N3
C4: # of products: | D4: =MAX(B:B) -> 26 | H4: stub period | J4: Rear | L4: disc. curve | N4: =CreateCurve(T$9:T$35, U$9:U$35, N$2) -> 11N4
C5: current calib. | D5: 0 | H5: fixing schedule | J5: 1
C7: Product | E7: Spot | F7: Pay | G7: Forward | I7: Receiving Leg1: Floating | M7: Paying Leg2: Fixed | Q7: Market | R7: Effective Date | S7: Maturity Date | T7: Last Payment | U7: Discount | V7: Present | X7: Comparison to outputs in Bloomberg Terminal
B8: No. | C8: Ticker | D8: Type | E8: Lag | F8: Lag | G8: Start | H8: Tenor | I8: Period | J8: Date Rolling | K8: Day Count | L8: Leg ID | M8: Period | N8: Date Rolling | O8: Day Count | P8: Leg ID | Q8: Rate | R8: Start of Accrual | S8: End of Accrual | T8: Date | U8: Factor | V8: Value | X8: Derived | Z8: Date | AA8: Reference | AB8: diff.(bps)
S9: =R10 -> 2009-07-08 | T9: =R10 -> 2009-07-08 | U9: 1 | X9: D. Factor | Z9: =T9 -> 2009-07-08 | AA9: D. Factor
B10: =B9+1 -> 1 | C10: FEDL01 Index | D10: Cash | E10: 2D | F10: 0D | G10: 0D | H10: 1D | I10: 12M | J10: ModFol+EoM | K10: Act/360 | L10: =CreateLeg($J$2:$J$5, $D10:$H10, I10:K10) -> 11L10 | M10: 12M | N10: ModFol+EoM | O10: Act/360 | P10: =CreateLeg($J$2:$J$5, $D10:$H10, M10:O10) -> 11P10 | Q10: 0.0018 | R10: =GetEffectiveDate($L10) -> 2009-07-08 | S10: =GetMaturityDate($L10) -> 2009-07-09 | T10: =GetLastPaymentDate($L10) -> 2009-07-09 | U10: 0.999995 | V10: =IF(OR($D$5=0,$D$5=B10), GetLegPV(L10,$N$3,$N$4,0) - GetLegPV(P10,Q10,$N$4,0)) -> 3.27556111e-17 | X10: =GetCurveDiscountFactor($N$4,Z10) -> 0.999995 | Y10: =T10=Z10 -> TRUE | Z10: 2009-07-09 | AA10: 0.999995 | AB10: =(X10-AA10)*10000 -> 2.499989105e-07
B11: 2 | C11: USSO1Z BGN Curncy | D11: Cash | E11: 2D | F11: 2D | G11: 0D | H11: 1W | I11: 12M | J11: ModFol+EoM | K11: Act/360 | L11: =CreateLeg($J$2:$J$5, $D11:$H11, I11:K11) -> 11L11 | M11: 12M | N11: ModFol+EoM | O11: Act/360 | P11: =CreateLeg($J$2:$J$5, $D11:$H11, M11:O11) -> 11P11 | Q11: 0.00186 | R11: =GetEffectiveDate($L11) -> 2009-07-08 | S11: =GetMaturityDate($L11) -> 2009-07-15 | T11: =GetLastPaymentDate($L11) -> 2009-07-17 | U11: 0.9999638346 | V11: -5.172321989e-17 | X11: =GetCurveDiscountFactor($N$4,Z11) -> 0.9999638346 | Y11: =T11=Z11 -> TRUE | Z11: 2009-07-17 | AA11: 0.999964 | AB11: =(X11-AA11)*10000 -> -0.001653586861
B12: 3 | C12: USSO2Z BGN Curncy | D12: Cash | E12: 2D | F12: 2D | G12: 0D | H12: 2W | I12: 12M | J12: ModFol+EoM | K12: Act/360 | L12: 11L12 | M12: 12M | N12: ModFol+EoM | O12: Act/360 | P12: 11P12 | Q12: 0.00186 | R12: 2009-07-08 | S12: 2009-07-22 | T12: 2009-07-24 | U12: 0.9999276719 | V12: -1.034328873e-16 | X12: 0.9999276719 | Y12: TRUE | Z12: 2009-07-24 | AA12: 0.999928 | AB12: -0.003281016007
B13: 4 | C13: USSO3Z BGN Curncy | D13: Cash | E13: 2D | F13: 2D | G13: 0D | H13: 3W | I13: 12M | J13: ModFol+EoM | K13: Act/360 | L13: 11L13 | M13: 12M | N13: ModFol+EoM | O13: Act/360 | P13: 11P13 | Q13: 0.00186 | R13: 2009-07-08 | S13: 2009-07-29 | T13: 2009-07-31 | U13: 0.9998915118 | V13: 6.686816899e-17 | X13: 0.9998915118 | Y13: TRUE | Z13: 2009-07-31 | AA13: 0.999892 | AB13: -0.004882290272
B14: 5 | C14: USSOA BGN Curncy | D14: Swap | E14: 2D | F14: 2D | G14: 0D | H14: 1M | I14: 12M | J14: ModFol+EoM | K14: Act/360 | L14: 11L14 | M14: 12M | N14: ModFol+EoM | O14: Act/360 | P14: 11P14 | Q14: 0.00188 | R14: 2009-07-08 | S14: 2009-08-10 | T14: 2009-08-12 | U14: 0.9998276964 | V14: 1.075799606e-16 | X14: 0.9998276964 | Y14: TRUE | Z14: 2009-08-12 | AA14: 0.999828 | AB14: -0.003036396728
B15: 6 | C15: USSOB BGN Curncy | D15: Swap | E15: 2D | F15: 2D | G15: 0D | H15: 2M | I15: 12M | J15: ModFol+EoM | K15: Act/360 | L15: 11L15 | M15: 12M | N15: ModFol+EoM | O15: Act/360 | P15: 11P15 | Q15: 0.00196 | R15: 2009-07-08 | S15: 2009-09-08 | T15: 2009-09-10 | U15: 0.9996625583 | V15: 3.534499082e-17 | X15: 0.9996625583 | Y15: TRUE | Z15: 2009-09-10 | AA15: 0.999663 | AB15: -0.004416502519
B16: 7 | C16: USSOC BGN Curncy | D16: Swap | E16: 2D | F16: 2D | G16: 0D | H16: 3M | I16: 12M | J16: ModFol+EoM | K16: Act/360 | L16: 11L16 | M16: 12M | N16: ModFol+EoM | O16: Act/360 | P16: 11P16 | Q16: 0.00203 | R16: 2009-07-08 | S16: 2009-10-08 | T16: 2009-10-13 | U16: 0.9994814912 | V16: -2.081668171e-17 | X16: 0.9994814912 | Y16: TRUE | Z16: 2009-10-13 | AA16: 0.999481 | AB16: 0.004912130585
B17: 8 | C17: USSOD BGN Curncy | D17: Swap | E17: 2D | F17: 2D | G17: 0D | H17: 4M | I17: 12M | J17: ModFol+EoM | K17: Act/360 | L17: 11L17 | M17: 12M | N17: ModFol+EoM | O17: Act/360 | P17: 11P17 | Q17: 0.00215 | R17: 2009-07-08 | S17: 2009-11-09 | T17: 2009-11-12 | U17: 0.9992599925 | V17: -3.339342691e-17 | X17: 0.9992599925 | Y17: TRUE | Z17: 2009-11-12 | AA17: 0.99926 | AB17: -7.538861424e-05
B18: 9 | C18: USSOE BGN Curncy | D18: Swap | E18: 2D | F18: 2D | G18: 0D | H18: 5M | I18: 12M | J18: ModFol+EoM | K18: Act/360 | L18: 11L18 | M18: 12M | N18: ModFol+EoM | O18: Act/360 | P18: 11P18 | Q18: 0.0023 | R18: 2009-07-08 | S18: 2009-12-08 | T18: 2009-12-10 | U18: 0.9990234546 | V18: 7.556889142e-17 | X18: 0.9990234546 | Y18: TRUE | Z18: 2009-12-10 | AA18: 0.999023 | AB18: 0.004545731547
B19: 10 | C19: USSOF BGN Curncy | D19: Swap | E19: 2D | F19: 2D | G19: 0D | H19: 6M | I19: 12M | J19: ModFol+EoM | K19: Act/360 | L19: 11L19 | M19: 12M | N19: ModFol+EoM | O19: Act/360 | P19: 11P19 | Q19: 0.0024 | R19: 2009-07-08 | S19: 2010-01-08 | T19: 2010-01-12 | U19: 0.9987748362 | V19: 4.27175656e-17 | X19: 0.9987748362 | Y19: TRUE | Z19: 2010-01-12 | AA19: 0.998775 | AB19: -0.001637990732
B20: 11 | C20: USSOI BGN Curncy | D20: Swap | E20: 2D | F20: 2D | G20: 0D | H20: 9M | I20: 12M | J20: ModFol+EoM | K20: Act/360 | L20: 11L20 | M20: 12M | N20: ModFol+EoM | O20: Act/360 | P20: 11P20 | Q20: 0.003075 | R20: 2009-07-08 | S20: 2010-04-08 | T20: 2010-04-12 | U20: 0.9976650481 | V20: 6.722053469e-17 | X20: 0.9976650481 | Y20: TRUE | Z20: 2010-04-12 | AA20: 0.997665 | AB20: 0.0004809369059
B21: 12 | C21: USSO1 BGN Curncy | D21: Swap | E21: 2D | F21: 2D | G21: 0D | H21: 12M | I21: 12M | J21: ModFol+EoM | K21: Act/360 | L21: 11L21 | M21: 12M | N21: ModFol+EoM | O21: Act/360 | P21: 11P21 | Q21: 0.00418 | R21: 2009-07-08 | S21: 2010-07-08 | T21: 2010-07-12 | U21: 0.9957798298 | V21: -1.014813233e-16 | X21: 0.9957798298 | Y21: TRUE | Z21: 2010-07-12 | AA21: 0.99578 | AB21: -0.001702396261
B22: 13 | C22: USSO1F BGN Curncy | D22: Swap | E22: 2D | F22: 2D | G22: 0D | H22: 18M | I22: 12M | J22: ModFol+EoM | K22: Act/360 | L22: 11L22 | M22: 12M | N22: ModFol+EoM | O22: Act/360 | P22: 11P22 | Q22: 0.006825 | R22: 2009-07-08 | S22: 2011-01-10 | T22: 2011-01-12 | U22: 0.9896197643 | V22: -9.714451465e-17 | X22: 0.9896197643 | Y22: TRUE | Z22: 2011-01-12 | AA22: 0.98962 | AB22: -0.002356618082
B23: 14 | C23: USSO2 BGN Curncy | D23: Swap | E23: 2D | F23: 2D | G23: 0D | H23: 2Y | I23: 12M | J23: ModFol+EoM | K23: Act/360 | L23: 11L23 | M23: 12M | N23: ModFol+EoM | O23: Act/360 | P23: 11P23 | Q23: 0.010045 | R23: 2009-07-08 | S23: 2011-07-08 | T23: 2011-07-12 | U23: 0.9798788765 | V23: 5.204170428e-17 | X23: 0.9798788765 | Y23: TRUE | Z23: 2011-07-12 | AA23: 0.979879 | AB23: -0.001235332744
B24: 15 | C24: USSO3 BGN Curncy | D24: Swap | E24: 2D | F24: 2D | G24: 0D | H24: 3Y | I24: 12M | J24: ModFol+EoM | K24: Act/360 | L24: 11L24 | M24: 12M | N24: ModFol+EoM | O24: Act/360 | P24: 11P24 | Q24: 0.01583 | R24: 2009-07-08 | S24: 2012-07-09 | T24: 2012-07-11 | U24: 0.952913027 | V24: -6.245004514e-17 | X24: 0.952913027 | Y24: TRUE | Z24: 2012-07-11 | AA24: 0.952913 | AB24: 0.000270206818
B25: 16 | C25: USSO4 BGN Curncy | D25: Swap | E25: 2D | F25: 2D | G25: 0D | H25: 4Y | I25: 12M | J25: ModFol+EoM | K25: Act/360 | L25: 11L25 | M25: 12M | N25: ModFol+EoM | O25: Act/360 | P25: 11P25 | Q25: 0.02151 | R25: 2009-07-08 | S25: 2013-07-08 | T25: 2013-07-10 | U25: 0.9160935201 | V25: -5.551115123e-17 | X25: 0.9160935201 | Y25: TRUE | Z25: 2013-07-10 | AA25: 0.916094 | AB25: -0.004798636423
B26: 17 | C26: USSO5 BGN Curncy | D26: Swap | E26: 2D | F26: 2D | G26: 0D | H26: 5Y | I26: 12M | J26: ModFol+EoM | K26: Act/360 | L26: 11L26 | M26: 12M | N26: ModFol+EoM | O26: Act/360 | P26: 11P26 | Q26: 0.02552 | R26: 2009-07-08 | S26: 2014-07-08 | T26: 2014-07-10 | U26: 0.8777402209 | V26: -5.551115123e-17 | X26: 0.8777402209 | Y26: TRUE | Z26: 2014-07-10 | AA26: 0.87774 | AB26: 0.002208725784
B27: 18 | C27: USSWAP7 BGN Curncy | D27: Swap | E27: 2D | F27: 2D | G27: 0D | H27: 7Y | I27: 12M | J27: ModFol+EoM | K27: Act/360 | L27: 11L27 | M27: 12M | N27: ModFol+EoM | O27: Act/360 | P27: 11P27 | Q27: 0.0307414 | R27: 2009-07-08 | S27: 2016-07-08 | T27: 2016-07-12 | U27: 0.8015317907 | V27: -8.326672685e-17 | X27: 0.8015317907 | Y27: TRUE | Z27: 2016-07-12 | AA27: 0.80153 | AB27: 0.01790676741
B28: 19 | C28: USSWAP10 BGN Curncy | D28: Swap | E28: 2D | F28: 2D | G28: 0D | H28: 10Y | I28: 12M | J28: ModFol+EoM | K28: Act/360 | L28: 11L28 | M28: 12M | N28: ModFol+EoM | O28: Act/360 | P28: 11P28 | Q28: 0.0350338 | R28: 2009-07-08 | S28: 2019-07-08 | T28: 2019-07-10 | U28: 0.6960226793 | V28: 5.551115123e-17 | X28: 0.6960226793 | Y28: TRUE | Z28: 2019-07-10 | AA28: 0.69602 | AB28: 0.02679332597
B29: 20 | C29: USSWAP12 BGN Curncy | D29: Swap | E29: 2D | F29: 2D | G29: 0D | H29: 12Y | I29: 12M | J29: ModFol+EoM | K29: Act/360 | L29: 11L29 | M29: 12M | N29: ModFol+EoM | O29: Act/360 | P29: 11P29 | Q29: 0.0366961 | R29: 2009-07-08 | S29: 2021-07-08 | T29: 2021-07-12 | U29: 0.6332711599 | V29: 5.551115123e-17 | X29: 0.6332711599 | Y29: TRUE | Z29: 2021-07-12 | AA29: 0.633267 | AB29: 0.04159852997
B30: 21 | C30: USSWAP15 BGN Curncy | D30: Swap | E30: 2D | F30: 2D | G30: 0D | H30: 15Y | I30: 12M | J30: ModFol+EoM | K30: Act/360 | L30: 11L30 | M30: 12M | N30: ModFol+EoM | O30: Act/360 | P30: 11P30 | Q30: 0.0383831 | R30: 2009-07-08 | S30: 2024-07-08 | T30: 2024-07-10 | U30: 0.5490732625 | V30: 5.551115123e-17 | X30: 0.5490732625 | Y30: TRUE | Z30: 2024-07-10 | AA30: 0.549071 | AB30: 0.02262458511
B31: 22 | C31: USSWAP20 BGN Curncy | D31: Swap | E31: 2D | F31: 2D | G31: 0D | H31: 20Y | I31: 12M | J31: ModFol+EoM | K31: Act/360 | L31: 11L31 | M31: 12M | N31: ModFol+EoM | O31: Act/360 | P31: 11P31 | Q31: 0.0393628 | R31: 2009-07-08 | S31: 2029-07-09 | T31: 2029-07-11 | U31: 0.4411847416 | V31: -1.110223025e-16 | X31: 0.4411847416 | Y31: TRUE | Z31: 2029-07-11 | AA31: 0.441184 | AB31: 0.00741593629
B32: 23 | C32: USSWAP25 BGN Curncy | D32: Swap | E32: 2D | F32: 2D | G32: 0D | H32: 25Y | I32: 12M | J32: ModFol+EoM | K32: Act/360 | L32: 11L32 | M32: 12M | N32: ModFol+EoM | O32: Act/360 | P32: 11P32 | Q32: 0.0399233 | R32: 2009-07-08 | S32: 2034-07-10 | T32: 2034-07-12 | U32: 0.3546618321 | V32: 0 | X32: 0.3546618321 | Y32: TRUE | Z32: 2034-07-12 | AA32: 0.354661 | AB32: 0.008321015845
B33: 24 | C33: USSWAP30 BGN Curncy | D33: Swap | E33: 2D | F33: 2D | G33: 0D | H33: 30Y | I33: 12M | J33: ModFol+EoM | K33: Act/360 | L33: 11L33 | M33: 12M | N33: ModFol+EoM | O33: Act/360 | P33: 11P33 | Q33: 0.0402338 | R33: 2009-07-08 | S33: 2039-07-08 | T33: 2039-07-12 | U33: 0.2859853771 | V33: 0 | X33: 0.2859853771 | Y33: TRUE | Z33: 2039-07-12 | AA33: 0.285986 | AB33: -0.00622937781
B34: 25 | C34: USSWAP40 BGN Curncy | D34: Swap | E34: 2D | F34: 2D | G34: 0D | H34: 40Y | I34: 12M | J34: ModFol+EoM | K34: Act/360 | L34: 11L34 | M34: 12M | N34: ModFol+EoM | O34: Act/360 | P34: 11P34 | Q34: 0.0403538 | R34: 2009-07-08 | S34: 2049-07-08 | T34: 2049-07-12 | U34: 0.1897537448 | V34: 0 | X34: 0.1897537448 | Y34: TRUE | Z34: 2049-07-12 | AA34: 0.189754 | AB34: -0.002551811852
B35: 26 | C35: USSWAP50 BGN Curncy | D35: Swap | E35: 2D | F35: 2D | G35: 0D | H35: 50Y | I35: 12M | J35: ModFol+EoM | K35: Act/360 | L35: 11L35 | M35: 12M | N35: ModFol+EoM | O35: Act/360 | P35: 11P35 | Q35: 0.0401338 | R35: 2009-07-08 | S35: 2059-07-08 | T35: 2059-07-10 | U35: 0.1308414007 | V35: 0 | X35: 0.1308414007 | Y35: TRUE | Z35: 2059-07-10 | AA35: 0.130842 | AB35: -0.005993172455

Sheet USD.3M
C2: DF cell starts at: | D2: =GetCellAddress(U9) -> U9 | H2: trade date | J2: 2009-07-06 | L2: interp. mode | N2: LinearLogDisc
C3: PV cell starts at: | D3: =GetCellAddress(V9) -> V9 | H3: holiday list | J3: =Holidays!E3 -> 16E3 | L3: proj. curve | N3: =CreateCurve(T$9:T$41, U$9:U$41, N$2) -> 12N3
C4: # of products: | D4: =MAX(B:B) -> 32 | H4: stub period | J4: Rear | L4: disc. curve | N4: =USD.OIS!N4 -> 11N4
C5: current calib. | D5: 0 | H5: fixing schedule | J5: 1
C7: Product | E7: Spot | F7: Pay | G7: Forward | I7: Receiving Leg1: Floating | M7: Paying Leg2: Fixed | Q7: Market | R7: Effective Date | S7: Maturity Date | T7: Last Payment | U7: Discount | V7: Present | X7: Comparison to outputs in Bloomberg Terminal
B8: No. | C8: Ticker | D8: Type | E8: Lag | F8: Lag | G8: Start | H8: Tenor | I8: Period | J8: Date Rolling | K8: Day Count | L8: Leg ID | M8: Period | N8: Date Rolling | O8: Day Count | P8: Leg ID | Q8: Rate | R8: Start of Accrual | S8: End of Accrual | T8: Date | U8: Factor | V8: Value | X8: Derived | Z8: Date | AA8: Reference | AB8: diff.(bps)
S9: =R10 -> 2009-07-08 | T9: =R10 -> 2009-07-08 | U9: 1 | X9: D. Factor | Z9: =T9 -> 2009-07-08 | AA9: D. Factor
B10: =B9+1 -> 1 | C10: US0003M Index | D10: Cash | E10: 2D | F10: 0D | G10: 0D | H10: 3M | I10: 3M | J10: ModFol+EoM | K10: Act/360 | L10: =CreateLeg($J$2:$J$5, $D10:$H10, I10:K10) -> 12L10 | M10: 6M | N10: ModFol+EoM | O10: Act/360 | P10: =CreateLeg($J$2:$J$5, $D10:$H10, M10:O10) -> 12P10 | Q10: 0.0054813 | R10: =GetEffectiveDate($L10) -> 2009-07-08 | S10: =GetMaturityDate($L10) -> 2009-10-08 | T10: =GetLastPaymentDate($L10) -> 2009-10-08 | U10: 0.9986011828 | V10: =IF(OR($D$5=0,$D$5=B10), GetLegPV(L10,$N$3,$N$4,0) - GetLegPV(P10,Q10,$N$4,0)) -> -6.310056644e-17 | X10: =GetCurveDiscountFactor($N$3,Z10) -> 0.9986011828 | Y10: =T10=Z10 -> TRUE | Z10: 2009-10-08 | AA10: 0.998601 | AB10: =(X10-AA10)*10000 -> 0.001827638788
B11: 2 | C11: EDN09 Comdty | D11: FRA | E11: 2D | F11: 0D | G11: 1serial | H11: 3M | I11: 3M | J11: ModFol+EoM | K11: Act/360 | L11: =CreateLeg($J$2:$J$5, $D11:$H11, I11:K11) -> 12L11 | M11: 6M | N11: ModFol+EoM | O11: Act/360 | P11: =CreateLeg($J$2:$J$5, $D11:$H11, M11:O11) -> 12P11 | Q11: 0.00547 | R11: =GetEffectiveDate($L11) -> 2009-07-15 | S11: =GetMaturityDate($L11) -> 2009-10-15 | T11: 2009-10-15 | U11: 0.9984977106 | V11: -7.914675859e-17 | X11: =GetCurveDiscountFactor($N$3,Z11) -> 0.9984008827 | Y11: =T11=Z11 -> FALSE | Z11: 2009-10-21 | AA11: 0.998407 | AB11: =(X11-AA11)*10000 -> -0.0611732325
B12: 3 | C12: EDQ09 Comdty | D12: FRA | E12: 2D | F12: 0D | G12: 2serial | H12: 3M | I12: 3M | J12: ModFol+EoM | K12: Act/360 | L12: 12L12 | M12: 6M | N12: ModFol+EoM | O12: Act/360 | P12: 12P12 | Q12: 0.0056 | R12: 2009-08-19 | S12: 2009-11-19 | T12: 2009-11-19 | U12: 0.9979330136 | V12: 4.943961907e-17 | X12: 0.9979491434 | Y12: =T12=Z12 -> FALSE | Z12: 2009-11-18 | AA12: 0.997949 | AB12: 0.001433535555
B13: 4 | C13: EDU09 Comdty | D13: FRA | E13: 2D | F13: 0D | G13: 1imm | H13: 3M | I13: 3M | J13: ModFol+EoM | K13: Act/360 | L13: 12L13 | M13: 6M | N13: ModFol+EoM | O13: Act/360 | P13: 12P13 | Q13: 0.0059 | R13: 2009-09-16 | S13: 2009-12-16 | T13: 2009-12-16 | U13: 0.9974479217 | V13: 3.332837478e-16 | X13: 0.9974479217 | Y13: TRUE | Z13: 2009-12-16 | AA13: 0.997448 | AB13: -0.0007831980886
B14: 5 | C14: EDV09 Comdty | D14: FRA | E14: 2D | F14: 0D | G14: 3serial | H14: 3M | I14: 3M | J14: ModFol+EoM | K14: Act/360 | L14: 12L14 | M14: 6M | N14: ModFol+EoM | O14: Act/360 | P14: 12P14 | Q14: 0.00709 | R14: 2009-10-21 | S14: 2010-01-21 | T14: 2010-01-21 | U14: 0.996595163 | V14: 5.724587471e-17 | X14: 0.9966188409 | Y14: FALSE | Z14: 2010-01-20 | AA14: 0.996621 | AB14: -0.02159131349
B15: 6 | C15: EDX09 Comdty | D15: FRA | E15: 2D | F15: 0D | G15: 4serial | H15: 3M | I15: 3M | J15: ModFol+EoM | K15: Act/360 | L15: 12L15 | M15: 6M | N15: ModFol+EoM | O15: Act/360 | P15: 12P15 | Q15: 0.00744 | R15: 2009-11-18 | S15: 2010-02-18 | T15: 2010-02-18 | U15: 0.9960553102 | V15: -2.255140519e-17 | X15: 0.9960745856 | Y15: FALSE | Z15: 2010-02-17 | AA15: 0.996075 | AB15: -0.004143895128
B16: 7 | C16: EDZ09 Comdty | D16: FRA | E16: 2D | F16: 0D | G16: 2imm | H16: 3M | I16: 3M | J16: ModFol+EoM | K16: Act/360 | L16: 12L16 | M16: 6M | N16: ModFol+EoM | O16: Act/360 | P16: 12P16 | Q16: 0.00792 | R16: 2009-12-16 | S16: 2010-03-16 | T16: 2010-03-16 | U16: 0.9954768775 | V16: 9.23740251e-17 | X16: 0.9954496747 | Y16: FALSE | Z16: 2010-03-17 | AA16: 0.995455 | AB16: -0.0532529514
B17: 8 | C17: EDH10 Comdty | D17: FRA | E17: 2D | F17: 0D | G17: 3imm | H17: 3M | I17: 3M | J17: ModFol+EoM | K17: Act/360 | L17: 12L17 | M17: 6M | N17: ModFol+EoM | O17: Act/360 | P17: 12P17 | Q17: 0.00985 | R17: 2010-03-17 | S17: 2010-06-17 | T17: 2010-06-17 | U17: 0.9929501984 | V17: 5.984795992e-17 | X17: 0.9929773329 | Y17: FALSE | Z17: 2010-06-16 | AA17: 0.992983 | AB17: -0.05667145609
B18: 9 | C18: EDM10 Comdty | D18: FRA | E18: 2D | F18: 0D | G18: 4imm | H18: 3M | I18: 3M | J18: ModFol+EoM | K18: Act/360 | L18: 12L18 | M18: 6M | N18: ModFol+EoM | O18: Act/360 | P18: 12P18 | Q18: 0.01276 | R18: 2010-06-16 | S18: 2010-09-16 | T18: 2010-09-16 | U18: 0.9897498685 | V18: 9.063930162e-17 | X18: 0.9897849809 | Y18: FALSE | Z18: 2010-09-15 | AA18: 0.98979 | AB18: -0.05019147282
B19: 10 | C19: EDU10 Comdty | D19: FRA | E19: 2D | F19: 0D | G19: 5imm | H19: 3M | I19: 3M | J19: ModFol+EoM | K19: Act/360 | L19: 12L19 | M19: 6M | N19: ModFol+EoM | O19: Act/360 | P19: 12P19 | Q19: 0.01602 | R19: 2010-09-15 | S19: 2010-12-15 | T19: 2010-12-15 | U19: 0.9857930121 | V19: 3.816391647e-17 | X19: 0.9857930121 | Y19: TRUE | Z19: 2010-12-15 | AA19: 0.985798 | AB19: -0.04987949581
B20: 11 | C20: EDZ10 Comdty | D20: FRA | E20: 2D | F20: 0D | G20: 6imm | H20: 3M | I20: 3M | J20: ModFol+EoM | K20: Act/360 | L20: 12L20 | M20: 6M | N20: ModFol+EoM | O20: Act/360 | P20: 12P20 | Q20: 0.01977 | R20: 2010-12-15 | S20: 2011-03-15 | T20: 2011-03-15 | U20: 0.9809446929 | V20: 7.025630078e-17 | X20: 0.9808817464 | Y20: FALSE | Z20: 2011-03-16 | AA20: 0.980896 | AB20: -0.1425358227
B21: 12 | C21: EDH11 Comdty | D21: FRA | E21: 2D | F21: 0D | G21: 7imm | H21: 3M | I21: 3M | J21: ModFol+EoM | K21: Act/360 | L21: 12L21 | M21: 6M | N21: ModFol+EoM | O21: Act/360 | P21: 12P21 | Q21: 0.02317 | R21: 2011-03-16 | S21: 2011-06-16 | T21: 2011-06-16 | U21: 0.9751079158 | V21: 2.168404345e-17 | X21: 0.9751704917 | Y21: FALSE | Z21: 2011-06-15 | AA21: 0.975185 | AB21: -0.1450828029
B22: 13 | C22: EDM11 Comdty | D22: FRA | E22: 2D | F22: 0D | G22: 8imm | H22: 3M | I22: 3M | J22: ModFol+EoM | K22: Act/360 | L22: 12L22 | M22: 6M | N22: ModFol+EoM | O22: Act/360 | P22: 12P22 | Q22: 0.02665 | R22: 2011-06-15 | S22: 2011-09-15 | T22: 2011-09-15 | U22: 0.9685739649 | V22: -1.301042607e-17 | X22: 0.9680951482 | Y22: FALSE | Z22: 2011-09-21 | AA22: 0.968161 | AB22: -0.6585183932
B23: 14 | C23: EDU11 Comdty | D23: FRA | E23: 2D | F23: 0D | G23: 9imm | H23: 3M | I23: 3M | J23: ModFol+EoM | K23: Act/360 | L23: 12L23 | M23: 6M | N23: ModFol+EoM | O23: Act/360 | P23: 12P23 | Q23: 0.02978 | R23: 2011-09-21 | S23: 2011-12-21 | T23: 2011-12-21 | U23: 0.9608620456 | V23: 8.586881206e-17 | X23: 0.9608620456 | Y23: TRUE | Z23: 2011-12-21 | AA23: 0.960927 | AB23: -0.6495441238
B24: 15 | C24: EDZ11 Comdty | D24: FRA | E24: 2D | F24: 0D | G24: 10imm | H24: 3M | I24: 3M | J24: ModFol+EoM | K24: Act/360 | L24: 12L24 | M24: 6M | N24: ModFol+EoM | O24: Act/360 | P24: 12P24 | Q24: 0.03275 | R24: 2011-12-21 | S24: 2012-03-21 | T24: 2012-03-21 | U24: 0.952972886 | V24: 0 | X24: 0.952972886 | Y24: TRUE | Z24: 2012-03-21 | AA24: 0.953038 | AB24: -0.6511397784
B25: 16 | C25: EDH12 Comdty | D25: FRA | E25: 2D | F25: 0D | G25: 11imm | H25: 3M | I25: 3M | J25: ModFol+EoM | K25: Act/360 | L25: 12L25 | M25: 6M | N25: ModFol+EoM | O25: Act/360 | P25: 12P25 | Q25: 0.03487 | R25: 2012-03-21 | S25: 2012-06-21 | T25: 2012-06-21 | U25: 0.9445557399 | V25: 6.765421556e-17 | X25: 0.9446468298 | Y25: FALSE | Z25: 2012-06-20 | AA25: 0.944711 | AB25: -0.6417020855
B26: 17 | C26: EDM12 Comdty | D26: FRA | E26: 2D | F26: 0D | G26: 12imm | H26: 3M | I26: 3M | J26: ModFol+EoM | K26: Act/360 | L26: 12L26 | M26: 6M | N26: ModFol+EoM | O26: Act/360 | P26: 12P26 | Q26: 0.03683 | R26: 2012-06-20 | S26: 2012-09-20 | T26: 2012-09-20 | U26: 0.9358386128 | V26: 6.245004514e-17 | X26: 0.9359339669 | Y26: FALSE | Z26: 2012-09-19 | AA26: 0.935997 | AB26: -0.6303314276
B27: 18 | C27: USSWAP4 BGN Curncy | D27: Swap | E27: 2D | F27: 0D | G27: 0D | H27: 4Y | I27: 3M | J27: ModFol+EoM | K27: Act/360 | L27: 12L27 | M27: 6M | N27: ModFol+EoM | O27: 30U/360 | P27: 12P27 | Q27: 0.024405 | R27: 2009-07-08 | S27: 2013-07-08 | T27: 2013-07-08 | U27: 0.9063951838 | V27: -1.249000903e-16 | X27: 0.9063951838 | Y27: TRUE | Z27: 2013-07-08 | AA27: 0.906392 | AB27: 0.03183751547
B28: 19 | C28: USSWAP5 BGN Curncy | D28: Swap | E28: 2D | F28: 0D | G28: 0D | H28: 5Y | I28: 3M | J28: ModFol+EoM | K28: Act/360 | L28: 12L28 | M28: 6M | N28: ModFol+EoM | O28: 30U/360 | P28: 12P28 | Q28: 0.0281 | R28: 2009-07-08 | S28: 2014-07-08 | T28: 2014-07-08 | U28: 0.8676176598 | V28: -8.326672685e-17 | X28: 0.8676176598 | Y28: TRUE | Z28: 2014-07-08 | AA28: 0.867615 | AB28: 0.0265979579
B29: 20 | C29: USSW6 BGN Curncy | D29: Swap | E29: 2D | F29: 0D | G29: 0D | H29: 6Y | I29: 3M | J29: ModFol+EoM | K29: Act/360 | L29: 12L29 | M29: 6M | N29: ModFol+EoM | O29: 30U/360 | P29: 12P29 | Q29: 0.030925 | R29: 2009-07-08 | S29: 2015-07-08 | T29: 2015-07-08 | U29: 0.8284321614 | V29: 0 | X29: 0.8284321614 | Y29: TRUE | Z29: 2015-07-08 | AA29: 0.82843 | AB29: 0.02161389536
B30: 21 | C30: USSWAP7 BGN Curncy | D30: Swap | E30: 2D | F30: 0D | G30: 0D | H30: 7Y | I30: 3M | J30: ModFol+EoM | K30: Act/360 | L30: 12L30 | M30: 6M | N30: ModFol+EoM | O30: 30U/360 | P30: 12P30 | Q30: 0.03309 | R30: 2009-07-08 | S30: 2016-07-08 | T30: 2016-07-08 | U30: 0.7900103226 | V30: 5.551115123e-17 | X30: 0.7900103226 | Y30: TRUE | Z30: 2016-07-08 | AA30: 0.790008 | AB30: 0.02322613893
B31: 22 | C31: USSW8 BGN Curncy | D31: Swap | E31: 2D | F31: 0D | G31: 0D | H31: 8Y | I31: 3M | J31: ModFol+EoM | K31: Act/360 | L31: 12L31 | M31: 6M | N31: ModFol+EoM | O31: 30U/360 | P31: 12P31 | Q31: 0.03473 | R31: 2009-07-08 | S31: 2017-07-10 | T31: 2017-07-10 | U31: 0.7530342055 | V31: 8.326672685e-17 | X31: 0.7530342055 | Y31: TRUE | Z31: 2017-07-10 | AA31: 0.753032 | AB31: 0.02205485475
B32: 23 | C32: USSW9 BGN Curncy | D32: Swap | E32: 2D | F32: 0D | G32: 0D | H32: 9Y | I32: 3M | J32: ModFol+EoM | K32: Act/360 | L32: 12L32 | M32: 6M | N32: ModFol+EoM | O32: 30U/360 | P32: 12P32 | Q32: 0.036066 | R32: 2009-07-08 | S32: 2018-07-09 | T32: 2018-07-09 | U32: 0.7174590099 | V32: -5.551115123e-17 | X32: 0.7174590099 | Y32: TRUE | Z32: 2018-07-09 | AA32: 0.717457 | AB32: 0.02009875257
B33: 24 | C33: USSWAP10 BGN Curncy | D33: Swap | E33: 2D | F33: 0D | G33: 0D | H33: 10Y | I33: 3M | J33: ModFol+EoM | K33: Act/360 | L33: 12L33 | M33: 6M | N33: ModFol+EoM | O33: 30U/360 | P33: 12P33 | Q33: 0.03711 | R33: 2009-07-08 | S33: 2019-07-08 | T33: 2019-07-08 | U33: 0.6837141353 | V33: 5.551115123e-17 | X33: 0.6837141353 | Y33: TRUE | Z33: 2019-07-08 | AA33: 0.683712 | AB33: 0.02135345704
B34: 25 | C34: USSWAP11 BGN Curncy | D34: Swap | E34: 2D | F34: 0D | G34: 0D | H34: 11Y | I34: 3M | J34: ModFol+EoM | K34: Act/360 | L34: 12L34 | M34: 6M | N34: ModFol+EoM | O34: 30U/360 | P34: 12P34 | Q34: 0.037905 | R34: 2009-07-08 | S34: 2020-07-08 | T34: 2020-07-08 | U34: 0.6519671321 | V34: -2.775557562e-16 | X34: 0.6519671321 | Y34: TRUE | Z34: 2020-07-08 | AA34: 0.651965 | AB34: 0.02132067349
B35: 26 | C35: USSWAP12 BGN Curncy | D35: Swap | E35: 2D | F35: 0D | G35: 0D | H35: 12Y | I35: 3M | J35: ModFol+EoM | K35: Act/360 | L35: 12L35 | M35: 6M | N35: ModFol+EoM | O35: 30U/360 | P35: 12P35 | Q35: 0.03865 | R35: 2009-07-08 | S35: 2021-07-08 | T35: 2021-07-08 | U35: 0.6208738346 | V35: 0 | X35: 0.6208738346 | Y35: TRUE | Z35: 2021-07-08 | AA35: 0.620872 | AB35: 0.01834584557
B36: 27 | C36: USSWAP15 BGN Curncy | D36: Swap | E36: 2D | F36: 0D | G36: 0D | H36: 15Y | I36: 3M | J36: ModFol+EoM | K36: Act/360 | L36: 12L36 | M36: 6M | N36: ModFol+EoM | O36: 30U/360 | P36: 12P36 | Q36: 0.0402 | R36: 2009-07-08 | S36: 2024-07-08 | T36: 2024-07-08 | U36: 0.5369315227 | V36: -5.551115123e-17 | X36: 0.5369315227 | Y36: TRUE | Z36: 2024-07-08 | AA36: 0.53693 | AB36: 0.01522711003
B37: 28 | C37: USSWAP20 BGN Curncy | D37: Swap | E37: 2D | F37: 0D | G37: 0D | H37: 20Y | I37: 3M | J37: ModFol+EoM | K37: Act/360 | L37: 12L37 | M37: 6M | N37: ModFol+EoM | O37: 30U/360 | P37: 12P37 | Q37: 0.04105 | R37: 2009-07-08 | S37: 2029-07-09 | T37: 2029-07-09 | U37: 0.4295036704 | V37: 0 | X37: 0.4295036704 | Y37: TRUE | Z37: 2029-07-09 | AA37: 0.429502 | AB37: 0.01670360265
B38: 29 | C38: USSWAP25 BGN Curncy | D38: Swap | E38: 2D | F38: 0D | G38: 0D | H38: 25Y | I38: 3M | J38: ModFol+EoM | K38: Act/360 | L38: 12L38 | M38: 6M | N38: ModFol+EoM | O38: 30U/360 | P38: 12P38 | Q38: 0.0415255 | R38: 2009-07-08 | S38: 2034-07-10 | T38: 2034-07-10 | U38: 0.3438593619 | V38: -1.110223025e-16 | X38: 0.3438593619 | Y38: TRUE | Z38: 2034-07-10 | AA38: 0.343858 | AB38: 0.01361916051
B39: 30 | C39: USSWAP30 BGN Curncy | D39: Swap | E39: 2D | F39: 0D | G39: 0D | H39: 30Y | I39: 3M | J39: ModFol+EoM | K39: Act/360 | L39: 12L39 | M39: 6M | N39: ModFol+EoM | O39: 30U/360 | P39: 12P39 | Q39: 0.04178 | R39: 2009-07-08 | S39: 2039-07-08 | T39: 2039-07-08 | U39: 0.2761684984 | V39: -6.661338148e-16 | X39: 0.2761684984 | Y39: TRUE | Z39: 2039-07-08 | AA39: 0.276168 | AB39: 0.004984387465
B40: 31 | C40: USSWAP40 BGN Curncy | D40: Swap | E40: 2D | F40: 0D | G40: 0D | H40: 40Y | I40: 3M | J40: ModFol+EoM | K40: Act/360 | L40: 12L40 | M40: 6M | N40: ModFol+EoM | O40: 30U/360 | P40: 12P40 | Q40: 0.0419 | R40: 2009-07-08 | S40: 2049-07-08 | T40: 2049-07-08 | U40: 0.1807956617 | V40: 0 | X40: 0.1807956617 | Y40: TRUE | Z40: 2049-07-08 | AA40: 0.180795 | AB40: 0.006617410234
B41: 32 | C41: USSWAP50 BGN Curncy | D41: Swap | E41: 2D | F41: 0D | G41: 0D | H41: 50Y | I41: 3M | J41: ModFol+EoM | K41: Act/360 | L41: 12L41 | M41: 6M | N41: ModFol+EoM | O41: 30U/360 | P41: 12P41 | Q41: 0.04168 | R41: 2009-07-08 | S41: 2059-07-08 | T41: 2059-07-08 | U41: 0.1230116371 | V41: 3.330669074e-16 | X41: 0.1230116371 | Y41: TRUE | Z41: 2059-07-08 | AA41: 0.123011 | AB41: 0.006370910214

Sheet GBPOIS
C2: DF cell starts at: | D2: =GetCellAddress(U9) -> U9 | H2: trade date | J2: 2009-07-06 | L2: interp. mode | N2: LinearLogDisc
C3: PV cell starts at: | D3: =GetCellAddress(V9) -> V9 | H3: holiday list | J3: =Holidays!E2 -> 16E2 | L3: proj. curve | N3: =N4 -> 13N4
C4: # of products: | D4: =MAX(B:B) -> 30 | H4: stub period | J4: Rear | L4: disc. curve | N4: =CreateCurve(T$9:T$39, U$9:U$39, N$2) -> 13N4
C5: current calib. | D5: 0 | H5: fixing schedule | J5: 1
C7: Product | E7: Spot | F7: Pay | G7: Forward | I7: Receiving Leg1: Floating | M7: Paying Leg2: Fixed | Q7: Market | R7: Effective Date | S7: Maturity Date | T7: Last Payment | U7: Discount | V7: Present | X7: Comparison to outputs in Bloomberg Terminal
B8: No. | C8: Ticker | D8: Type | E8: Lag | F8: Lag | G8: Start | H8: Tenor | I8: Period | J8: Date Rolling | K8: Day Count | L8: Leg ID | M8: Period | N8: Date Rolling | O8: Day Count | P8: Leg ID | Q8: Rate | R8: Start of Accrual | S8: End of Accrual | T8: Date | U8: Factor | V8: Value | X8: Derived | Z8: Date | AA8: Reference | AB8: diff.(bps)
S9: =R10 -> 2009-07-06 | T9: =R10 -> 2009-07-06 | U9: 1 | X9: D. Factor | Z9: =T9 -> 2009-07-06 | AA9: D. Factor
B10: =B9+1 -> 1 | C10: SONIO/N Index | D10: Cash | E10: 0D | F10: 0D | G10: 0D | H10: 1D | I10: 12M | J10: ModFol+EoM | K10: Act/365F | L10: =CreateLeg($J$2:$J$5, $D10:$H10, I10:K10) -> 13L10 | M10: 12M | N10: ModFol+EoM | O10: Act/365F | P10: =CreateLeg($J$2:$J$5, $D10:$H10, M10:O10) -> 13P10 | Q10: 0.004171 | R10: =GetEffectiveDate($L10) -> 2009-07-06 | S10: =GetMaturityDate($L10) -> 2009-07-07 | T10: =GetLastPaymentDate($L10) -> 2009-07-07 | U10: 0.9999885727 | V10: =IF(OR($D$5=0,$D$5=B10), GetLegPV(L10,$N$3,$N$4,0) - GetLegPV(P10,Q10,$N$4,0)) -> -4.096590146e-17 | X10: =GetCurveDiscountFactor($N$4,Z10) -> 0.9999885727 | Y10: =T10=Z10 -> TRUE | Z10: 2009-07-07 | AA10: 0.999989 | AB10: =(X10-AA10)*10000 -> -0.004272666763
B11: 2 | C11: BPSWS1Z BGN Curncy | D11: Cash | E11: 0D | F11: 0D | G11: 0D | H11: 1W | I11: 12M | J11: ModFol+EoM | K11: Act/365F | L11: =CreateLeg($J$2:$J$5, $D11:$H11, I11:K11) -> 13L11 | M11: 12M | N11: ModFol+EoM | O11: Act/365F | P11: =CreateLeg($J$2:$J$5, $D11:$H11, M11:O11) -> 13P11 | Q11: 0.00403 | R11: =GetEffectiveDate($L11) -> 2009-07-06 | S11: =GetMaturityDate($L11) -> 2009-07-13 | T11: =GetLastPaymentDate($L11) -> 2009-07-13 | U11: 0.9999227183 | V11: 6.281596337e-17 | X11: =GetCurveDiscountFactor($N$4,Z11) -> 0.9999227183 | Y11: TRUE | Z11: 2009-07-13 | AA11: 0.999923 | AB11: =(X11-AA11)*10000 -> -0.002816983105
B12: 3 | C12: BPSWS2Z BGN Curncy | D12: Cash | E12: 0D | F12: 0D | G12: 0D | H12: 2W | I12: 12M | J12: ModFol+EoM | K12: Act/365F | L12: 13L12 | M12: 12M | N12: ModFol+EoM | O12: Act/365F | P12: 13P12 | Q12: 0.00406 | R12: 2009-07-06 | S12: 2009-07-20 | T12: 2009-07-20 | U12: 0.9998442982 | V12: -4.198572913e-17 | X12: 0.9998442982 | Y12: TRUE | Z12: 2009-07-20 | AA12: 0.999844 | AB12: 0.002982194225
B13: 4 | C13: BPSWSA BGN Curncy | D13: Swap | E13: 0D | F13: 0D | G13: 0D | H13: 1M | I13: 12M | J13: ModFol+EoM | K13: Act/365F | L13: 13L13 | M13: 12M | N13: ModFol+EoM | O13: Act/365F | P13: 13P13 | Q13: 0.00409 | R13: 2009-07-06 | S13: 2009-08-06 | T13: 2009-08-06 | U13: 0.9996527508 | V13: -5.177065374e-17 | X13: 0.9996527508 | Y13: TRUE | Z13: 2009-08-06 | AA13: 0.999653 | AB13: -0.002492390931
B14: 5 | C14: BPSWSB BGN Curncy | D14: Swap | E14: 0D | F14: 0D | G14: 0D | H14: 2M | I14: 12M | J14: ModFol+EoM | K14: Act/365F | L14: 13L14 | M14: 12M | N14: ModFol+EoM | O14: Act/365F | P14: 13P14 | Q14: 0.00411 | R14: 2009-07-06 | S14: 2009-09-07 | T14: 2009-09-07 | U14: 0.9992911056 | V14: 1.077696959e-16 | X14: 0.9992911056 | Y14: TRUE | Z14: 2009-09-07 | AA14: 0.999291 | AB14: 0.001056274516
B15: 6 | C15: BPSWSC BGN Curncy | D15: Swap | E15: 0D | F15: 0D | G15: 0D | H15: 3M | I15: 12M | J15: ModFol+EoM | K15: Act/365F | L15: 13L15 | M15: 12M | N15: ModFol+EoM | O15: Act/365F | P15: 13P15 | Q15: 0.00424 | R15: 2009-07-06 | S15: 2009-10-06 | T15: 2009-10-06 | U15: 0.9989324286 | V15: 2.818925648e-17 | X15: 0.9989324286 | Y15: TRUE | Z15: 2009-10-06 | AA15: 0.998932 | AB15: 0.00428597952
B16: 7 | C16: BPSWSD BGN Curncy | D16: Swap | E16: 0D | F16: 0D | G16: 0D | H16: 4M | I16: 12M | J16: ModFol+EoM | K16: Act/365F | L16: 13L16 | M16: 12M | N16: ModFol+EoM | O16: Act/365F | P16: 13P16 | Q16: 0.00422 | R16: 2009-07-06 | S16: 2009-11-06 | T16: 2009-11-06 | U16: 0.9985799373 | V16: -7.264154556e-17 | X16: 0.9985799373 | Y16: TRUE | Z16: 2009-11-06 | AA16: 0.99858 | AB16: -0.0006274583864
B17: 8 | C17: BPSWSE BGN Curncy | D17: Swap | E17: 0D | F17: 0D | G17: 0D | H17: 5M | I17: 12M | J17: ModFol+EoM | K17: Act/365F | L17: 13L17 | M17: 12M | N17: ModFol+EoM | O17: Act/365F | P17: 13P17 | Q17: 0.004435 | R17: 2009-07-06 | S17: 2009-12-07 | T17: 2009-12-07 | U17: 0.9981322894 | V17: 2.168404345e-17 | X17: 0.9981322894 | Y17: TRUE | Z17: 2009-12-07 | AA17: 0.998132 | AB17: 0.002893908738
B18: 9 | C18: BPSWSF BGN Curncy | D18: Swap | E18: 0D | F18: 0D | G18: 0D | H18: 6M | I18: 12M | J18: ModFol+EoM | K18: Act/365F | L18: 13L18 | M18: 12M | N18: ModFol+EoM | O18: Act/365F | P18: 13P18 | Q18: 0.00463 | R18: 2009-07-06 | S18: 2010-01-06 | T18: 2010-01-06 | U18: 0.9976714076 | V18: 2.255140519e-17 | X18: 0.9976714076 | Y18: TRUE | Z18: 2010-01-06 | AA18: 0.997671 | AB18: 0.004076011956
B19: 10 | C19: BPSWSG BGN Curncy | D19: Swap | E19: 0D | F19: 0D | G19: 0D | H19: 7M | I19: 12M | J19: ModFol+EoM | K19: Act/365F | L19: 13L19 | M19: 12M | N19: ModFol+EoM | O19: Act/365F | P19: 13P19 | Q19: 0.00485 | R19: 2009-07-06 | S19: 2010-02-08 | T19: 2010-02-08 | U19: 0.9971248656 | V19: -2.905661822e-17 | X19: 0.9971248656 | Y19: TRUE | Z19: 2010-02-08 | AA19: 0.997125 | AB19: -0.001344240422
B20: 11 | C20: BPSWSH BGN Curncy | D20: Swap | E20: 0D | F20: 0D | G20: 0D | H20: 8M | I20: 12M | J20: ModFol+EoM | K20: Act/365F | L20: 13L20 | M20: 12M | N20: ModFol+EoM | O20: Act/365F | P20: 13P20 | Q20: 0.005015 | R20: 2009-07-06 | S20: 2010-03-08 | T20: 2010-03-08 | U20: 0.9966450606 | V20: 9.974659987e-18 | X20: 0.9966450606 | Y20: TRUE | Z20: 2010-03-08 | AA20: 0.996645 | AB20: 0.0006063049274
B21: 12 | C21: BPSWSI BGN Curncy | D21: Swap | E21: 0D | F21: 0D | G21: 0D | H21: 9M | I21: 12M | J21: ModFol+EoM | K21: Act/365F | L21: 13L21 | M21: 12M | N21: ModFol+EoM | O21: Act/365F | P21: 13P21 | Q21: 0.005335 | R21: 2009-07-06 | S21: 2010-04-06 | T21: 2010-04-06 | U21: 0.9960110712 | V21: 5.03069808e-17 | X21: 0.9960110712 | Y21: TRUE | Z21: 2010-04-06 | AA21: 0.996011 | AB21: 0.0007116788359
B22: 13 | C22: BPSWSJ BGN Curncy | D22: Swap | E22: 0D | F22: 0D | G22: 0D | H22: 10M | I22: 12M | J22: ModFol+EoM | K22: Act/365F | L22: 13L22 | M22: 12M | N22: ModFol+EoM | O22: Act/365F | P22: 13P22 | Q22: 0.00577 | R22: 2009-07-06 | S22: 2010-05-06 | T22: 2010-05-06 | U22: 0.9952172857 | V22: 3.6429193e-17 | X22: 0.9952172857 | Y22: TRUE | Z22: 2010-05-06 | AA22: 0.995217 | AB22: 0.002856536456
B23: 14 | C23: BPSWSK BGN Curncy | D23: Swap | E23: 0D | F23: 0D | G23: 0D | H23: 11M | I23: 12M | J23: ModFol+EoM | K23: Act/365F | L23: 13L23 | M23: 12M | N23: ModFol+EoM | O23: Act/365F | P23: 13P23 | Q23: 0.00624 | R23: 2009-07-06 | S23: 2010-06-07 | T23: 2010-06-07 | U23: 0.9942885884 | V23: -9.107298249e-17 | X23: 0.9942885884 | Y23: TRUE | Z23: 2010-06-07 | AA23: 0.994289 | AB23: -0.004115781609
B24: 15 | C24: BPSWS1 BGN Curncy | D24: Swap | E24: 0D | F24: 0D | G24: 0D | H24: 12M | I24: 12M | J24: ModFol+EoM | K24: Act/365F | L24: 13L24 | M24: 12M | N24: ModFol+EoM | O24: Act/365F | P24: 13P24 | Q24: 0.00663 | R24: 2009-07-06 | S24: 2010-07-06 | T24: 2010-07-06 | U24: 0.9934136674 | V24: -8.586881206e-17 | X24: 0.9934136674 | Y24: TRUE | Z24: 2010-07-06 | AA24: 0.993414 | AB24: -0.003326147641
B25: 16 | C25: BPSWS1F BGN Curncy | D25: Swap | E25: 0D | F25: 0D | G25: 0D | H25: 18M | I25: 12M | J25: ModFol+EoM | K25: Act/365F | L25: 13L25 | M25: 12M | N25: ModFol+EoM | O25: Act/365F | P25: 13P25 | Q25: 0.010335 | R25: 2009-07-06 | S25: 2011-01-06 | T25: 2011-01-06 | U25: 0.9846033135 | V25: 8.500145032e-17 | X25: 0.9846033135 | Y25: TRUE | Z25: 2011-01-06 | AA25: 0.984603 | AB25: 0.003134598808
B26: 17 | C26: BPSWS2 BGN Curncy | D26: Swap | E26: 0D | F26: 0D | G26: 0D | H26: 2Y | I26: 12M | J26: ModFol+EoM | K26: Act/365F | L26: 13L26 | M26: 12M | N26: ModFol+EoM | O26: Act/365F | P26: 13P26 | Q26: 0.01455 | R26: 2009-07-06 | S26: 2011-07-06 | T26: 2011-07-06 | U26: 0.9714117896 | V26: 4.857225733e-17 | X26: 0.9714117896 | Y26: TRUE | Z26: 2011-07-06 | AA26: 0.971412 | AB26: -0.002103991478
B27: 18 | C27: BPSWS3 BGN Curncy | D27: Swap | E27: 0D | F27: 0D | G27: 0D | H27: 3Y | I27: 12M | J27: ModFol+EoM | K27: Act/365F | L27: 13L27 | M27: 12M | N27: ModFol+EoM | O27: Act/365F | P27: 13P27 | Q27: 0.022325 | R27: 2009-07-06 | S27: 2012-07-06 | T27: 2012-07-06 | U27: 0.9351997366 | V27: -8.326672685e-17 | X27: 0.9351997366 | Y27: TRUE | Z27: 2012-07-06 | AA27: 0.9352 | AB27: -0.00263363033
B28: 19 | C28: BPSWS4 BGN Curncy | D28: Swap | E28: 0D | F28: 0D | G28: 0D | H28: 4Y | I28: 12M | J28: ModFol+EoM | K28: Act/365F | L28: 13L28 | M28: 12M | N28: ModFol+EoM | O28: Act/365F | P28: 13P28 | Q28: 0.027425 | R28: 2009-07-06 | S28: 2013-07-08 | T28: 2013-07-08 | U28: 0.8956974387 | V28: -2.775557562e-17 | X28: 0.8956974387 | Y28: TRUE | Z28: 2013-07-08 | AA28: 0.895697 | AB28: 0.004387062049
B29: 20 | C29: BPSWS5 BGN Curncy | D29: Swap | E29: 0D | F29: 0D | G29: 0D | H29: 5Y | I29: 12M | J29: ModFol+EoM | K29: Act/365F | L29: 13L29 | M29: 12M | N29: ModFol+EoM | O29: Act/365F | P29: 13P29 | Q29: 0.030625 | R29: 2009-07-06 | S29: 2014-07-07 | T29: 2014-07-07 | U29: 0.8573430263 | V29: 2.775557562e-17 | X29: 0.8573430263 | Y29: TRUE | Z29: 2014-07-07 | AA29: 0.857343 | AB29: 0.0002631398388
B30: 21 | C30: BPSWS6 BGN Curncy | D30: Swap | E30: 0D | F30: 0D | G30: 0D | H30: 6Y | I30: 12M | J30: ModFol+EoM | K30: Act/365F | L30: 13L30 | M30: 12M | N30: ModFol+EoM | O30: Act/365F | P30: 13P30 | Q30: 0.032825 | R30: 2009-07-06 | S30: 2015-07-06 | T30: 2015-07-06 | U30: 0.820244263 | V30: 2.775557562e-17 | X30: 0.820244263 | Y30: TRUE | Z30: 2015-07-06 | AA30: 0.820244 | AB30: 0.002630122502
B31: 22 | C31: BPSWS7 BGN Curncy | D31: Swap | E31: 0D | F31: 0D | G31: 0D | H31: 7Y | I31: 12M | J31: ModFol+EoM | K31: Act/365F | L31: 13L31 | M31: 12M | N31: ModFol+EoM | O31: Act/365F | P31: 13P31 | Q31: 0.034425 | R31: 2009-07-06 | S31: 2016-07-06 | T31: 2016-07-06 | U31: 0.7844052372 | V31: -8.326672685e-17 | X31: 0.7844052372 | Y31: TRUE | Z31: 2016-07-06 | AA31: 0.784405 | AB31: 0.002372242101
B32: 23 | C32: BPSWS8 BGN Curncy | D32: Swap | E32: 0D | F32: 0D | G32: 0D | H32: 8Y | I32: 12M | J32: ModFol+EoM | K32: Act/365F | L32: 13L32 | M32: 12M | N32: ModFol+EoM | O32: Act/365F | P32: 13P32 | Q32: 0.035675 | R32: 2009-07-06 | S32: 2017-07-06 | T32: 2017-07-06 | U32: 0.7498267453 | V32: 0 | X32: 0.7498267453 | Y32: TRUE | Z32: 2017-07-06 | AA32: 0.749827 | AB32: -0.00254674037
B33: 24 | C33: BPSWS9 BGN Curncy | D33: Swap | E33: 0D | F33: 0D | G33: 0D | H33: 9Y | I33: 12M | J33: ModFol+EoM | K33: Act/365F | L33: 13L33 | M33: 12M | N33: ModFol+EoM | O33: Act/365F | P33: 13P33 | Q33: 0.036625 | R33: 2009-07-06 | S33: 2018-07-06 | T33: 2018-07-06 | U33: 0.7169080512 | V33: 0 | X33: 0.7169080512 | Y33: TRUE | Z33: 2018-07-06 | AA33: 0.716908 | AB33: 0.0005124443114
B34: 25 | C34: BPSWS10 BGN Curncy | D34: Swap | E34: 0D | F34: 0D | G34: 0D | H34: 10Y | I34: 12M | J34: ModFol+EoM | K34: Act/365F | L34: 13L34 | M34: 12M | N34: ModFol+EoM | O34: Act/365F | P34: 13P34 | Q34: 0.03745 | R34: 2009-07-06 | S34: 2019-07-08 | T34: 2019-07-08 | U34: 0.684746949 | V34: 5.551115123e-17 | X34: 0.684746949 | Y34: TRUE | Z34: 2019-07-08 | AA34: 0.684747 | AB34: -0.0005104773548
B35: 26 | C35: BPSWS12 BGN Curncy | D35: Swap | E35: 0D | F35: 0D | G35: 0D | H35: 12Y | I35: 12M | J35: ModFol+EoM | K35: Act/365F | L35: 13L35 | M35: 12M | N35: ModFol+EoM | O35: Act/365F | P35: 13P35 | Q35: 0.039075 | R35: 2009-07-06 | S35: 2021-07-06 | T35: 2021-07-06 | U35: 0.6213677804 | V35: 5.551115123e-17 | X35: 0.6213677804 | Y35: TRUE | Z35: 2021-07-06 | AA35: 0.621368 | AB35: -0.00219616188
B36: 27 | C36: BPSWS15 BGN Curncy | D36: Swap | E36: 0D | F36: 0D | G36: 0D | H36: 15Y | I36: 12M | J36: ModFol+EoM | K36: Act/365F | L36: 13L36 | M36: 12M | N36: ModFol+EoM | O36: Act/365F | P36: 13P36 | Q36: 0.04065 | R36: 2009-07-06 | S36: 2024-07-08 | T36: 2024-07-08 | U36: 0.5371032732 | V36: 0 | X36: 0.5371032732 | Y36: TRUE | Z36: 2024-07-08 | AA36: 0.537103 | AB36: 0.002731975243
B37: 28 | C37: BPSWS20 BGN Curncy | D37: Swap | E37: 0D | F37: 0D | G37: 0D | H37: 20Y | I37: 12M | J37: ModFol+EoM | K37: Act/365F | L37: 13L37 | M37: 12M | N37: ModFol+EoM | O37: Act/365F | P37: 13P37 | Q37: 0.040625 | R37: 2009-07-06 | S37: 2029-07-06 | T37: 2029-07-06 | U37: 0.4404348071 | V37: 0 | X37: 0.4404348071 | Y37: TRUE | Z37: 2029-07-06 | AA37: 0.440435 | AB37: -0.001928899658
B38: 29 | C38: BPSWS25 BGN Curncy | D38: Swap | E38: 0D | F38: 0D | G38: 0D | H38: 25Y | I38: 12M | J38: ModFol+EoM | K38: Act/365F | L38: 13L38 | M38: 12M | N38: ModFol+EoM | O38: Act/365F | P38: 13P38 | Q38: 0.04005 | R38: 2009-07-06 | S38: 2034-07-06 | T38: 2034-07-06 | U38: 0.3689108631 | V38: 0 | X38: 0.3689108631 | Y38: TRUE | Z38: 2034-07-06 | AA38: 0.368911 | AB38: -0.001368516766
B39: 30 | C39: BPSWS30 BGN Curncy | D39: Swap | E39: 0D | F39: 0D | G39: 0D | H39: 30Y | I39: 12M | J39: ModFol+EoM | K39: Act/365F | L39: 13L39 | M39: 12M | N39: ModFol+EoM | O39: Act/365F | P39: 13P39 | Q39: 0.039775 | R39: 2009-07-06 | S39: 2039-07-06 | T39: 2039-07-06 | U39: 0.3073637499 | V39: 0 | X39: 0.3073637499 | Y39: TRUE | Z39: 2039-07-06 | AA39: 0.307364 | AB39: -0.002500661467

Sheet GBP.3M
C2: DF cell starts at: | D2: =GetCellAddress(U9) -> U9 | H2: trade date | J2: 2009-07-06 | L2: interp. mode | N2: LinearLogDisc
C3: PV cell starts at: | D3: =GetCellAddress(V9) -> V9 | H3: holiday list | J3: =Holidays!E2 -> 16E2 | L3: proj. curve | N3: =CreateCurve(T$9:T$33, U$9:U$33, N$2) -> 14N3
C4: # of products: | D4: =MAX(B:B) -> 24 | H4: stub period | J4: Rear | L4: disc. curve | N4: =GBPOIS!N4 -> 13N4
C5: current calib. | D5: 0 | H5: fixing schedule | J5: 1
C7: Product | E7: Spot | F7: Pay | G7: Forward | I7: Receiving Leg1: Floating | M7: Paying Leg2: Fixed | Q7: Market | R7: Effective Date | S7: Maturity Date | T7: Last Payment | U7: Discount | V7: Present | X7: Comparison to outputs in Bloomberg Terminal
B8: No. | C8: Ticker | D8: Type | E8: Lag | F8: Lag | G8: Start | H8: Tenor | I8: Period | J8: Date Rolling | K8: Day Count | L8: Leg ID | M8: Period | N8: Date Rolling | O8: Day Count | P8: Leg ID | Q8: Rate | R8: Start of Accrual | S8: End of Accrual | T8: Date | U8: Factor | V8: Value | X8: Derived | Z8: Date | AA8: Reference | AB8: diff.(bps)
S9: =R10 -> 2009-07-06 | T9: =R10 -> 2009-07-06 | U9: 1 | X9: D. Factor | Z9: =T9 -> 2009-07-06 | AA9: D. Factor
B10: =B9+1 -> 1 | C10: BP0003M Index | D10: Cash | E10: 0D | F10: 0D | G10: 0D | H10: 3M | I10: 3M | J10: Following | K10: Act/365F | L10: =CreateLeg($J$2:$J$5, $D10:$H10, I10:K10) -> 14L10 | M10: 3M | N10: Following | O10: Act/365F | P10: =CreateLeg($J$2:$J$5, $D10:$H10, M10:O10) -> 14P10 | Q10: 0.0112375 | R10: =GetEffectiveDate($L10) -> 2009-07-06 | S10: =GetMaturityDate($L10) -> 2009-10-06 | T10: =GetLastPaymentDate($L10) -> 2009-10-06 | U10: 0.9971755344 | V10: =IF(OR($D$5=0,$D$5=B10), GetLegPV(L10,$N$3,$N$4,0) - GetLegPV(P10,Q10,$N$4,0)) -> 4.33680869e-18 | X10: =GetCurveDiscountFactor($N$3,Z10) -> 0.9971755344 | Y10: =S10=Z10 -> TRUE | Z10: 2009-10-06 | AA10: 0.997176 | AB10: =(X10-AA10)*10000 -> -0.004655514784
B11: 2 | C11: L N09 Comdty | D11: FRA | E11: 0D | F11: 0D | G11: 1serial | H11: 3M | I11: 3M | J11: Following | K11: Act/365F | L11: =CreateLeg($J$2:$J$5, $D11:$H11, I11:K11) -> 14L11 | M11: 3M | N11: Following | O11: Act/365F | P11: =CreateLeg($J$2:$J$5, $D11:$H11, M11:O11) -> 14P11 | Q11: 0.0092 | R11: =GetEffectiveDate($L11) -> 2009-07-15 | S11: =GetMaturityDate($L11) -> 2009-10-15 | T11: =GetLastPaymentDate($L11) -> 2009-10-15 | U11: 0.9974104417 | V11: -2.602085214e-17 | X11: 0.9972178738 | Y11: FALSE | Z11: 2009-10-21 | AA11: 0.99726 | AB11: =(X11-AA11)*10000 -> -0.4212622621
B12: 3 | C12: L Q09 Comdty | D12: FRA | E12: 0D | F12: 0D | G12: 2serial | H12: 3M | I12: 3M | J12: Following | K12: Act/365F | L12: 14L12 | M12: 3M | N12: Following | O12: Act/365F | P12: 14P12 | Q12: 0.0094 | R12: 2009-08-19 | S12: 2009-11-19 | T12: 2009-11-19 | U12: 0.9962876526 | V12: -1.214306433e-17 | X12: 0.9963197147 | Y12: FALSE | Z12: 2009-11-18 | AA12: 0.996313 | AB12: 0.06714701487
B13: 4 | C13: L U09 Comdty | D13: FRA | E13: 0D | F13: 0D | G13: 1imm | H13: 3M | I13: 3M | J13: Following | K13: Act/365F | L13: 14L13 | M13: 3M | N13: Following | O13: Act/365F | P13: 14P13 | Q13: 0.01019 | R13: 2009-09-16 | S13: 2009-12-16 | T13: 2009-12-16 | U13: 0.9952603898 | V13: -2.558717127e-17 | X13: 0.9952603898 | Y13: TRUE | Z13: 2009-12-16 | AA13: 0.99526 | AB13: 0.003898246064
B14: 5 | C14: L Z09 Comdty | D14: FRA | E14: 0D | F14: 0D | G14: 2imm | H14: 3M | I14: 3M | J14: Following | K14: Act/365F | L14: 14L14 | M14: 3M | N14: Following | O14: Act/365F | P14: 14P14 | Q14: 0.01188 | R14: 2009-12-16 | S14: 2010-03-16 | T14: 2010-03-16 | U14: 0.9923534738 | V14: 1.036497277e-16 | X14: 0.9923145035 | Y14: FALSE | Z14: 2010-03-17 | AA14: 0.992321 | AB14: -0.06496541232
B15: 6 | C15: L H10 Comdty | D15: FRA | E15: 0D | F15: 0D | G15: 3imm | H15: 3M | I15: 3M | J15: Following | K15: Act/365F | L15: 14L15 | M15: 3M | N15: Following | O15: Act/365F | P15: 14P15 | Q15: 0.01436 | R15: 2010-03-17 | S15: 2010-06-17 | T15: 2010-06-17 | U15: 0.9887357676 | V15: -6.635317296e-17 | X15: 0.9887745974 | Y15: FALSE | Z15: 2010-06-16 | AA15: 0.988781 | AB15: -0.0640258735
B16: 7 | C16: L M10 Comdty | D16: FRA | E16: 0D | F16: 0D | G16: 4imm | H16: 3M | I16: 3M | J16: Following | K16: Act/365F | L16: 14L16 | M16: 3M | N16: Following | O16: Act/365F | P16: 14P16 | Q16: 0.01863 | R16: 2010-06-16 | S16: 2010-09-16 | T16: 2010-09-16 | U16: 0.9841532296 | V16: 9.454242944e-17 | X16: 0.9842034715 | Y16: FALSE | Z16: 2010-09-15 | AA16: 0.98421 | AB16: -0.06528483321
B17: 8 | C17: L U10 Comdty | D17: FRA | E17: 0D | F17: 0D | G17: 5imm | H17: 3M | I17: 3M | J17: Following | K17: Act/365F | L17: 14L17 | M17: 3M | N17: Following | O17: Act/365F | P17: 14P17 | Q17: 0.0233 | R17: 2010-09-15 | S17: 2010-12-15 | T17: 2010-12-15 | U17: 0.9785192132 | V17: 1.127570259e-17 | X17: 0.9785192132 | Y17: TRUE | Z17: 2010-12-15 | AA17: 0.978526 | AB17: -0.06786805884
B18: 9 | C18: L Z10 Comdty | D18: FRA | E18: 0D | F18: 0D | G18: 6imm | H18: 3M | I18: 3M | J18: Following | K18: Act/365F | L18: 14L18 | M18: 3M | N18: Following | O18: Act/365F | P18: 14P18 | Q18: 0.02856 | R18: 2010-12-15 | S18: 2011-03-15 | T18: 2011-03-15 | U18: 0.9716764811 | V18: -3.295974604e-17 | X18: 0.9715894733 | Y18: FALSE | Z18: 2011-03-16 | AA18: 0.971607 | AB18: -0.1752665326
B19: 10 | C19: L H11 Comdty | D19: FRA | E19: 0D | F19: 0D | G19: 7imm | H19: 3M | I19: 3M | J19: Following | K19: Act/365F | L19: 14L19 | M19: 3M | N19: Following | O19: Act/365F | P19: 14P19 | Q19: 0.03282 | R19: 2011-03-16 | S19: 2011-06-16 | T19: 2011-06-16 | U19: 0.9636180028 | V19: -6.938893904e-17 | X19: 0.9637042967 | Y19: FALSE | Z19: 2011-06-15 | AA19: 0.963722 | AB19: -0.177033223
B20: 11 | C20: L M11 Comdty | D20: FRA | E20: 0D | F20: 0D | G20: 8imm | H20: 3M | I20: 3M | J20: Following | K20: Act/365F | L20: 14L20 | M20: 3M | N20: Following | O20: Act/365F | P20: 14P20 | Q20: 0.03707 | R20: 2011-06-15 | S20: 2011-09-15 | T20: 2011-09-15 | U20: 0.9547831171 | V20: 3.469446952e-18 | X20: 0.9541088982 | Y20: FALSE | Z20: 2011-09-21 | AA20: 0.954224 | AB20: -1.15101775
B21: 12 | C21: BPSW3V3 BGN Curncy | D21: Swap | E21: 0D | F21: 0D | G21: 0D | H21: 3Y | I21: 3M | J21: ModFol+EoM | K21: Act/365F | L21: 14L21 | M21: 3M | N21: ModFol+EoM | O21: Act/365F | P21: 14P21 | Q21: 0.026825 | R21: 2009-07-06 | S21: 2012-07-06 | T21: 2012-07-06 | U21: 0.92219156 | V21: -5.551115123e-17 | X21: 0.92219156 | Y21: TRUE | Z21: 2012-07-06 | AA21: 0.922189 | AB21: 0.02559998851
B22: 13 | C22: BPSW4V3 BGN Curncy | D22: Swap | E22: 0D | F22: 0D | G22: 0D | H22: 4Y | I22: 3M | J22: ModFol+EoM | K22: Act/365F | L22: 14L22 | M22: 3M | N22: ModFol+EoM | O22: Act/365F | P22: 14P22 | Q22: 0.03156 | R22: 2009-07-06 | S22: 2013-07-08 | T22: 2013-07-08 | U22: 0.8801230301 | V22: 2.775557562e-17 | X22: 0.8801230301 | Y22: TRUE | Z22: 2013-07-08 | AA22: 0.880121 | AB22: 0.0203005961
B23: 14 | C23: BPSW5V3 BGN Curncy | D23: Swap | E23: 0D | F23: 0D | G23: 0D | H23: 5Y | I23: 3M | J23: ModFol+EoM | K23: Act/365F | L23: 14L23 | M23: 3M | N23: ModFol+EoM | O23: Act/365F | P23: 14P23 | Q23: 0.034445 | R23: 2009-07-06 | S23: 2014-07-07 | T23: 2014-07-07 | U23: 0.8398827984 | V23: 8.326672685e-17 | X23: 0.8398827984 | Y23: TRUE | Z23: 2014-07-07 | AA23: 0.839881 | AB23: 0.01798409913
B24: 15 | C24: BPSW6V3 BGN Curncy | D24: Swap | E24: 0D | F24: 0D | G24: 0D | H24: 6Y | I24: 3M | J24: ModFol+EoM | K24: Act/365F | L24: 14L24 | M24: 3M | N24: ModFol+EoM | O24: Act/365F | P24: 14P24 | Q24: 0.036455 | R24: 2009-07-06 | S24: 2015-07-06 | T24: 2015-07-06 | U24: 0.8009759587 | V24: -8.326672685e-17 | X24: 0.8009759587 | Y24: TRUE | Z24: 2015-07-06 | AA24: 0.800975 | AB24: 0.00958665388
B25: 16 | C25: BPSW7V3 BGN Curncy | D25: Swap | E25: 0D | F25: 0D | G25: 0D | H25: 7Y | I25: 3M | J25: ModFol+EoM | K25: Act/365F | L25: 14L25 | M25: 3M | N25: ModFol+EoM | O25: Act/365F | P25: 14P25 | Q25: 0.03788 | R25: 2009-07-06 | S25: 2016-07-06 | T25: 2016-07-06 | U25: 0.7637392935 | V25: -5.551115123e-17 | X25: 0.7637392935 | Y25: TRUE | Z25: 2016-07-06 | AA25: 0.763738 | AB25: 0.01293452563
B26: 17 | C26: BPSW8V3 BGN Curncy | D26: Swap | E26: 0D | F26: 0D | G26: 0D | H26: 8Y | I26: 3M | J26: ModFol+EoM | K26: Act/365F | L26: 14L26 | M26: 3M | N26: ModFol+EoM | O26: Act/365F | P26: 14P26 | Q26: 0.038965 | R26: 2009-07-06 | S26: 2017-07-06 | T26: 2017-07-06 | U26: 0.7281600231 | V26: 5.551115123e-17 | X26: 0.7281600231 | Y26: TRUE | Z26: 2017-07-06 | AA26: 0.728159 | AB26: 0.01023098712
B27: 18 | C27: BPSW9V3 BGN Curncy | D27: Swap | E27: 0D | F27: 0D | G27: 0D | H27: 9Y | I27: 3M | J27: ModFol+EoM | K27: Act/365F | L27: 14L27 | M27: 3M | N27: ModFol+EoM | O27: Act/365F | P27: 14P27 | Q27: 0.03976 | R27: 2009-07-06 | S27: 2018-07-06 | T27: 2018-07-06 | U27: 0.6945689511 | V27: 5.551115123e-17 | X27: 0.6945689511 | Y27: TRUE | Z27: 2018-07-06 | AA27: 0.694567 | AB27: 0.01951140587
B28: 19 | C28: BPSW10V3 BGN Curncy | D28: Swap | E28: 0D | F28: 0D | G28: 0D | H28: 10Y | I28: 3M | J28: ModFol+EoM | K28: Act/365F | L28: 14L28 | M28: 3M | N28: ModFol+EoM | O28: Act/365F | P28: 14P28 | Q28: 0.0404 | R28: 2009-07-06 | S28: 2019-07-08 | T28: 2019-07-08 | U28: 0.6623239742 | V28: 5.551115123e-17 | X28: 0.6623239742 | Y28: TRUE | Z28: 2019-07-08 | AA28: 0.662323 | AB28: 0.009741704884
B29: 20 | C29: BPSW12V3 BGN Curncy | D29: Swap | E29: 0D | F29: 0D | G29: 0D | H29: 12Y | I29: 3M | J29: ModFol+EoM | K29: Act/365F | L29: 14L29 | M29: 3M | N29: ModFol+EoM | O29: Act/365F | P29: 14P29 | Q29: 0.04173 | R29: 2009-07-06 | S29: 2021-07-06 | T29: 2021-07-06 | U29: 0.5991628231 | V29: 5.551115123e-17 | X29: 0.5991628231 | Y29: TRUE | Z29: 2021-07-06 | AA29: 0.599165 | AB29: -0.02176901355
B30: 21 | C30: BPSW15V3 BGN Curncy | D30: Swap | E30: 0D | F30: 0D | G30: 0D | H30: 15Y | I30: 3M | J30: ModFol+EoM | K30: Act/365F | L30: 14L30 | M30: 3M | N30: ModFol+EoM | O30: Act/365F | P30: 14P30 | Q30: 0.043015 | R30: 2009-07-06 | S30: 2024-07-08 | T30: 2024-07-08 | U30: 0.5154792927 | V30: 0 | X30: 0.5154792927 | Y30: TRUE | Z30: 2024-07-08 | AA30: 0.515485 | AB30: -0.05707268865
B31: 22 | C31: BPSW20V3 BGN Curncy | D31: Swap | E31: 0D | F31: 0D | G31: 0D | H31: 20Y | I31: 3M | J31: ModFol+EoM | K31: Act/365F | L31: 14L31 | M31: 3M | N31: ModFol+EoM | O31: Act/365F | P31: 14P31 | Q31: 0.0428 | R31: 2009-07-06 | S31: 2029-07-06 | T31: 2029-07-06 | U31: 0.4188128471 | V31: 0 | X31: 0.4188128471 | Y31: TRUE | Z31: 2029-07-06 | AA31: 0.418817 | AB31: -0.0415289217
B32: 23 | C32: BPSW25V3 BGN Curncy | D32: Swap | E32: 0D | F32: 0D | G32: 0D | H32: 25Y | I32: 3M | J32: ModFol+EoM | K32: Act/365F | L32: 14L32 | M32: 3M | N32: ModFol+EoM | O32: Act/365F | P32: 14P32 | Q32: 0.04205 | R32: 2009-07-06 | S32: 2034-07-06 | T32: 2034-07-06 | U32: 0.3486271343 | V32: 1.110223025e-16 | X32: 0.3486271343 | Y32: TRUE | Z32: 2034-07-06 | AA32: 0.348626 | AB32: 0.01134298573
B33: 24 | C33: BPSW30V3 BGN Curncy | D33: Swap | E33: 0D | F33: 0D | G33: 0D | H33: 30Y | I33: 3M | J33: ModFol+EoM | K33: Act/365F | L33: 14L33 | M33: 3M | N33: ModFol+EoM | O33: Act/365F | P33: 14P33 | Q33: 0.04179 | R33: 2009-07-06 | S33: 2039-07-06 | T33: 2039-07-06 | U33: 0.2866575431 | V33: 0 | X33: 0.2866575431 | Y33: TRUE | Z33: 2039-07-06 | AA33: 0.286655 | AB33: 0.02543148165

Sheet GBP.xccy
N1: USD3M | O1: GBP3M
C2: DF cell starts at: | D2: =GetCellAddress(U9) -> U9 | H2: trade date | J2: =EUR.OIS!$J$2 -> 2009-07-06 | L2: interp. mode | N2: LinearLogDisc | O2: LinearLogDisc
C3: PV cell starts at: | D3: =GetCellAddress(V9) -> V9 | H3: holiday list | J3: =Holidays!E4 -> 16E4 | L3: proj. curve | N3: =USD.3M!N3 -> 12N3 | O3: =GBP.3M!N3 -> 14N3
C4: # of products: | D4: =MAX(B:B) -> 17 | H4: stub period | J4: Rear | L4: disc. curve | N4: =USD.OIS!$N$4 -> 11N4 | O4: =CreateCurve(T$9:T$26, U$9:U$26, O$2) -> 15O4
C5: current calib. | D5: 0 | H5: fixing schedule | J5: 1
C7: Product | E7: Spot | F7: Pay | G7: Forward | I7: Receiving Leg1: Floating | M7: Paying Leg2: Fixed | Q7: Market | R7: Effective Date | S7: Maturity Date | T7: Last Payment | U7: Discount | V7: Present | X7: Comparison to outputs in Bloomberg Terminal
B8: No. | C8: Ticker | D8: Type | E8: Lag | F8: Lag | G8: Start | H8: Tenor | I8: Period | J8: Date Rolling | K8: Day Count | L8: Leg ID | M8: Period | N8: Date Rolling | O8: Day Count | P8: Leg ID | Q8: Rate | R8: Start of Accrual | S8: End of Accrual | T8: Date | U8: Factor | V8: Value | X8: Derived | Z8: Date | AA8: Reference | AB8: diff.(bps)
S9: =R10 -> 2009-07-08 | T9: =R10 -> 2009-07-08 | U9: 1 | X9: D. Factor | Z9: =T9 -> 2009-07-08 | AA9: D. Factor
B10: =B9+1 -> 1 | C10: BPBSC | D10: Swap | E10: 2D | F10: 0D | G10: 0D | H10: 3M | I10: 3M | J10: ModFol+EoM | K10: Act/360 | L10: =CreateLeg($J$2:$J$5, $D10:$H10, I10:K10) -> 15L10 | M10: 3M | N10: ModFol+EoM | O10: Act/365F | P10: =CreateLeg($J$2:$J$5, $D10:$H10, M10:O10) -> 15P10 | Q10: -0.00505 | R10: =GetEffectiveDate($L10) -> 2009-07-08 | S10: =GetMaturityDate($L10) -> 2009-10-08 | T10: =GetLastPaymentDate($L10) -> 2009-10-08 | U10: 0.9994643451 | V10: =IF(OR($D$5=0,$D$5=B10), GetLegPV(L10,$N$3,$N$4,0,TRUE) - GetLegPV(P10,$O$3,$O$4,Q10,TRUE)) -> -7.502679034e-17 | X10: =GetCurveDiscountFactor($O$4,Z10) -> 0.9994643451 | Y10: =S10=Z10 -> TRUE | Z10: 2009-10-08 | AA10: 0.999423 | AB10: =(X10-AA10)*10000 -> 0.413450595
B11: 2 | C11: BPBSF | D11: Swap | E11: 2D | F11: 0D | G11: 0D | H11: 6M | I11: 3M | J11: ModFol+EoM | K11: Act/360 | L11: =CreateLeg($J$2:$J$5, $D11:$H11, I11:K11) -> 15L11 | M11: 3M | N11: ModFol+EoM | O11: Act/365F | P11: =CreateLeg($J$2:$J$5, $D11:$H11, M11:O11) -> 15P11 | Q11: -0.0041 | R11: =GetEffectiveDate($L11) -> 2009-07-08 | S11: =GetMaturityDate($L11) -> 2010-01-08 | T11: =GetLastPaymentDate($L11) -> 2010-01-08 | U11: 0.9985324016 | V11: -5.247538515e-17 | X11: =GetCurveDiscountFactor($O$4,Z11) -> 0.9985324016 | Y11: TRUE | Z11: 2010-01-08 | AA11: 0.998531 | AB11: =(X11-AA11)*10000 -> 0.01401646643
B12: 3 | C12: BPBSI | D12: Swap | E12: 2D | F12: 0D | G12: 0D | H12: 9M | I12: 3M | J12: ModFol+EoM | K12: Act/360 | L12: 15L12 | M12: 3M | N12: ModFol+EoM | O12: Act/365F | P12: 15P12 | Q12: -0.0039 | R12: 2009-07-08 | S12: 2010-04-08 | T12: 2010-04-08 | U12: 0.9972804813 | V12: -8.500145032e-17 | X12: 0.9972804813 | Y12: TRUE | Z12: 2010-04-08 | AA12: 0.997282 | AB12: -0.01518746295
B13: 4 | C13: BPBS1 | D13: Swap | E13: 2D | F13: 0D | G13: 0D | H13: 12M | I13: 3M | J13: ModFol+EoM | K13: Act/360 | L13: 15L13 | M13: 3M | N13: ModFol+EoM | O13: Act/365F | P13: 15P13 | Q13: -0.00379 | R13: 2009-07-08 | S13: 2010-07-08 | T13: 2010-07-08 | U13: 0.9951272901 | V13: 4.510281038e-17 | X13: 0.9951272901 | Y13: TRUE | Z13: 2010-07-08 | AA13: 0.995125 | AB13: 0.02290145959
B14: 5 | C14: BPBS2 | D14: Swap | E14: 2D | F14: 0D | G14: 0D | H14: 2Y | I14: 3M | J14: ModFol+EoM | K14: Act/360 | L14: 15L14 | M14: 3M | N14: ModFol+EoM | O14: Act/365F | P14: 15P14 | Q14: -0.00365 | R14: 2009-07-08 | S14: 2011-07-08 | T14: 2011-07-08 | U14: 0.9751151626 | V14: -4.510281038e-17 | X14: 0.9751151626 | Y14: TRUE | Z14: 2011-07-08 | AA14: 0.975106 | AB14: 0.0916255712
B15: 6 | C15: BPBS3 | D15: Swap | E15: 2D | F15: 0D | G15: 0D | H15: 3Y | I15: 3M | J15: ModFol+EoM | K15: Act/360 | L15: 15L15 | M15: 3M | N15: ModFol+EoM | O15: Act/365F | P15: 15P15 | Q15: -0.00361 | R15: 2009-07-08 | S15: 2012-07-09 | T15: 2012-07-09 | U15: 0.9420561772 | V15: -4.857225733e-17 | X15: 0.9420561772 | Y15: TRUE | Z15: 2012-07-09 | AA15: 0.941951 | AB15: 1.051772067
B16: 7 | C16: BPBS4 | D16: Swap | E16: 2D | F16: 0D | G16: 0D | H16: 4Y | I16: 3M | J16: ModFol+EoM | K16: Act/360 | L16: 15L16 | M16: 3M | N16: ModFol+EoM | O16: Act/365F | P16: 15P16 | Q16: -0.00365 | R16: 2009-07-08 | S16: 2013-07-08 | T16: 2013-07-08 | U16: 0.9028340851 | V16: 8.326672685e-17 | X16: 0.9028340851 | Y16: TRUE | Z16: 2013-07-08 | AA16: 0.902791 | AB16: 0.4308505519
B17: 8 | C17: BPBS5 | D17: Swap | E17: 2D | F17: 0D | G17: 0D | H17: 5Y | I17: 3M | J17: ModFol+EoM | K17: Act/360 | L17: 15L17 | M17: 3M | N17: ModFol+EoM | O17: Act/365F | P17: 15P17 | Q17: -0.00365 | R17: 2009-07-08 | S17: 2014-07-08 | T17: 2014-07-08 | U17: 0.8654133022 | V17: -8.326672685e-17 | X17: 0.8654133022 | Y17: TRUE | Z17: 2014-07-08 | AA17: 0.865361 | AB17: 0.5230218985
B18: 9 | C18: BPBS6 | D18: Swap | E18: 2D | F18: 0D | G18: 0D | H18: 6Y | I18: 3M | J18: ModFol+EoM | K18: Act/360 | L18: 15L18 | M18: 3M | N18: ModFol+EoM | O18: Act/365F | P18: 15P18 | Q18: -0.0035325 | R18: 2009-07-08 | S18: 2015-07-08 | T18: 2015-07-08 | U18: 0.8284045978 | V18: 8.326672685e-17 | X18: 0.8284045978 | Y18: TRUE | Z18: 2015-07-08 | AA18: 0.828342 | AB18: 0.6259777689
B19: 10 | C19: BPBS7 | D19: Swap | E19: 2D | F19: 0D | G19: 0D | H19: 7Y | I19: 3M | J19: ModFol+EoM | K19: Act/360 | L19: 15L19 | M19: 3M | N19: ModFol+EoM | O19: Act/365F | P19: 15P19 | Q19: -0.0034 | R19: 2009-07-08 | S19: 2016-07-08 | T19: 2016-07-08 | U19: 0.7935560055 | V19: 0 | X19: 0.7935560055 | Y19: TRUE | Z19: 2016-07-08 | AA19: 0.793474 | AB19: 0.8200550569
B20: 11 | C20: BPBS8 | D20: Swap | E20: 2D | F20: 0D | G20: 0D | H20: 8Y | I20: 3M | J20: ModFol+EoM | K20: Act/360 | L20: 15L20 | M20: 3M | N20: ModFol+EoM | O20: Act/365F | P20: 15P20 | Q20: -0.0033 | R20: 2009-07-08 | S20: 2017-07-10 | T20: 2017-07-10 | U20: 0.7586906718 | V20: 2.775557562e-17 | X20: 0.7586906718 | Y20: TRUE | Z20: 2017-07-10 | AA20: 0.758608 | AB20: 0.8267177764
B21: 12 | C21: BPBS9 | D21: Swap | E21: 2D | F21: 0D | G21: 0D | H21: 9Y | I21: 3M | J21: ModFol+EoM | K21: Act/360 | L21: 15L21 | M21: 3M | N21: ModFol+EoM | O21: Act/365F | P21: 15P21 | Q21: -0.0032 | R21: 2009-07-08 | S21: 2018-07-09 | T21: 2018-07-09 | U21: 0.7263918832 | V21: -5.551115123e-17 | X21: 0.7263918832 | Y21: TRUE | Z21: 2018-07-09 | AA21: 0.726305 | AB21: 0.8688315853
B22: 13 | C22: BPBS10 | D22: Swap | E22: 2D | F22: 0D | G22: 0D | H22: 10Y | I22: 3M | J22: ModFol+EoM | K22: Act/360 | L22: 15L22 | M22: 3M | N22: ModFol+EoM | O22: Act/365F | P22: 15P22 | Q22: -0.00305 | R22: 2009-07-08 | S22: 2019-07-08 | T22: 2019-07-08 | U22: 0.6946905917 | V22: 0 | X22: 0.6946905917 | Y22: TRUE | Z22: 2019-07-08 | AA22: 0.694605 | AB22: 0.8559173513
B23: 14 | C23: BPBS12 | D23: Swap | E23: 2D | F23: 0D | G23: 0D | H23: 12Y | I23: 3M | J23: ModFol+EoM | K23: Act/360 | L23: 15L23 | M23: 3M | N23: ModFol+EoM | O23: Act/365F | P23: 15P23 | Q23: -0.002925 | R23: 2009-07-08 | S23: 2021-07-08 | T23: 2021-07-08 | U23: 0.6322610468 | V23: 5.551115123e-17 | X23: 0.6322610468 | Y23: TRUE | Z23: 2021-07-08 | AA23: 0.632182 | AB23: 0.7904682012
B24: 15 | C24: BPBS15 | D24: Swap | E24: 2D | F24: 0D | G24: 0D | H24: 15Y | I24: 3M | J24: ModFol+EoM | K24: Act/360 | L24: 15L24 | M24: 3M | N24: ModFol+EoM | O24: Act/365F | P24: 15P24 | Q24: -0.00215 | R24: 2009-07-08 | S24: 2024-07-08 | T24: 2024-07-08 | U24: 0.541761094 | V24: 0 | X24: 0.541761094 | Y24: TRUE | Z24: 2024-07-08 | AA24: 0.541688 | AB24: 0.7309399436
B25: 16 | C25: BPBS20 | D25: Swap | E25: 2D | F25: 0D | G25: 0D | H25: 20Y | I25: 3M | J25: ModFol+EoM | K25: Act/360 | L25: 15L25 | M25: 3M | N25: ModFol+EoM | O25: Act/365F | P25: 15P25 | Q25: -0.0014 | R25: 2009-07-08 | S25: 2029-07-09 | T25: 2029-07-09 | U25: 0.4372159183 | V25: 0 | X25: 0.4372159183 | Y25: TRUE | Z25: 2029-07-09 | AA25: 0.437135 | AB25: 0.8091832042
B26: 17 | C26: BPBS30 | D26: Swap | E26: 2D | F26: 0D | G26: 0D | H26: 30Y | I26: 3M | J26: ModFol+EoM | K26: Act/360 | L26: 15L26 | M26: 3M | N26: ModFol+EoM | O26: Act/365F | P26: 15P26 | Q26: -0.0009 | R26: 2009-07-08 | S26: 2039-07-08 | T26: 2039-07-08 | U26: 0.2989737588 | V26: -5.551115123e-17 | X26: 0.2989737588 | Y26: TRUE | Z26: 2039-07-08 | AA26: 0.298953 | AB26: 0.2075882828

Sheet Holidays
D2: LDN Holidays | E2: =CreateHolidayList(D10:K50) -> 16E2
D3: NYC Holidays | E3: =CreateHolidayList(M10:V50) -> 16E3
D4: EUR Holidays | E4: =CreateHolidayList(X10:AC50) -> 16E4
D6: London Bank Holidays, http://en.wikipedia.org/wiki/Bank_holiday | M6: US Federal Holidays, http://en.wikipedia.org/wiki/Federal_holidays_in_the_United_States | X6: TARGET2 holidays, http://en.wikipedia.org/wiki/TARGET2
D7: Holidays fall on a Saturday or Sunday are normally observed on the next Monday | M7: Holidays that fall on a Sunday are normally observed on the next Monday | X7: http://www.ecb.europa.eu/home/html/holidays.en.html
B8: Year | D8: New Year | E8: Good Friday | F8: Easter Monday | G8: May Day | H8: Spring Holiday | I8: Aug Last Mon | J8: Xmas | K8: Boxing | M8: New Year | N8: M. L. K. Jr. | O8: President's | P8: Memorial | Q8: Indep. | R8: Labor | S8: Veterans | T8: Columbus | U8: Thanksgiving | V8: Xmas | X8: New Year | Y8: Good Friday | Z8: Easter Monday | AA8: Labor | AB8: Xmas | AC8: After Xmas
D9: 1st, Jan | G9: 1st Mon, May | H9: Last Mon, May | I9: Last Mon, Aug | J9: 25th, Dec | K9: 26th, Dec | M9: 1st, Jan | N9: 3rd Mon, Jan | O9: 3rd Mon, Feb | P9: Last Mon, May | Q9: 4th, July | R9: 1st Mon, Sept | S9: 11th, Nov | T9: 2nd Mon, Oct | U9: 4th Thu, Nov | V9: 25th, Dec | X9: 1st, Jan | AA9: 1st, May | AB9: 25th, Dec | AC9: 26th, Dec
B10: 2000 | D10: =WORKDAY(WORKDAY(DATE($B10,1,1), -1), 1) -> 2000-01-03 | E10: =DOLLAR(("4/"&$B10)/7+MOD(19*MOD($B10,19)-7,30)*14%,0)*7-8 -> 2000-04-21 | F10: =E10+3 -> 2000-04-24 | G10: =DATE($B10,5,8) - WEEKDAY(DATE($B10,5,8 - 2)) -> 2000-05-01 | H10: =EOMONTH(DATE($B10,5,1),0) + 1 - WEEKDAY(EOMONTH(DATE($B10,5,1),0)+6) -> 2000-05-29 | I10: =EOMONTH(DATE($B10,8,1),0) + 1 - WEEKDAY(EOMONTH(DATE($B10,8,1),0)+6) -> 2000-08-28 | J10: =WORKDAY(WORKDAY(DATE($B10,12,25), -1), 1) -> 2000-12-25 | K10: =J10+1 -> 2000-12-26 | M10: =IF(WEEKDAY(DATE($B10,1,1))=1, DATE($B10,1,1)+1, DATE($B10,1,1)) -> 2000-01-01 | N10: =DATE($B10,1,8) - WEEKDAY(DATE($B10,1,8 - 2)) + 14 -> 2000-01-17 | O10: =DATE($B10,2,8) - WEEKDAY(DATE($B10,2,8 - 2)) + 14 -> 2000-02-21 | P10: =EOMONTH(DATE($B10,5,1),0) + 1 - WEEKDAY(EOMONTH(DATE($B10,5,1),0)+6) -> 2000-05-29 | Q10: =IF(WEEKDAY(DATE($B10,7,4))=1, DATE($B10,7,4)+1, DATE($B10,7,4)) -> 2000-07-04 | R10: =DATE($B10,9,8) - WEEKDAY(DATE($B10,9,8 - 2)) -> 2000-09-04 | S10: =IF(WEEKDAY(DATE($B10,11,11))=1, DATE($B10,11,11)+1, DATE($B10,11,11)) -> 2000-11-11 | T10: =DATE($B10,10,8) - WEEKDAY(DATE($B10,10,8 - 2)) + 7 -> 2000-10-09 | U10: =DATE($B10,11,8) - WEEKDAY(DATE($B10,11,8 - 5)) + 21 -> 2000-11-23 | V10: =IF(WEEKDAY(DATE($B10,12,25))=1, DATE($B10,12,25)+1, DATE($B10,12,25)) -> 2000-12-25 | X10: =DATE($B10,1,1) -> 2000-01-01 | Y10: =DOLLAR(("4/"&$B10)/7+MOD(19*MOD($B10,19)-7,30)*14%,0)*7-8 -> 2000-04-21 | Z10: =Y10+3 -> 2000-04-24 | AA10: =DATE($B10,5,1) -> 2000-05-01 | AB10: =DATE($B10,12,25) -> 2000-12-25 | AC10: =AB10+1 -> 2000-12-26
B11: =B10+1 -> 2001 | D11: 2001-01-01 | E11: =DOLLAR(("4/"&$B11)/7+MOD(19*MOD($B11,19)-7,30)*14%,0)*7-8 -> 2001-04-13 | F11: =E11+3 -> 2001-04-16 | G11: =DATE($B11,5,8) - WEEKDAY(DATE($B11,5,8 - 2)) -> 2001-05-07 | H11: 2001-05-28 | I11: 2001-08-27 | J11: 2001-12-25 | K11: =J11+1 -> 2001-12-26 | M11: 2001-01-01 | N11: 2001-01-15 | O11: 2001-02-19 | P11: 2001-05-28 | Q11: 2001-07-04 | R11: 2001-09-03 | S11: 2001-11-12 | T11: 2001-10-08 | U11: 2001-11-22 | V11: 2001-12-25 | X11: =DATE($B11,1,1) -> 2001-01-01 | Y11: =DOLLAR(("4/"&$B11)/7+MOD(19*MOD($B11,19)-7,30)*14%,0)*7-8 -> 2001-04-13 | Z11: =Y11+3 -> 2001-04-16 | AA11: =DATE($B11,5,1) -> 2001-05-01 | AB11: =DATE($B11,12,25) -> 2001-12-25 | AC11: =AB11+1 -> 2001-12-26
B12: =B11+1 -> 2002 | D12: 2002-01-01 | E12: 2002-03-29 | F12: 2002-04-01 | G12: 2002-05-06 | H12: 2002-05-27 | I12: 2002-08-26 | J12: 2002-12-25 | K12: 2002-12-26 | M12: 2002-01-01 | N12: 2002-01-21 | O12: 2002-02-18 | P12: 2002-05-27 | Q12: 2002-07-04 | R12: 2002-09-02 | S12: 2002-11-11 | T12: 2002-10-14 | U12: 2002-11-28 | V12: 2002-12-25 | X12: 2002-01-01 | Y12: 2002-03-29 | Z12: 2002-04-01 | AA12: 2002-05-01 | AB12: 2002-12-25 | AC12: 2002-12-26
B13: 2003 | D13: 2003-01-01 | E13: 2003-04-18 | F13: 2003-04-21 | G13: 2003-05-05 | H13: 2003-05-26 | I13: 2003-08-25 | J13: 2003-12-25 | K13: 2003-12-26 | M13: 2003-01-01 | N13: 2003-01-20 | O13: 2003-02-17 | P13: 2003-05-26 | Q13: 2003-07-04 | R13: 2003-09-01 | S13: 2003-11-11 | T13: 2003-10-13 | U13: 2003-11-27 | V13: 2003-12-25 | X13: 2003-01-01 | Y13: 2003-04-18 | Z13: 2003-04-21 | AA13: 2003-05-01 | AB13: 2003-12-25 | AC13: 2003-12-26
B14: 2004 | D14: 2004-01-01 | E14: 2004-04-09 | F14: 2004-04-12 | G14: 2004-05-03 | H14: 2004-05-31 | I14: 2004-08-30 | J14: 2004-12-27 | K14: 2004-12-28 | M14: 2004-01-01 | N14: 2004-01-19 | O14: 2004-02-16 | P14: 2004-05-31 | Q14: 2004-07-05 | R14: 2004-09-06 | S14: 2004-11-11 | T14: 2004-10-11 | U14: 2004-11-25 | V14: 2004-12-25 | X14: 2004-01-01 | Y14: 2004-04-09 | Z14: 2004-04-12 | AA14: 2004-05-01 | AB14: 2004-12-25 | AC14: 2004-12-26
B15: 2005 | D15: 2005-01-03 | E15: 2005-03-25 | F15: 2005-03-28 | G15: 2005-05-02 | H15: 2005-05-30 | I15: 2005-08-29 | J15: 2005-12-26 | K15: 2005-12-27 | M15: 2005-01-01 | N15: 2005-01-17 | O15: 2005-02-21 | P15: 2005-05-30 | Q15: 2005-07-04 | R15: 2005-09-05 | S15: 2005-11-11 | T15: 2005-10-10 | U15: 2005-11-24 | V15: 2005-12-26 | X15: 2005-01-01 | Y15: 2005-03-25 | Z15: 2005-03-28 | AA15: 2005-05-01 | AB15: 2005-12-25 | AC15: 2005-12-26
B16: 2006 | D16: 2006-01-02 | E16: 2006-04-14 | F16: 2006-04-17 | G16: 2006-05-01 | H16: 2006-05-29 | I16: 2006-08-28 | J16: 2006-12-25 | K16: 2006-12-26 | M16: 2006-01-02 | N16: 2006-01-16 | O16: 2006-02-20 | P16: 2006-05-29 | Q16: 2006-07-04 | R16: 2006-09-04 | S16: 2006-11-11 | T16: 2006-10-09 | U16: 2006-11-23 | V16: 2006-12-25 | X16: 2006-01-01 | Y16: 2006-04-14 | Z16: 2006-04-17 | AA16: 2006-05-01 | AB16: 2006-12-25 | AC16: 2006-12-26
B17: 2007 | D17: 2007-01-01 | E17: 2007-04-06 | F17: 2007-04-09 | G17: 2007-05-07 | H17: 2007-05-28 | I17: 2007-08-27 | J17: 2007-12-25 | K17: 2007-12-26 | M17: 2007-01-01 | N17: 2007-01-15 | O17: 2007-02-19 | P17: 2007-05-28 | Q17: 2007-07-04 | R17: 2007-09-03 | S17: 2007-11-12 | T17: 2007-10-08 | U17: 2007-11-22 | V17: 2007-12-25 | X17: 2007-01-01 | Y17: 2007-04-06 | Z17: 2007-04-09 | AA17: 2007-05-01 | AB17: 2007-12-25 | AC17: 2007-12-26
B18: 2008 | D18: 2008-01-01 | E18: 2008-03-21 | F18: 2008-03-24 | G18: 2008-05-05 | H18: 2008-05-26 | I18: 2008-08-25 | J18: 2008-12-25 | K18: 2008-12-26 | M18: 2008-01-01 | N18: 2008-01-21 | O18: 2008-02-18 | P18: 2008-05-26 | Q18: 2008-07-04 | R18: 2008-09-01 | S18: 2008-11-11 | T18: 2008-10-13 | U18: 2008-11-27 | V18: 2008-12-25 | X18: 2008-01-01 | Y18: 2008-03-21 | Z18: 2008-03-24 | AA18: 2008-05-01 | AB18: 2008-12-25 | AC18: 2008-12-26
B19: 2009 | D19: 2009-01-01 | E19: 2009-04-10 | F19: 2009-04-13 | G19: 2009-05-04 | H19: 2009-05-25 | I19: 2009-08-31 | J19: 2009-12-25 | K19: 2009-12-26 | M19: 2009-01-01 | N19: 2009-01-19 | O19: 2009-02-16 | P19: 2009-05-25 | Q19: 2009-07-04 | R19: 2009-09-07 | S19: 2009-11-11 | T19: 2009-10-12 | U19: 2009-11-26 | V19: 2009-12-25 | X19: 2009-01-01 | Y19: 2009-04-10 | Z19: 2009-04-13 | AA19: 2009-05-01 | AB19: 2009-12-25 | AC19: 2009-12-26
B20: 2010 | D20: 2010-01-01 | E20: 2010-04-02 | F20: 2010-04-05 | G20: 2010-05-03 | H20: 2010-05-31 | I20: 2010-08-30 | J20: 2010-12-27 | K20: 2010-12-28 | M20: 2010-01-01 | N20: 2010-01-18 | O20: 2010-02-15 | P20: 2010-05-31 | Q20: 2010-07-05 | R20: 2010-09-06 | S20: 2010-11-11 | T20: 2010-10-11 | U20: 2010-11-25 | V20: 2010-12-25 | X20: 2010-01-01 | Y20: 2010-04-02 | Z20: 2010-04-05 | AA20: 2010-05-01 | AB20: 2010-12-25 | AC20: 2010-12-26
B21: 2011 | D21: 2011-01-03 | E21: 2011-04-22 | F21: 2011-04-25 | G21: 2011-05-02 | H21: 2011-05-30 | I21: 2011-08-29 | J21: 2011-12-26 | K21: 2011-12-27 | M21: 2011-01-01 | N21: 2011-01-17 | O21: 2011-02-21 | P21: 2011-05-30 | Q21: 2011-07-04 | R21: 2011-09-05 | S21: 2011-11-11 | T21: 2011-10-10 | U21: 2011-11-24 | V21: 2011-12-26 | X21: 2011-01-01 | Y21: 2011-04-22 | Z21: 2011-04-25 | AA21: 2011-05-01 | AB21: 2011-12-25 | AC21: 2011-12-26
B22: 2012 | D22: 2012-01-02 | E22: 2012-04-06 | F22: 2012-04-09 | G22: 2012-05-07 | H22: 2012-05-28 | I22: 2012-08-27 | J22: 2012-12-25 | K22: 2012-12-26 | M22: 2012-01-02 | N22: 2012-01-16 | O22: 2012-02-20 | P22: 2012-05-28 | Q22: 2012-07-04 | R22: 2012-09-03 | S22: 2012-11-12 | T22: 2012-10-08 | U22: 2012-11-22 | V22: 2012-12-25 | X22: 2012-01-01 | Y22: 2012-04-06 | Z22: 2012-04-09 | AA22: 2012-05-01 | AB22: 2012-12-25 | AC22: 2012-12-26
B23: 2013 | D23: 2013-01-01 | E23: 2013-03-29 | F23: 2013-04-01 | G23: 2013-05-06 | H23: 2013-05-27 | I23: 2013-08-26 | J23: 2013-12-25 | K23: 2013-12-26 | M23: 2013-01-01 | N23: 2013-01-21 | O23: 2013-02-18 | P23: 2013-05-27 | Q23: 2013-07-04 | R23: 2013-09-02 | S23: 2013-11-11 | T23: 2013-10-14 | U23: 2013-11-28 | V23: 2013-12-25 | X23: 2013-01-01 | Y23: 2013-03-29 | Z23: 2013-04-01 | AA23: 2013-05-01 | AB23: 2013-12-25 | AC23: 2013-12-26
B24: 2014 | D24: 2014-01-01 | E24: 2014-04-18 | F24: 2014-04-21 | G24: 2014-05-05 | H24: 2014-05-26 | I24: 2014-08-25 | J24: 2014-12-25 | K24: 2014-12-26 | M24: 2014-01-01 | N24: 2014-01-20 | O24: 2014-02-17 | P24: 2014-05-26 | Q24: 2014-07-04 | R24: 2014-09-01 | S24: 2014-11-11 | T24: 2014-10-13 | U24: 2014-11-27 | V24: 2014-12-25 | X24: 2014-01-01 | Y24: 2014-04-18 | Z24: 2014-04-21 | AA24: 2014-05-01 | AB24: 2014-12-25 | AC24: 2014-12-26
B25: 2015 | D25: 2015-01-01 | E25: 2015-04-03 | F25: 2015-04-06 | G25: 2015-05-04 | H25: 2015-05-25 | I25: 2015-08-31 | J25: 2015-12-25 | K25: 2015-12-26 | M25: 2015-01-01 | N25: 2015-01-19 | O25: 2015-02-16 | P25: 2015-05-25 | Q25: 2015-07-04 | R25: 2015-09-07 | S25: 2015-11-11 | T25: 2015-10-12 | U25: 2015-11-26 | V25: 2015-12-25 | X25: 2015-01-01 | Y25: 2015-04-03 | Z25: 2015-04-06 | AA25: 2015-05-01 | AB25: 2015-12-25 | AC25: 2015-12-26
B26: 2016 | D26: 2016-01-01 | E26: 2016-03-25 | F26: 2016-03-28 | G26: 2016-05-02 | H26: 2016-05-30 | I26: 2016-08-29 | J26: 2016-12-26 | K26: 2016-12-27 | M26: 2016-01-01 | N26: 2016-01-18 | O26: 2016-02-15 | P26: 2016-05-30 | Q26: 2016-07-04 | R26: 2016-09-05 | S26: 2016-11-11 | T26: 2016-10-10 | U26: 2016-11-24 | V26: 2016-12-26 | X26: 2016-01-01 | Y26: 2016-03-25 | Z26: 2016-03-28 | AA26: 2016-05-01 | AB26: 2016-12-25 | AC26: 2016-12-26
B27: 2017 | D27: 2017-01-02 | E27: 2017-04-14 | F27: 2017-04-17 | G27: 2017-05-01 | H27: 2017-05-29 | I27: 2017-08-28 | J27: 2017-12-25 | K27: 2017-12-26 | M27: 2017-01-02 | N27: 2017-01-16 | O27: 2017-02-20 | P27: 2017-05-29 | Q27: 2017-07-04 | R27: 2017-09-04 | S27: 2017-11-11 | T27: 2017-10-09 | U27: 2017-11-23 | V27: 2017-12-25 | X27: 2017-01-01 | Y27: 2017-04-14 | Z27: 2017-04-17 | AA27: 2017-05-01 | AB27: 2017-12-25 | AC27: 2017-12-26
B28: 2018 | D28: 2018-01-01 | E28: 2018-03-30 | F28: 2018-04-02 | G28: 2018-05-07 | H28: 2018-05-28 | I28: 2018-08-27 | J28: 2018-12-25 | K28: 2018-12-26 | M28: 2018-01-01 | N28: 2018-01-15 | O28: 2018-02-19 | P28: 2018-05-28 | Q28: 2018-07-04 | R28: 2018-09-03 | S28: 2018-11-12 | T28: 2018-10-08 | U28: 2018-11-22 | V28: 2018-12-25 | X28: 2018-01-01 | Y28: 2018-03-30 | Z28: 2018-04-02 | AA28: 2018-05-01 | AB28: 2018-12-25 | AC28: 2018-12-26
B29: 2019 | D29: 2019-01-01 | E29: 2019-04-19 | F29: 2019-04-22 | G29: 2019-05-06 | H29: 2019-05-27 | I29: 2019-08-26 | J29: 2019-12-25 | K29: 2019-12-26 | M29: 2019-01-01 | N29: 2019-01-21 | O29: 2019-02-18 | P29: 2019-05-27 | Q29: 2019-07-04 | R29: 2019-09-02 | S29: 2019-11-11 | T29: 2019-10-14 | U29: 2019-11-28 | V29: 2019-12-25 | X29: 2019-01-01 | Y29: 2019-04-19 | Z29: 2019-04-22 | AA29: 2019-05-01 | AB29: 2019-12-25 | AC29: 2019-12-26
B30: 2020 | D30: 2020-01-01 | E30: 2020-04-10 | F30: 2020-04-13 | G30: 2020-05-04 | H30: 2020-05-25 | I30: 2020-08-31 | J30: 2020-12-25 | K30: 2020-12-26 | M30: 2020-01-01 | N30: 2020-01-20 | O30: 2020-02-17 | P30: 2020-05-25 | Q30: 2020-07-04 | R30: 2020-09-07 | S30: 2020-11-11 | T30: 2020-10-12 | U30: 2020-11-26 | V30: 2020-12-25 | X30: 2020-01-01 | Y30: 2020-04-10 | Z30: 2020-04-13 | AA30: 2020-05-01 | AB30: 2020-12-25 | AC30: 2020-12-26
B31: 2021 | D31: 2021-01-01 | E31: 2021-04-02 | F31: 2021-04-05 | G31: 2021-05-03 | H31: 2021-05-31 | I31: 2021-08-30 | J31: 2021-12-27 | K31: 2021-12-28 | M31: 2021-01-01 | N31: 2021-01-18 | O31: 2021-02-15 | P31: 2021-05-31 | Q31: 2021-07-05 | R31: 2021-09-06 | S31: 2021-11-11 | T31: 2021-10-11 | U31: 2021-11-25 | V31: 2021-12-25 | X31: 2021-01-01 | Y31: 2021-04-02 | Z31: 2021-04-05 | AA31: 2021-05-01 | AB31: 2021-12-25 | AC31: 2021-12-26
B32: 2022 | D32: 2022-01-03 | E32: 2022-04-15 | F32: 2022-04-18 | G32: 2022-05-02 | H32: 2022-05-30 | I32: 2022-08-29 | J32: 2022-12-26 | K32: 2022-12-27 | M32: 2022-01-01 | N32: 2022-01-17 | O32: 2022-02-21 | P32: 2022-05-30 | Q32: 2022-07-04 | R32: 2022-09-05 | S32: 2022-11-11 | T32: 2022-10-10 | U32: 2022-11-24 | V32: 2022-12-26 | X32: 2022-01-01 | Y32: 2022-04-15 | Z32: 2022-04-18 | AA32: 2022-05-01 | AB32: 2022-12-25 | AC32: 2022-12-26
B33: 2023 | D33: 2023-01-02 | E33: 2023-04-07 | F33: 2023-04-10 | G33: 2023-05-01 | H33: 2023-05-29 | I33: 2023-08-28 | J33: 2023-12-25 | K33: 2023-12-26 | M33: 2023-01-02 | N33: 2023-01-16 | O33: 2023-02-20 | P33: 2023-05-29 | Q33: 2023-07-04 | R33: 2023-09-04 | S33: 2023-11-11 | T33: 2023-10-09 | U33: 2023-11-23 | V33: 2023-12-25 | X33: 2023-01-01 | Y33: 2023-04-07 | Z33: 2023-04-10 | AA33: 2023-05-01 | AB33: 2023-12-25 | AC33: 2023-12-26
B34: 2024 | D34: 2024-01-01 | E34: 2024-03-29 | F34: 2024-04-01 | G34: 2024-05-06 | H34: 2024-05-27 | I34: 2024-08-26 | J34: 2024-12-25 | K34: 2024-12-26 | M34: 2024-01-01 | N34: 2024-01-15 | O34: 2024-02-19 | P34: 2024-05-27 | Q34: 2024-07-04 | R34: 2024-09-02 | S34: 2024-11-11 | T34: 2024-10-14 | U34: 2024-11-28 | V34: 2024-12-25 | X34: 2024-01-01 | Y34: 2024-03-29 | Z34: 2024-04-01 | AA34: 2024-05-01 | AB34: 2024-12-25 | AC34: 2024-12-26
B35: 2025 | D35: 2025-01-01 | E35: 2025-04-18 | F35: 2025-04-21 | G35: 2025-05-05 | H35: 2025-05-26 | I35: 2025-08-25 | J35: 2025-12-25 | K35: 2025-12-26 | M35: 2025-01-01 | N35: 2025-01-20 | O35: 2025-02-17 | P35: 2025-05-26 | Q35: 2025-07-04 | R35: 2025-09-01 | S35: 2025-11-11 | T35: 2025-10-13 | U35: 2025-11-27 | V35: 2025-12-25 | X35: 2025-01-01 | Y35: 2025-04-18 | Z35: 2025-04-21 | AA35: 2025-05-01 | AB35: 2025-12-25 | AC35: 2025-12-26
B36: 2026 | D36: 2026-01-01 | E36: 2026-04-03 | F36: 2026-04-06 | G36: 2026-05-04 | H36: 2026-05-25 | I36: 2026-08-31 | J36: 2026-12-25 | K36: 2026-12-26 | M36: 2026-01-01 | N36: 2026-01-19 | O36: 2026-02-16 | P36: 2026-05-25 | Q36: 2026-07-04 | R36: 2026-09-07 | S36: 2026-11-11 | T36: 2026-10-12 | U36: 2026-11-26 | V36: 2026-12-25 | X36: 2026-01-01 | Y36: 2026-04-03 | Z36: 2026-04-06 | AA36: 2026-05-01 | AB36: 2026-12-25 | AC36: 2026-12-26
B37: 2027 | D37: 2027-01-01 | E37: 2027-03-26 | F37: 2027-03-29 | G37: 2027-05-03 | H37: 2027-05-31 | I37: 2027-08-30 | J37: 2027-12-27 | K37: 2027-12-28 | M37: 2027-01-01 | N37: 2027-01-18 | O37: 2027-02-15 | P37: 2027-05-31 | Q37: 2027-07-05 | R37: 2027-09-06 | S37: 2027-11-11 | T37: 2027-10-11 | U37: 2027-11-25 | V37: 2027-12-25 | X37: 2027-01-01 | Y37: 2027-03-26 | Z37: 2027-03-29 | AA37: 2027-05-01 | AB37: 2027-12-25 | AC37: 2027-12-26
B38: 2028 | D38: 2028-01-03 | E38: 2028-04-14 | F38: 2028-04-17 | G38: 2028-05-01 | H38: 2028-05-29 | I38: 2028-08-28 | J38: 2028-12-25 | K38: 2028-12-26 | M38: 2028-01-01 | N38: 2028-01-17 | O38: 2028-02-21 | P38: 2028-05-29 | Q38: 2028-07-04 | R38: 2028-09-04 | S38: 2028-11-11 | T38: 2028-10-09 | U38: 2028-11-23 | V38: 2028-12-25 | X38: 2028-01-01 | Y38: 2028-04-14 | Z38: 2028-04-17 | AA38: 2028-05-01 | AB38: 2028-12-25 | AC38: 2028-12-26
B39: 2029 | D39: 2029-01-01 | E39: 2029-03-30 | F39: 2029-04-02 | G39: 2029-05-07 | H39: 2029-05-28 | I39: 2029-08-27 | J39: 2029-12-25 | K39: 2029-12-26 | M39: 2029-01-01 | N39: 2029-01-15 | O39: 2029-02-19 | P39: 2029-05-28 | Q39: 2029-07-04 | R39: 2029-09-03 | S39: 2029-11-12 | T39: 2029-10-08 | U39: 2029-11-22 | V39: 2029-12-25 | X39: 2029-01-01 | Y39: 2029-03-30 | Z39: 2029-04-02 | AA39: 2029-05-01 | AB39: 2029-12-25 | AC39: 2029-12-26
B40: 2030 | D40: 2030-01-01 | E40: 2030-04-19 | F40: 2030-04-22 | G40: 2030-05-06 | H40: 2030-05-27 | I40: 2030-08-26 | J40: 2030-12-25 | K40: 2030-12-26 | M40: 2030-01-01 | N40: 2030-01-21 | O40: 2030-02-18 | P40: 2030-05-27 | Q40: 2030-07-04 | R40: 2030-09-02 | S40: 2030-11-11 | T40: 2030-10-14 | U40: 2030-11-28 | V40: 2030-12-25 | X40: 2030-01-01 | Y40: 2030-04-19 | Z40: 2030-04-22 | AA40: 2030-05-01 | AB40: 2030-12-25 | AC40: 2030-12-26
B41: 2031 | D41: 2031-01-01 | E41: 2031-04-11 | F41: 2031-04-14 | G41: 2031-05-05 | H41: 2031-05-26 | I41: 2031-08-25 | J41: 2031-12-25 | K41: 2031-12-26 | M41: 2031-01-01 | N41: 2031-01-20 | O41: 2031-02-17 | P41: 2031-05-26 | Q41: 2031-07-04 | R41: 2031-09-01 | S41: 2031-11-11 | T41: 2031-10-13 | U41: 2031-11-27 | V41: 2031-12-25 | X41: 2031-01-01 | Y41: 2031-04-11 | Z41: 2031-04-14 | AA41: 2031-05-01 | AB41: 2031-12-25 | AC41: 2031-12-26
B42: 2032 | D42: 2032-01-01 | E42: 2032-03-26 | F42: 2032-03-29 | G42: 2032-05-03 | H42: 2032-05-31 | I42: 2032-08-30 | J42: 2032-12-27 | K42: 2032-12-28 | M42: 2032-01-01 | N42: 2032-01-19 | O42: 2032-02-16 | P42: 2032-05-31 | Q42: 2032-07-05 | R42: 2032-09-06 | S42: 2032-11-11 | T42: 2032-10-11 | U42: 2032-11-25 | V42: 2032-12-25 | X42: 2032-01-01 | Y42: 2032-03-26 | Z42: 2032-03-29 | AA42: 2032-05-01 | AB42: 2032-12-25 | AC42: 2032-12-26
B43: 2033 | D43: 2033-01-03 | E43: 2033-04-15 | F43: 2033-04-18 | G43: 2033-05-02 | H43: 2033-05-30 | I43: 2033-08-29 | J43: 2033-12-26 | K43: 2033-12-27 | M43: 2033-01-01 | N43: 2033-01-17 | O43: 2033-02-21 | P43: 2033-05-30 | Q43: 2033-07-04 | R43: 2033-09-05 | S43: 2033-11-11 | T43: 2033-10-10 | U43: 2033-11-24 | V43: 2033-12-26 | X43: 2033-01-01 | Y43: 2033-04-15 | Z43: 2033-04-18 | AA43: 2033-05-01 | AB43: 2033-12-25 | AC43: 2033-12-26
B44: 2034 | D44: 2034-01-02 | E44: 2034-04-07 | F44: 2034-04-10 | G44: 2034-05-01 | H44: 2034-05-29 | I44: 2034-08-28 | J44: 2034-12-25 | K44: 2034-12-26 | M44: 2034-01-02 | N44: 2034-01-16 | O44: 2034-02-20 | P44: 2034-05-29 | Q44: 2034-07-04 | R44: 2034-09-04 | S44: 2034-11-11 | T44: 2034-10-09 | U44: 2034-11-23 | V44: 2034-12-25 | X44: 2034-01-01 | Y44: 2034-04-07 | Z44: 2034-04-10 | AA44: 2034-05-01 | AB44: 2034-12-25 | AC44: 2034-12-26
B45: 2035 | D45: 2035-01-01 | E45: 2035-03-23 | F45: 2035-03-26 | G45: 2035-05-07 | H45: 2035-05-28 | I45: 2035-08-27 | J45: 2035-12-25 | K45: 2035-12-26 | M45: 2035-01-01 | N45: 2035-01-15 | O45: 2035-02-19 | P45: 2035-05-28 | Q45: 2035-07-04 | R45: 2035-09-03 | S45: 2035-11-12 | T45: 2035-10-08 | U45: 2035-11-22 | V45: 2035-12-25 | X45: 2035-01-01 | Y45: 2035-03-23 | Z45: 2035-03-26 | AA45: 2035-05-01 | AB45: 2035-12-25 | AC45: 2035-12-26
B46: 2036 | D46: 2036-01-01 | E46: 2036-04-11 | F46: 2036-04-14 | G46: 2036-05-05 | H46: 2036-05-26 | I46: 2036-08-25 | J46: 2036-12-25 | K46: 2036-12-26 | M46: 2036-01-01 | N46: 2036-01-21 | O46: 2036-02-18 | P46: 2036-05-26 | Q46: 2036-07-04 | R46: 2036-09-01 | S46: 2036-11-11 | T46: 2036-10-13 | U46: 2036-11-27 | V46: 2036-12-25 | X46: 2036-01-01 | Y46: 2036-04-11 | Z46: 2036-04-14 | AA46: 2036-05-01 | AB46: 2036-12-25 | AC46: 2036-12-26
B47: 2037 | D47: 2037-01-01 | E47: 2037-04-03 | F47: 2037-04-06 | G47: 2037-05-04 | H47: 2037-05-25 | I47: 2037-08-31 | J47: 2037-12-25 | K47: 2037-12-26 | M47: 2037-01-01 | N47: 2037-01-19 | O47: 2037-02-16 | P47: 2037-05-25 | Q47: 2037-07-04 | R47: 2037-09-07 | S47: 2037-11-11 | T47: 2037-10-12 | U47: 2037-11-26 | V47: 2037-12-25 | X47: 2037-01-01 | Y47: 2037-04-03 | Z47: 2037-04-06 | AA47: 2037-05-01 | AB47: 2037-12-25 | AC47: 2037-12-26
B48: 2038 | D48: 2038-01-01 | E48: 2038-04-23 | F48: 2038-04-26 | G48: 2038-05-03 | H48: 2038-05-31 | I48: 2038-08-30 | J48: 2038-12-27 | K48: 2038-12-28 | M48: 2038-01-01 | N48: 2038-01-18 | O48: 2038-02-15 | P48: 2038-05-31 | Q48: 2038-07-05 | R48: 2038-09-06 | S48: 2038-11-11 | T48: 2038-10-11 | U48: 2038-11-25 | V48: 2038-12-25 | X48: 2038-01-01 | Y48: 2038-04-23 | Z48: 2038-04-26 | AA48: 2038-05-01 | AB48: 2038-12-25 | AC48: 2038-12-26
B49: 2039 | D49: 2039-01-03 | E49: 2039-04-08 | F49: 2039-04-11 | G49: 2039-05-02 | H49: 2039-05-30 | I49: 2039-08-29 | J49: 2039-12-26 | K49: 2039-12-27 | M49: 2039-01-01 | N49: 2039-01-17 | O49: 2039-02-21 | P49: 2039-05-30 | Q49: 2039-07-04 | R49: 2039-09-05 | S49: 2039-11-11 | T49: 2039-10-10 | U49: 2039-11-24 | V49: 2039-12-26 | X49: 2039-01-01 | Y49: 2039-04-08 | Z49: 2039-04-11 | AA49: 2039-05-01 | AB49: 2039-12-25 | AC49: 2039-12-26
B50: 2040 | D50: 2040-01-02 | E50: 2040-03-30 | F50: 2040-04-02 | G50: 2040-05-07 | H50: 2040-05-28 | I50: 2040-08-27 | J50: 2040-12-25 | K50: 2040-12-26 | M50: 2040-01-02 | N50: 2040-01-16 | O50: 2040-02-20 | P50: 2040-05-28 | Q50: 2040-07-04 | R50: 2040-09-03 | S50: 2040-11-12 | T50: 2040-10-08 | U50: 2040-11-22 | V50: 2040-12-25 | X50: 2040-01-01 | Y50: 2040-03-30 | Z50: 2040-04-02 | AA50: 2040-05-01 | AB50: 2040-12-25 | AC50: 2040-12-26

Sheet Interpolation
B3: Key Rates | E3: Interpolation
B4: x | C4: y | E4: x' | F4: y
B5: 1 | C5: 1.8 | E5: 1 | F5: =MonotoneHermiteSpline($B$5:$B$12,$C$5:$C$12,E5) -> 1.8
B6: 2 | C6: 1.9 | E6: =E5+0.05 -> 1.05 | F6: =MonotoneHermiteSpline($B$5:$B$12,$C$5:$C$12,E6) -> 1.81200625
B7: 3 | C7: 1.7 | E7: =E6+0.05 -> 1.1 | F7: 1.82305
B8: 3.1 | C8: 1.1 | E8: 1.15 | F8: 1.83316875
B9: 5.1 | C9: 1.1 | E9: 1.2 | F9: 1.8424
B10: 6 | C10: 1.7 | E10: 1.25 | F10: 1.85078125
B11: 7 | C11: 1.4 | E11: 1.3 | F11: 1.85835
B12: 8 | C12: 1.9 | E12: 1.35 | F12: 1.86514375
E13: 1.4 | F13: 1.8712
E14: 1.45 | F14: 1.87655625
E15: 1.5 | F15: 1.88125
E16: 1.55 | F16: 1.88531875
E17: 1.6 | F17: 1.8888
E18: 1.65 | F18: 1.89173125
E19: 1.7 | F19: 1.89415
E20: 1.75 | F20: 1.89609375
E21: 1.8 | F21: 1.8976
E22: 1.85 | F22: 1.89870625
E23: 1.9 | F23: 1.89945
E24: 1.95 | F24: 1.89986875
E25: 2 | F25: 1.9
E26: 2.05 | F26: 1.899784252
E27: 2.1 | F27: 1.899077165
E28: 2.15 | F28: 1.897788976
E29: 2.2 | F29: 1.895829921
E30: 2.25 | F30: 1.893110236
E31: 2.3 | F31: 1.889540157
E32: 2.35 | F32: 1.885029921
E33: 2.4 | F33: 1.879489764
E34: 2.45 | F34: 1.872829921
E35: 2.5 | F35: 1.86496063
E36: 2.55 | F36: 1.855792126
E37: 2.6 | F37: 1.845234646
E38: 2.65 | F38: 1.833198425
E39: 2.7 | F39: 1.819593701
E40: 2.75 | F40: 1.804330709
E41: 2.8 | F41: 1.787319685
E42: 2.85 | F42: 1.768470866
E43: 2.9 | F43: 1.747694488
E44: 2.95 | F44: 1.724900787
E45: 3 | F45: 1.7
E46: 3.05 | F46: 1.393503937
E47: 3.1 | F47: 1.1
E48: 3.15 | F48: 1.1
E49: 3.2 | F49: 1.1
E50: 3.25 | F50: 1.1
E51: 3.3 | F51: 1.1
E52: 3.35 | F52: 1.1
E53: 3.4 | F53: 1.1
E54: 3.45 | F54: 1.1
E55: 3.5 | F55: 1.1
E56: 3.55 | F56: 1.1
E57: 3.6 | F57: 1.1
E58: 3.65 | F58: 1.1
E59: 3.7 | F59: 1.1
E60: 3.75 | F60: 1.1
E61: 3.8 | F61: 1.1
E62: 3.85 | F62: 1.1
E63: 3.9 | F63: 1.1
E64: 3.95 | F64: 1.1
E65: 4 | F65: 1.1
E66: 4.05 | F66: 1.1
E67: 4.1 | F67: 1.1
E68: 4.15 | F68: 1.1
E69: 4.2 | F69: 1.1
E70: 4.25 | F70: =MonotoneHermiteSpline($B$5:$B$12,$C$5:$C$12,E70) -> 1.1
E71: =E70+0.05 -> 4.3 | F71: 1.1
E72: 4.35 | F72: 1.1
E73: 4.4 | F73: 1.1
E74: 4.45 | F74: 1.1
E75: 4.5 | F75: 1.1
E76: 4.55 | F76: 1.1
E77: 4.6 | F77: 1.1
E78: 4.65 | F78: 1.1
E79: 4.7 | F79: 1.1
E80: 4.75 | F80: 1.1
E81: 4.8 | F81: 1.1
E82: 4.85 | F82: 1.1
E83: 4.9 | F83: 1.1
E84: 4.95 | F84: 1.1
E85: 5 | F85: 1.1
E86: 5.05 | F86: 1.1
E87: 5.1 | F87: 1.1
E88: 5.15 | F88: 1.105349794
E89: 5.2 | F89: 1.120576132
E90: 5.25 | F90: 1.144444444
E91: 5.3 | F91: 1.175720165
E92: 5.35 | F92: 1.213168724
E93: 5.4 | F93: 1.255555556
E94: 5.45 | F94: 1.301646091
E95: 5.5 | F95: 1.350205761
E96: 5.55 | F96: 1.4
E97: 5.6 | F97: 1.449794239
E98: 5.65 | F98: 1.498353909
E99: 5.7 | F99: 1.544444444
E100: 5.75 | F100: 1.586831276
E101: 5.8 | F101: 1.624279835
E102: 5.85 | F102: 1.655555556
E103: 5.9 | F103: 1.679423868
E104: 5.95 | F104: 1.694650206
E105: 6 | F105: 1.7
E106: 6.05 | F106: 1.697825
E107: 6.1 | F107: 1.6916
E108: 6.15 | F108: 1.681775
E109: 6.2 | F109: 1.6688
E110: 6.25 | F110: 1.653125
E111: 6.3 | F111: 1.6352
E112: 6.35 | F112: 1.615475
E113: 6.4 | F113: 1.5944
E114: 6.45 | F114: 1.572425
E115: 6.5 | F115: 1.55
E116: 6.55 | F116: 1.527575
E117: 6.6 | F117: 1.5056
E118: 6.65 | F118: 1.484525
E119: 6.7 | F119: 1.4648
E120: 6.75 | F120: 1.446875
E121: 6.8 | F121: 1.4312
E122: 6.85 | F122: 1.418225
E123: 6.9 | F123: 1.4084
E124: 6.95 | F124: 1.402175
E125: 7 | F125: 1.4
E126: 7.05 | F126: 1.4014875
E127: 7.1 | F127: 1.4059
E128: 7.15 | F128: 1.4131625
E129: 7.2 | F129: 1.4232
E130: 7.25 | F130: 1.4359375
E131: 7.3 | F131: 1.4513
E132: 7.35 | F132: 1.4692125
E133: 7.4 | F133: 1.4896
E134: 7.45 | F134: =MonotoneHermiteSpline($B$5:$B$12,$C$5:$C$12,E134) -> 1.5123875
E135: =E134+0.05 -> 7.5 | F135: 1.5375
E136: 7.55 | F136: 1.5648625
E137: 7.6 | F137: 1.5944
E138: 7.65 | F138: 1.6260375
E139: 7.7 | F139: 1.6597
E140: 7.75 | F140: 1.6953125
E141: 7.8 | F141: 1.7328
E142: 7.85 | F142: 1.7720875
E143: 7.9 | F143: 1.8131
E144: 7.95 | F144: 1.8557625
E145: 8 | F145: 1.9
